Workbook

Sheet データ
A1: 変数名 | B1: id | C1: 体調 | D1: やる気 | E1: 英語1 | F1: 数学1 | G1: 国語1 | H1: 社会1 | I1: 体育1 | J1: 英語2 | K1: 数学2 | L1: 国語2 | M1: 社会2 | N1: 体育2 | O1: 英語3 | P1: 数学3 | Q1: 国語3 | R1: 社会3 | S1: 体育3
B2: 1 | C2: 3 | D2: 2 | E2: 73 | F2: 80 | G2: 78 | H2: 87 | I2: 60 | J2: 62 | K2: 100 | L2: 77 | M2: 74 | N2: 99 | O2: 75 | P2: 92 | Q2: 78 | R2: 100 | S2: 60
B3: 2 | C3: 2 | D3: 1 | E3: 76 | F3: 95 | G3: 80 | H3: 71 | I3: 85 | J3: 82 | K3: 93 | L3: 78 | M3: 94 | N3: 100 | O3: 89 | P3: 94 | Q3: 55 | R3: 67 | S3: 80
B4: 3 | C4: 3 | D4: 1 | E4: 68 | F4: 90 | G4: 87 | H4: 81 | I4: 58 | J4: 52 | K4: 90 | L4: 96 | M4: 96 | N4: 79 | O4: 54 | P4: 92 | Q4: 88 | R4: 96 | S4: 47
B5: 4 | C5: 4 | D5: 1 | E5: 40 | F5: 89 | G5: 85 | H5: 68 | I5: 30 | J5: 52 | K5: 79 | L5: 84 | M5: 66 | N5: 42 | O5: 52 | P5: 87 | Q5: 87 | R5: 87 | S5: 96
B6: 5 | C6: 4 | D6: 2 | E6: 55 | F6: 78 | G6: 70 | H6: 70 | I6: 75 | J6: 43 | K6: 77 | L6: 90 | M6: 76 | N6: 25 | O6: 43 | P6: 93 | Q6: 38 | R6: 63 | S6: 75
B7: 6 | C7: 1 | D7: 2 | E7: 73 | F7: 88 | G7: 97 | H7: 91 | I7: 15 | J7: 77 | K7: 85 | L7: 78 | M7: 49 | N7: 10 | O7: 81 | P7: 96 | Q7: 20 | R7: 89 | S7: 58
B8: 7 | C8: 1 | D8: 3 | E8: 90 | F8: 76 | G8: 91 | H8: 94 | I8: 35 | J8: 49 | K8: 86 | L8: 100 | M8: 85 | N8: 40 | O8: 44 | P8: 85 | Q8: 100 | R8: 84 | S8: 28
B9: 8 | C9: 1 | D9: 3 | E9: 87 | F9: 70 | G9: 95 | H9: 97 | I9: 30 | J9: 91 | K9: 87 | L9: 95 | M9: 100 | N9: 41 | O9: 93 | P9: 100 | Q9: 100 | R9: 98 | S9: 110
B10: 9 | C10: 4 | D10: 1 | E10: 60 | F10: 100 | G10: 90 | H10: 87 | I10: 42 | J10: 79 | K10: 90 | L10: 75 | M10: 61 | N10: 46 | O10: 81 | P10: 88 | Q10: 60 | R10: 63 | S10: 44
B11: 10 | C11: 2 | D11: 1 | E11: 67 | F11: 98 | G11: 50 | H11: 35 | I11: 70 | J11: 77 | K11: 89 | L11: 0 | M11: 0 | N11: 52 | O11: 87 | P11: 95 | Q11: 49 | R11: 38 | S11: 68
B12: 11 | C12: 2 | D12: 3 | E12: 79 | F12: 88 | G12: 97 | H12: 100 | I12: 50 | J12: 78 | K12: 86 | L12: 97 | M12: 91 | N12: 17 | O12: 76 | P12: 90 | Q12: 100 | R12: 97 | S12: 66
B13: 12 | C13: 1 | D13: 1 | E13: 90 | F13: 93 | G13: 88 | H13: 84 | I13: 80 | J13: 63 | K13: 90 | L13: 86 | M13: 100 | N13: 70 | O13: 64 | P13: 98 | Q13: 78 | R13: 100 | S13: 33
B14: 13 | C14: 3 | D14: 2 | E14: 56 | F14: 99 | G14: 60 | H14: 92 | I14: 68 | J14: 57 | K14: 74 | L14: 97 | M14: 63 | N14: 13 | O14: 58 | P14: 79 | Q14: 68 | R14: 58 | S14: 45
B15: 14 | C15: 2 | D15: 1 | E15: 79 | F15: 89 | G15: 59 | H15: 52 | I15: 65 | J15: 64 | K15: 92 | L15: 83 | M15: 89 | N15: 99 | O15: 72 | P15: 88 | Q15: 45 | R15: 64 | S15: 52
B16: 15 | C16: 4 | D16: 1 | E16: 62 | F16: 90 | G16: 84 | H16: 76 | I16: 44 | J16: 44 | K16: 91 | L16: 90 | M16: 84 | N16: 28 | O16: 64 | P16: 97 | Q16: 62 | R16: 93 | S16: 52
B17: 16 | C17: 2 | D17: 3 | E17: 68 | F17: 87 | G17: 96 | H17: 92 | I17: 48 | J17: 57 | K17: 89 | L17: 89 | M17: 83 | N17: 99 | O17: 62 | P17: 92 | Q17: 84 | R17: 89 | S17: 50
B18: 17 | C18: 1 | D18: 2 | E18: 85 | F18: 83 | G18: 98 | H18: 95 | I18: 30 | J18: 87 | K18: 85 | L18: 97 | M18: 94 | N18: 57 | O18: 83 | P18: 83 | Q18: 88 | R18: 97 | S18: 94
B19: 18 | C19: 4 | D19: 2 | E19: 50 | F19: 84 | G19: 76 | H19: 92 | I19: 74 | J19: 30 | K19: 82 | L19: 79 | M19: 83 | N19: 68 | O19: 28 | P19: 100 | Q19: 88 | R19: 61 | S19: 83
B20: 19 | C20: 4 | D20: 3 | E20: 60 | F20: 90 | G20: 55 | H20: 92 | I20: 78 | J20: 60 | K20: 87 | L20: 85 | M20: 80 | N20: 71 | O20: 60 | P20: 87 | Q20: 89 | R20: 92 | S20: 97
B21: 20 | C21: 3 | D21: 2 | E21: 78 | F21: 88 | G21: 70 | H21: 88 | I21: 75 | J21: 80 | K21: 92 | L21: 83 | M21: 53 | N21: 73 | O21: 87 | P21: 94 | Q21: 81 | R21: 82 | S21: 50
B22: 21 | C22: 2 | D22: 2 | E22: 77 | F22: 91 | G22: 69 | H22: 68 | I22: 51 | J22: 38 | K22: 97 | L22: 58 | M22: 40 | N22: 82 | O22: 41 | P22: 88 | Q22: 68 | R22: 60 | S22: 58
B23: 23 | C23: 4 | D23: 3 | E23: 55 | F23: 100 | G23: 61 | H23: 82 | I23: 90 | J23: 39 | K23: 64 | L23: 85 | M23: 56 | N23: 24 | O23: 48 | P23: 95 | Q23: 65 | R23: 95 | S23: 92
B24: 24 | C24: 4 | D24: 1 | E24: 70 | F24: 86 | G24: 18 | H24: 17 | I24: 58 | J24: 38 | K24: 85 | L24: 89 | M24: 81 | N24: 18 | O24: 39 | P24: 81 | Q24: 43 | R24: 75 | S24: 96
B25: 25 | C25: 3 | D25: 3 | E25: 66 | F25: 88 | G25: 58 | H25: 68 | I25: 65 | J25: 78 | K25: 88 | L25: 77 | M25: 72 | N25: 65 | O25: 81 | P25: 91 | Q25: 71 | R25: 64 | S25: 74
B26: 27 | C26: 1 | D26: 3 | E26: 98 | F26: 94 | G26: 76 | H26: 94 | I26: 40 | J26: 34 | K26: 80 | L26: 94 | M26: 55 | N26: 45 | O26: 35 | P26: 79 | Q26: 100 | R26: 72 | S26: 70
B27: 28 | C27: 1 | D27: 2 | E27: 85 | F27: 91 | G27: 87 | H27: 77 | I27: 31 | J27: 60 | K27: 93 | L27: 81 | M27: 73 | N27: 77 | O27: 65 | P27: 86 | Q27: 80 | R27: 89 | S27: 59
B28: 29 | C28: 4 | D28: 1 | E28: 51 | F28: 93 | G28: 10 | H28: 21 | I28: 50 | J28: 56 | K28: 97 | L28: 67 | M28: 71 | N28: 44 | O28: 52 | P28: 91 | Q28: 81 | R28: 56 | S28: 67
B29: 30 | C29: 4 | D29: 2 | E29: 57 | F29: 80 | G29: 18 | H29: 12 | I29: 80 | J29: 58 | K29: 90 | L29: 24 | M29: 26 | N29: 44 | O29: 59 | P29: 98 | Q29: 7 | R29: 14 | S29: 92
B30: 31 | C30: 2 | D30: 2 | E30: 68 | F30: 90 | G30: 80 | H30: 47 | I30: 53 | J30: 61 | K30: 91 | L30: 63 | M30: 57 | N30: 75 | O30: 63 | P30: 94 | Q30: 20 | R30: 68 | S30: 59
B31: 32 | C31: 3 | D31: 1 | E31: 53 | F31: 97 | G31: 68 | H31: 0 | I31: 68 | J31: 57 | K31: 90 | L31: 62 | M31: 4 | N31: 42 | O31: 55 | P31: 98 | Q31: 0 | R31: 0 | S31: 35
B32: 33 | C32: 4 | D32: 1 | E32: 60 | F32: 87 | G32: 0 | H32: 3 | I32: 51 | J32: 45 | K32: 91 | L32: 50 | M32: 25 | N32: 48 | O32: 52 | P32: 91 | Q32: 24 | R32: 61 | S32: 99
B33: 34 | C33: 3 | D33: 3 | E33: 39 | F33: 91 | G33: 79 | H33: 88 | I33: 80 | J33: 45 | K33: 90 | L33: 66 | M33: 73 | N33: 69 | O33: 44 | P33: 86 | Q33: 63 | R33: 89 | S33: 100
B34: 35 | C34: 1 | D34: 2 | E34: 96 | F34: 94 | G34: 91 | H34: 86 | I34: 33 | J34: 47 | K34: 92 | L34: 86 | M34: 44 | N34: 70 | O34: 51 | P34: 89 | Q34: 94 | R34: 64 | S34: 60
B35: 36 | C35: 1 | D35: 3 | E35: 68 | F35: 75 | G35: 100 | H35: 100 | I35: 35 | J35: 28 | K35: 87 | L35: 92 | M35: 100 | N35: 17 | O35: 25 | P35: 93 | Q35: 100 | R35: 91 | S35: 73
B36: 37 | C36: 1 | D36: 2 | E36: 84 | F36: 90 | G36: 88 | H36: 96 | I36: 30 | J36: 58 | K36: 89 | L36: 92 | M36: 67 | N36: 21 | O36: 58 | P36: 86 | Q36: 100 | R36: 67 | S36: 72
B37: 38 | C37: 3 | D37: 2 | E37: 66 | F37: 88 | G37: 85 | H37: 96 | I37: 77 | J37: 60 | K37: 83 | L37: 93 | M37: 84 | N37: 68 | O37: 58 | P37: 85 | Q37: 89 | R37: 92 | S37: 45
B38: 39 | C38: 3 | D38: 1 | E38: 52 | F38: 93 | G38: 66 | H38: 78 | I38: 80 | J38: 61 | K38: 90 | L38: 85 | M38: 53 | N38: 43 | O38: 67 | P38: 89 | Q38: 81 | R38: 83 | S38: 94
B39: 40 | C39: 3 | D39: 2 | E39: 50 | F39: 80 | G39: 87 | H39: 92 | I39: 77 | J39: 95 | K39: 95 | L39: 90 | M39: 93 | N39: 49 | O39: 104 | P39: 91 | Q39: 97 | R39: 91 | S39: 85
B40: 42 | C40: 2 | D40: 2 | E40: 75 | F40: 88 | G40: 79 | H40: 91 | I40: 75 | J40: 61 | K40: 89 | L40: 93 | M40: 81 | N40: 33 | O40: 59 | P40: 88 | Q40: 100 | R40: 96 | S40: 63
B41: 44 | C41: 1 | D41: 1 | E41: 69 | F41: 96 | G41: 87 | H41: 87 | I41: 95 | J41: 77 | K41: 81 | L41: 97 | M41: 64 | N41: 100 | O41: 74 | P41: 92 | Q41: 73 | R41: 91 | S41: 80
B42: 45 | C42: 1 | D42: 2 | E42: 75 | F42: 89 | G42: 93 | H42: 86 | I42: 35 | J42: 68 | K42: 91 | L42: 84 | M42: 82 | N42: 19 | O42: 68 | P42: 86 | Q42: 100 | R42: 90 | S42: 98
B43: 46 | C43: 4 | D43: 1 | E43: 55 | F43: 91 | G43: 47 | H43: 27 | I43: 60 | J43: 40 | K43: 80 | L43: 58 | M43: 23 | N43: 57 | O43: 42 | P43: 93 | Q43: 60 | R43: 57 | S43: 70

Sheet モデリング
A1: 変数名 | B1: id | C1: 体調 | D1: やる気 | E1: 英語1 | F1: 数学1 | G1: 国語1 | H1: 社会1 | I1: 体育1 | J1: 英語2 | K1: 数学2 | L1: 国語2 | M1: 社会2 | N1: 体育2 | O1: 英語3 | P1: 数学3 | Q1: 国語3 | R1: 社会3 | S1: 体育3
B9: id
B32: 1
A300: 変数情報 | F300: コード
A301: id
A302: 体調 | C302: 1=絶好調,2=好調,3=不調,4=絶不調
A303: やる気 | C303: 1=やる気満々,2=普通,3=やる気なし
A304: 英語1
A305: 数学1
A306: 国語1
A307: 社会1
A308: 体育1
A309: 英語2
A310: 数学2
A311: 国語2
A312: 社会2
A313: 体育2
A314: 英語3
A315: 数学3
A316: 国語3
A317: 社会3
A318: 体育3

Sheet $System$ (hidden)
A1: 設定は変更しないでください。HADがうまく作動しなくなる可能性があります。 | I1: 変数名 | J1: コード | K1: フィルタ | L1: 値 | M1: ラベル | N1: 読み込まない変数 | O1: 右クリック | P1: 登録名 | Q1: 登録変数 | R1: 回帰変数保存名 | S1: 回帰保存コード | T1: 因子変数保存名 | U1: 因子保存コード | X1: name | Y1: caption | Z1: left | AA1: top | AB1: width | AC1: height | AD1: macro | AE1: cell | AF1: placement | AG1: type
O2: HADを起動 | X2: modelingb | Y2: モデリング シート | Z2: 12.75 | AA2: 72.75 | AB2: 51 | AC2: 38.25 | AD2: interface.modelingsheet | AF2: 1 | AG2: Buttons | AI2: sheet1
A3: 開いているシート | B3: 0 | C3: 0:データ, 1:モデリング, 2その他 | O3: 記述統計量 | X3: columnsb | Y3: 列幅の 調整 | Z3: 12.75 | AA3: 165.75 | AB3: 51 | AC3: 41.25 | AD3: Interface.columnwidth | AF3: 1 | AG3: Buttons | AI3: sheet1
A4: HADモード | B4: 2 | C4: 1:詳細モード、2:簡易モード | O4: ヒストグラム | X4: datainputb | Y4: データ 読み込み | Z4: 12.75 | AA4: 27.75 | AB4: 51 | AC4: 38.25 | AD4: Interface.datainput | AF4: 1 | AG4: Buttons | AI4: sheet1
A5: 分析ボタンの使用 | O5: 変数の作成 | X5: matrixb | Y5: 数値 計算 | Z5: 12 | AA5: 219.75 | AB5: 51.75 | AC5: 41.25 | AD5: Interface.matrixcul | AF5: 1 | AG5: Buttons | AI5: sheet1
A6: 最大変数 | B6: 254 | X6: ttm2hadb | Y6: TTM2 HAD | Z6: 12 | AA6: 358.5 | AB6: 51.75 | AC6: 38.25 | AD6: Interface.ttm2hadvisible | AF6: 1 | AG6: Buttons | AI6: sheet1
A7: 最大使用変数 | B7: 100 | X7: had2rb | Y7: HAD2R | Z7: 12 | AA7: 305.25 | AB7: 51.75 | AC7: 36.75 | AD7: Interface.readcsv | AF7: 1 | AG7: Buttons | AI7: sheet1
A8: モード | B8: 0 | C8: 0:変数情報, 1:回帰分析, 2:因子分析, 3:全表示 | X8: groupmode | Y8: グループ 1961 | Z8: 497.25 | AA8: 26.25 | AB8: 93.75 | AC8: 75.75 | AF8: 2 | AG8: GroupBoxes | AI8: sheet2
A9: ラベル出力 | B9: 0 | C9: 0なら出力しない、1ならラベル出力 | X9: groupmethod | Y9: グループ 2008 | Z9: 363.75 | AA9: 589.5 | AB9: 417.75 | AC9: 31.5 | AF9: 2 | AG9: GroupBoxes | AI9: sheet2
A10: 欠損値 | B10: . | X10: grouprotation | Y10: グループ 2028 | Z10: 363.75 | AA10: 624.75 | AB10: 244.5 | AC10: 30.75 | AF10: 2 | AG10: GroupBoxes | AI10: sheet2
A11: 欠損値判断 | B11: 0 | C11: →0ならピリオド,1:NA, 2ならそれ以外 | X11: groupanalysis | Y11: グループ 2032 | Z11: 364.5 | AA11: 741.75 | AB11: 360 | AC11: 25.5 | AF11: 2 | AG11: GroupBoxes | AI11: sheet2
A12: 読み込み変数 | B12: 18 | X12: groupregdependent | Y12: グループ 1981 | Z12: 344.25 | AA12: 1023 | AB12: 451.5 | AC12: 33.75 | AF12: 1 | AG12: GroupBoxes | AI12: sheet2
A13: 使用変数 | B13: 1 | X13: groupregselection | Y13: グループ 1986 | Z13: 360 | AA13: 1208.25 | AB13: 368.25 | AC13: 30 | AF13: 2 | AG13: GroupBoxes | AI13: sheet2
A14: 共分散データ使用変数 | B14: 21 | X14: jouhou | Y14: 変数情報 | Z14: 506.25 | AA14: 33 | AB14: 70.5 | AC14: 21.75 | AD14: Interface.jouhou | AE14: $System$'!$B$99 | AF14: 2 | AG14: OptionButtons | AH14: 1 | AI14: sheet2
A15: 使用データセット | B15: 1 | X15: kaiki | Y15: 回帰分析 | Z15: 506.25 | AA15: 53.25 | AB15: 70.5 | AC15: 22.5 | AD15: Interface.kaiki | AE15: $System$'!$B$99 | AF15: 2 | AG15: OptionButtons | AH15: -4146 | AI15: sheet2
A16: データセットシート名 | X16: inshi | Y16: 因子分析 | Z16: 506.25 | AA16: 74.25 | AB16: 70.5 | AC16: 21.75 | AD16: Interface.inshi | AE16: $System$'!$B$99 | AF16: 2 | AG16: OptionButtons | AH16: -4146 | AI16: sheet2
A17: 共分散データセットの有無 | B17: 0 | X17: mlmethod | Y17: 最尤法 | Z17: 370.5 | AA17: 595.5 | AB17: 67.5 | AC17: 24 | AD17: hmethod | AE17: $System$'!$B$110 | AF17: 2 | AG17: OptionButtons | AH17: 1 | AI17: sheet2
A18: 共分散データ使用のチェック | B18: 0 | X18: ulsmethod | Y18: 最小二乗法 | Z18: 444.75 | AA18: 595.5 | AB18: 78.75 | AC18: 24 | AD18: hmethod | AE18: $System$'!$B$110 | AF18: 2 | AG18: OptionButtons | AH18: -4146 | AI18: sheet2
A19: シートの保護設定 | B19: 0 | C19: 0:保護, 1:保護しない | X19: prinit | Y19: 反復主因子法 | Z19: 531 | AA19: 595.5 | AB19: 87 | AC19: 24 | AD19: hmethod | AE19: $System$'!$B$110 | AF19: 2 | AG19: OptionButtons | AH19: -4146 | AI19: sheet2
A20: オブジェクト数 | B20: 9 | X20: princomp | Y20: 主成分法 | Z20: 623.25 | AA20: 595.5 | AB20: 68.25 | AC20: 24 | AD20: hmethod | AE20: $System$'!$B$110 | AF20: 2 | AG20: OptionButtons | AH20: -4146 | AI20: sheet2
A21: 分析履歴表示 | B21: 0 | C21: 0:表示しない, 1:表示する | X21: noiteration | Y21: カテゴリカル | Z21: 704.25 | AA21: 595.5 | AB21: 74.25 | AC21: 24 | AD21: hmethod | AE21: $System$'!$B$110 | AF21: 2 | AG21: OptionButtons | AH21: -4146 | AI21: sheet2
A22: マルチレベルチェック | B22: 0 | X22: obliqu | Y22: 斜交回転 | Z22: 370.5 | AA22: 628.5 | AB22: 67.5 | AC22: 22.5 | AE22: $System$'!$B$111 | AF22: 2 | AG22: OptionButtons | AH22: 1 | AI22: sheet2
A23: 回帰分析設定 | B23: 1 | C23: 1：回帰分析、2：媒介分析、3：ステップワイズ、4：分散分析、5：多変量、6：一般化線形モデル、7:階層線形モデル | X23: orthogonal | Y23: 直交回転 | Z23: 444.75 | AA23: 628.5 | AB23: 77.25 | AC23: 22.5 | AD23: hmethod | AE23: $System$'!$B$111 | AF23: 2 | AG23: OptionButtons | AH23: -4146 | AI23: sheet2
A24: 媒介分析ブートN | B24: 2000 | X24: norotation | Y24: 回転なし | Z24: 531 | AA24: 628.5 | AB24: 66 | AC24: 22.5 | AD24: hmethod | AE24: $System$'!$B$111 | AF24: 2 | AG24: OptionButtons | AH24: -4146 | AI24: sheet2
A25: ステップワイズ 閾値1 | B25: 0.05 | X25: factor | Y25: 因子分析 | Z25: 369.75 | AA25: 745.5 | AB25: 68.25 | AC25: 19.5 | AD25: Interface.factor | AE25: $System$'!$B$107 | AF25: 2 | AG25: OptionButtons | AH25: 1 | AI25: sheet2
A26: ステップワイズ 閾値2 | B26: 0.1 | X26: cluster | Y26: クラスタ分析 | Z26: 446.25 | AA26: 745.5 | AB26: 67.5 | AC26: 19.5 | AD26: Interface.cluster | AE26: $System$'!$B$107 | AF26: 2 | AG26: OptionButtons | AH26: -4146 | AI26: sheet2
A27: ランダマイズ | B27: 0 | C27: 0:ランダイマイズしない、1:ランダイマイズ | X27: correspondence | Y27: 数量化分析 | Z27: 531 | AA27: 745.5 | AB27: 84 | AC27: 19.5 | AD27: Interface.correspondence | AE27: $System$'!$B$107 | AF27: 2 | AG27: OptionButtons | AH27: -4146 | AI27: sheet2
A28: ブートストラップ標本生成 | B28: 1 | C28: 1:ノンパラメトリック, 2:パラメトリック | X28: sems | Y28: 構造方程式モデル | Z28: 622.5 | AA28: 745.5 | AB28: 93 | AC28: 19.5 | AD28: Interface.cfa | AE28: $System$'!$B$107 | AF28: 2 | AG28: OptionButtons | AH28: -4146 | AI28: sheet2
A29: 変数の保存 | B29: 1 | X29: linear | Y29: 連続 | Z29: 348.75 | AA29: 1028.25 | AB29: 39.75 | AC29: 23.25 | AD29: Interface.linear | AE29: $System$'!$B$45 | AF29: 2 | AG29: OptionButtons | AH29: 1 | AI29: sheet2
A30: 変数情報のウィンドウ固定 | B30: 0 | C30: 0:固定しない, 1固定する | X30: ordinal | Y30: 順序 | Z30: 400.5 | AA30: 1028.25 | AB30: 40.5 | AC30: 23.25 | AD30: Interface.ordinal | AE30: $System$'!$B$45 | AF30: 2 | AG30: OptionButtons | AH30: -4146 | AI30: sheet2
A31: 主効果を全体平均で中心 | B31: 0 | X31: nominal | Y31: 名義 | Z31: 619.5 | AA31: 1028.25 | AB31: 40.5 | AC31: 23.25 | AD31: Interface.nominal | AE31: $System$'!$B$45 | AF31: 2 | AG31: OptionButtons | AH31: -4146 | AI31: sheet2
A32: 2値変数をカテゴリカル変数に | B32: 0 | X32: count | Y32: カウント | Z32: 502.5 | AA32: 1028.25 | AB32: 48 | AC32: 23.25 | AD32: Interface.count | AE32: $System$'!$B$45 | AF32: 2 | AG32: OptionButtons | AH32: -4146 | AI32: sheet2
A33: 交互作用項を中心化 | B33: 1 | X33: censored | Y33: 打ち切り | Z33: 559.5 | AA33: 1028.25 | AB33: 48 | AC33: 23.25 | AD33: Interface.censored | AE33: $System$'!$B$45 | AF33: 2 | AG33: OptionButtons | AH33: -4146 | AI33: sheet2
A34: 順序回帰リンク関数 | B34: 1 | C34: 1:ロジット、2:プロビット | X34: ratio2 | Y34: 割合 | Z34: 445.5 | AA34: 1028.25 | AB34: 39.75 | AC34: 23.25 | AD34: Interface.ratio | AE34: $System$'!$B$45 | AF34: 2 | AG34: OptionButtons | AH34: -4146 | AI34: sheet2
A35: 平方和タイプ | B35: 0 | C35: 0:タイプ3, 1:タイプ2 | X35: mixdist | Y35: 混合分布 | Z35: 674.25 | AA35: 1028.25 | AB35: 50.25 | AC35: 23.25 | AD35: Interface.mixdist | AE35: $System$'!$B$45 | AF35: 2 | AG35: OptionButtons | AH35: -4146 | AI35: sheet2
A36: 多重比較 | B36: 3 | C36: 1:F-Shaffer, 2:Shaffer, 3:Holm, 4:Bonf. | X36: had2quantreg | Y36: 分位点 | Z36: 738.75 | AA36: 1028.25 | AB36: 49.5 | AC36: 23.25 | AD36: Interface.quantreg | AE36: $System$'!$B$45 | AF36: 2 | AG36: OptionButtons | AH36: -4146 | AI36: sheet2
A37: 主効果の有意基準 | B37: 0.05 | X37: regression | Y37: 一般化線形モデル | Z37: 515.25 | AA37: 1210.5 | AB37: 107.25 | AC37: 24 | AD37: Interface.gzlm | AE37: $System$'!$B$100 | AF37: 2 | AG37: OptionButtons | AH37: -4146 | AI37: sheet2
A38: 単純主効果の誤差 | B38: 0 | C38: 0:プールされた誤差, 1:水準別誤差,2:間はプール，内は水準別 | X38: anova | Y38: 分散分析 | Z38: 443.25 | AA38: 1210.5 | AB38: 62.25 | AC38: 24 | AD38: Interface.anovas | AE38: $System$'!$B$100 | AF38: 2 | AG38: OptionButtons | AH38: 1 | AI38: sheet2
A39: 球面性逸脱の自由度補正 | B39: 5 | C39: 1:HF, 2:G-G, 3:下限, 4:補正無, 5:C-M | X39: discri | Y39: 回帰分析 | Z39: 369 | AA39: 1210.5 | AB39: 63 | AC39: 24 | AD39: Interface.regressions | AE39: $System$'!$B$100 | AF39: 2 | AG39: OptionButtons | AH39: -4146 | AI39: sheet2
A40: 名義有意水準の表示 | B40: 0 | C40: 0:調整有意確率, 1:名義有意水準 | X40: hlms | Y40: 階層線形モデル | Z40: 621 | AA40: 1211.25 | AB40: 81.75 | AC40: 24 | AD40: Interface.hlms | AE40: $System$'!$B$100 | AF40: 2 | AG40: OptionButtons | AH40: -4146 | AI40: sheet2
A41: Satterthwait補正 | B41: 0 | C41: 1:補正する, 0:補正しない | X41: insert2 | Y41: 出力を上書きしない | Z41: 1012.5 | AA41: 523.5 | AB41: 95.25 | AC41: 21.75 | AE41: $System$'!$B$108 | AF41: 2 | AG41: CheckBoxes | AH41: -4146 | AI41: sheet2
A42: ペアワイズ誤差項 | B42: 1 | C42: 0:要因の誤差項, 1:ペアワイズ誤差項 | X42: eigenvalue | Y42: 固有値1以上まで | Z42: 445.5 | AA42: 559.5 | AB42: 80.25 | AC42: 22.5 | AD42: Interface.eigenvalue | AE42: $System$'!$B$109 | AF42: 2 | AG42: CheckBoxes | AH42: -4146 | AI42: sheet2
A43: 共変量の中心化 | B43: FALSE | C43: 0:中心化しない, 1:中心化する | X43: procrustes | Y43: プロクラステス | Z43: 642.75 | AA43: 629.25 | AB43: 96.75 | AC43: 20.25 | AD43: Interface.procrustes | AE43: $System$'!$B$112 | AF43: 2 | AG43: CheckBoxes | AH43: -4146 | AI43: sheet2
A44: 球面性の結果の出力 | B44: 1 | C44: 0:出力しない, 1:出力する | X44: factorscore | Y44: 因子得点 | Z44: 370.5 | AA44: 662.25 | AB44: 69 | AC44: 21 | AD44: Interface.factorscore | AE44: $System$'!$B$113 | AF44: 2 | AG44: CheckBoxes | AH44: 1 | AI44: sheet2
A45: 一般化線形モデルのタイプ | B45: 1 | C45: 1:間隔、2:順序、3:名義、4:カウント、5:打ち切り, 6:割合, 7:混合分布, 8:分位点 | X45: scalescore | Y45: 尺度得点 | Z45: 445.5 | AA45: 662.25 | AB45: 90.75 | AC45: 21 | AD45: Interface.scalescore | AE45: $System$'!$B$114 | AF45: 2 | AG45: CheckBoxes | AH45: -4146 | AI45: sheet2
A46: ステップワイズ法オン | B46: 0 | C46: 0:階層的重回帰, 1:ステップワイズ, 2:媒介分析 | X46: sizesort | Y46: サイズでソート | Z46: 370.5 | AA46: 695.25 | AB46: 69 | AC46: 21.75 | AE46: $System$'!$B$115 | AF46: 2 | AG46: CheckBoxes | AH46: 1 | AI46: sheet2
A47: 標準誤差 | B47: TRUE | C47: 0：モデル標準誤差、１：ロバスト | X47: corrmatrix | Y47: 相関行列 | Z47: 445.5 | AA47: 695.25 | AB47: 68.25 | AC47: 21.75 | AE47: $System$'!$B$116 | AF47: 2 | AG47: CheckBoxes | AH47: -4146 | AI47: sheet2
A48: エラーバーの表示 | B48: 0 | C48: 0:標準誤差, 1:信頼区間 | X48: mds | Y48: 項目反応理論 | Z48: 532.5 | AA48: 695.25 | AB48: 76.5 | AC48: 21.75 | AE48: $System$'!$B$117 | AF48: 2 | AG48: CheckBoxes | AH48: -4146 | AI48: sheet2
A49: ブートストラップ信頼区間 | B49: 1 | C49: 0:パーセンタイル, 1:バイアス修正 | X49: filteroff2 | Y49: フィルタをオフにする | Z49: 1012.5 | AA49: 500.25 | AB49: 95.25 | AC49: 24 | AE49: $System$'!$B$142 | AF49: 2 | AG49: CheckBoxes | AH49: -4146 | AI49: sheet2
A50: カウントデータの分布 | B50: 0 | C50: 0:ポアソン、1:負の二項分布、2:一般化ポアソン | X50: normalize | Y50: 欠損値データ | Z50: 642 | AA50: 630.75 | AB50: 95.25 | AC50: 20.25 | AD50: Interface.missingcheck | AE50: $System$'!$B$187 | AF50: 2 | AG50: CheckBoxes | AH50: -4146 | AI50: sheet2
A51: 打ち切りデータの方向 | B51: 1 | C51: 1:下側、2:上側、3:両方、0：なし | X51: pathdraw | Y51: パス図表示 | Z51: 6.75 | AA51: 909.75 | AB51: 63.75 | AC51: 19.5 | AD51: pathdiagrams | AE51: $System$'!$B$172 | AF51: 2 | AG51: CheckBoxes | AH51: -4146 | AI51: sheet2
A52: 因子分析設定 | X52: insert3 | Y52: 出力を上書きしない | Z52: 700.5 | AA52: 821.25 | AB52: 96 | AC52: 18.75 | AE52: $System$'!$B$108 | AF52: 3 | AG52: CheckBoxes | AH52: -4146 | AI52: sheet2
A53: 最大反復数 | B53: 25 | X53: filteroff3 | Y53: フィルタをオフにする | Z53: 700.5 | AA53: 800.25 | AB53: 96 | AC53: 21 | AE53: $System$'!$B$142 | AF53: 3 | AG53: CheckBoxes | AH53: -4146 | AI53: sheet2
A54: 収束基準 | B54: 0.001 | X54: insert1 | Y54: 出力を上書きしない | Z54: 880.5 | AA54: 989.25 | AB54: 94.5 | AC54: 21.75 | AE54: $System$'!$B$101 | AF54: 2 | AG54: CheckBoxes | AH54: 1 | AI54: sheet2
A55: Kappa | B55: 4 | X55: robust | Y55: 頑健標準誤差 | Z55: 803.25 | AA55: 1029 | AB55: 78 | AC55: 21.75 | AD55: Interface.regrobust | AE55: $System$'!$B$47 | AF55: 2 | AG55: CheckBoxes | AH55: 1 | AI55: sheet2
A56: 重み | B56: 1 | X56: level1center | Y56: レベル1変数を集団平均で中心化 | Z56: 354.75 | AA56: 1028.25 | AB56: 130.5 | AC56: 21.75 | AD56: Interface.regmultilevel | AE56: $System$'!$B$133 | AF56: 2 | AG56: CheckBoxes | AH56: -4146 | AI56: sheet2
A57: 平行分析回数 | B57: 50 | X57: hlmrobust | Y57: 頑健標準誤差 | Z57: 520.5 | AA57: 1028.25 | AB57: 97.5 | AC57: 21.75 | AD57: Interface.regmultilevel | AE57: $System$'!$B$131 | AF57: 2 | AG57: CheckBoxes | AH57: 1 | AI57: sheet2
A58: 平行分析ランダマイズ | B58: 0 | C58: 0:ランダイマイズしない、1:ランダイマイズ | X58: filteroff | Y58: フィルタをオフにする | Z58: 880.5 | AA58: 967.5 | AB58: 94.5 | AC58: 21 | AE58: $System$'!$B$141 | AF58: 2 | AG58: CheckBoxes | AH58: -4146 | AI58: sheet2
A59: 斜交回転法 | B59: 0 | C59: 0:プロマックス,1:独立クラスタ―, 2:直接オブリミン | X59: robust2 | Y59: クラスタ標準誤差 | Z59: 881.25 | AA59: 1029 | AB59: 89.25 | AC59: 21.75 | AD59: Interface.regmultilevel | AE59: $System$'!$B$127 | AF59: 2 | AG59: CheckBoxes | AH59: -4146 | AI59: sheet2
A60: カイザーの基準化 | B60: 1 | C60: 1:カイザー基準化, 0:基準化しない | X60: stepoutput | Y60: 各ステップを出力しない | Z60: 874.5 | AA60: 1167.75 | AB60: 109.5 | AC60: 22.5 | AE60: $System$'!$B$103 | AF60: 2 | AG60: CheckBoxes | AH60: -4146 | AI60: sheet2
A61: 独立クラスターのPower | B61: 0 | X61: residual | Y61: 残差得点を出力 | Z61: 874.5 | AA61: 1188 | AB61: 100.5 | AC61: 23.25 | AE61: $System$'!$B$105 | AF61: 2 | AG61: CheckBoxes | AH61: -4146 | AI61: sheet2
A62: 単純構造分析 | B62: 2 | C62: 2:SMC, 3:非反復推定法 | X62: stepwise | Y62: ステップワイズ | Z62: 787.5 | AA62: 1167.75 | AB62: 71.25 | AC62: 21.75 | AD62: Interface.stepwisecheck | AE62: $System$'!$B$118 | AF62: 2 | AG62: CheckBoxes | AH62: -4146 | AI62: sheet2
A63: VSSの複雑性 | B63: 1 | C63: 1~3 | X63: medi | Y63: 媒介分析 | Z63: 787.5 | AA63: 1188 | AB63: 75 | AC63: 22.5 | AD63: Interface.mediation | AE63: $System$'!$B$104 | AF63: 2 | AG63: CheckBoxes | AH63: -4146 | AI63: sheet2
A64: マルチページ記憶 | B64: 0 | C64: 0:因子分析, 1:スクリープロット,2:クラスタ, 3:対応 | X64: discrim2 | Y64: 判別分析 | Z64: 989.25 | AA64: 1167.75 | AB64: 69.75 | AC64: 21.75 | AD64: Interface.discrim | AE64: $System$'!$B$139 | AF64: 2 | AG64: CheckBoxes | AH64: -4146 | AI64: sheet2
A65: 共通性の和かVSS | B65: 0 | C65: 0:共通性の和, 1:VSS | X65: multireg2 | Y65: 多変量回帰分析 | Z65: 989.25 | AA65: 1187.25 | AB65: 75.75 | AC65: 23.25 | AD65: Interface.multiregswitch | AE65: $System$'!$B$140 | AF65: 2 | AG65: CheckBoxes | AH65: -4146 | AI65: sheet2
A66: 単純構造性分析のグラフ | B66: 0 | C66: 0:なし, 1:あり | X66: covaricenter | Y66: 共変量を中心化 | Z66: 787.5 | AA66: 1167.75 | AB66: 95.25 | AC66: 21.75 | AE66: $System$'!$B$43 | AF66: 2 | AG66: CheckBoxes | AH66: -4146 | AI66: sheet2
A67: クラスター基準 | B67: 7 | C67: 8 | D67: 7:ウォード法, | X67: generales | Y67: 一般化効果量 | Z67: 900 | AA67: 1167 | AB67: 81 | AC67: 21.75 | AE67: $System$'!$B$164 | AF67: 2 | AG67: CheckBoxes | AH67: -4146 | AI67: sheet2
A68: デンドログラムの表示 | B68: 1 | C68: 1:距離, 2:2乗, 3:3乗 | X68: unbiases | Y68: 不偏推定効果量 | Z68: 900 | AA68: 1188 | AB68: 106.5 | AC68: 22.5 | AE68: $System$'!$B$163 | AF68: 2 | AG68: CheckBoxes | AH68: -4146 | AI68: sheet2
A69: 負荷量カットポイント | B69: 0 | X69: sigalpha | Y69: 名義有意水準を表示 | Z69: 787.5 | AA69: 1188 | AB69: 103.5 | AC69: 22.5 | AE69: $System$'!$B$40 | AF69: 2 | AG69: CheckBoxes | AH69: -4146 | AI69: sheet2
A70: クラスタ分析経過出力 | B70: 0 | C70: 0:出力しない, 1:出力する | X70: hra | Y70: 階層的投入法 | Z70: 653.25 | AA70: 1164.75 | AB70: 81 | AC70: 22.5 | AD70: Interface.hracheck | AE70: $System$'!$B$158 | AF70: 2 | AG70: CheckBoxes | AH70: -4146 | AI70: sheet2
A71: 距離行列の出力 | B71: 0 | C71: 0:出力しない, 1:出力する | X71: had2glimmix | Y71: HAD2GLIMMIX | Z71: 981.75 | AA71: 1167 | AB71: 84.75 | AC71: 21.75 | AD71: Interface.had2glimmix | AE71: $System$'!$B$232 | AF71: 2 | AG71: CheckBoxes | AH71: -4146 | AI71: sheet2
A72: MDSの次元数 | B72: 2 | C72: デフォルト2 | X72: had2glmmstan | Y72: HAD2glmmstan | Z72: 981.75 | AA72: 1188 | AB72: 84.75 | AC72: 22.5 | AD72: Interface.had2glmmstan | AE72: $System$'!$B$259 | AF72: 2 | AG72: CheckBoxes | AH72: -4146 | AI72: sheet2
A73: 対応分析グラフ 軸数値 | B73: 0 | C73: 0:表示しない, 1:表示する | X73: loglm | Y73: 対数線形モデル | Z73: 992.25 | AA73: 1167 | AB73: 92.25 | AC73: 21 | AD73: loglms | AE73: $System$'!$B$284 | AF73: 2 | AG73: CheckBoxes | AH73: -4146 | AI73: sheet2
A74: 対応分析グラフ 次元軸 | B74: 1 | C74: 0:表示しない, 1:表示する | X74: usevariable | Y74: 使用変数 | Z74: 7.5 | AA74: 123.75 | AB74: 58.5 | AC74: 19.5 | AD74: Interface.usevariable | AF74: 3 | AG74: Buttons | AI74: sheet2
A75: デンドログラムの要約 | B75: 25 | C75: デフォルト25 | X75: analysis | Y75: 分析 | Z75: 12.75 | AA75: 27 | AB75: 51 | AC75: 38.25 | AD75: Interface.boothad | AF75: 3 | AG75: Buttons | AI75: sheet2
A76: カテゴリカル基準 | B76: 15 | X76: datasheet | Y76: データ シート | Z76: 12.75 | AA76: 72.75 | AB76: 51 | AC76: 38.25 | AD76: data_sheet | AF76: 3 | AG76: Buttons | AI76: sheet2
A77: ポリコリック相関データ | B77: 0 | C77: 0:オフ、1:オン | X77: selectvariable | Y77: 選択セルを使用 | Z77: 146.25 | AA77: 33.75 | AB77: 87 | AC77: 31.5 | AD77: Interface.selectvariable | AF77: 3 | AG77: Buttons | AI77: sheet2
A78: 度数分布の級数 | B78: 12 | X78: controlvariable | Y78: 統制変数を投入 | Z78: 257.25 | AA78: 33.75 | AB78: 87 | AC78: 31.5 | AD78: Interface.controlvariable | AF78: 3 | AG78: Buttons | AI78: sheet2
A79: 行列演算 | B79: 3 | C79: 1:逆行列, 2行列式, 3Jacobi, 4QR, 5乱数，6シミュレーション, 7サンプリング | X79: leftmove | Y79: 変数を左につめる | Z79: 369 | AA79: 33.75 | AB79: 87 | AC79: 31.5 | AD79: Interface.leftmove | AF79: 3 | AG79: Buttons | AI79: sheet2
A80: 標準得点平均 | B80: 0 | X80: filtermanage | Y80: フィルタ | Z80: 77.25 | AA80: 162.75 | AB80: 52.5 | AC80: 19.5 | AD80: Interface.filter | AF80: 1 | AG80: Buttons | AI80: sheet2
A81: 標準得点SD | B81: 1 | X81: valuelabelmanage | Y81: 値ラベル | Z81: 130.5 | AA81: 162.75 | AB81: 53.25 | AC81: 19.5 | AD81: Interface.valuelabel | AF81: 1 | AG81: Buttons | AI81: sheet2
A82: 変数の逆転 | B82: 6 | X82: variablemanage | Y82: ラベル | Z82: 184.5 | AA82: 162.75 | AB82: 52.5 | AC82: 19.5 | AD82: Interface.variablelabel | AF82: 1 | AG82: Buttons | AI82: sheet2
A83: 足し算 | B83: 0 | X83: atvariable | Y83: @変数 | Z83: 237.75 | AA83: 162.75 | AB83: 53.25 | AC83: 19.5 | AD83: Interface.boxvariable | AF83: 1 | AG83: Buttons | AI83: sheet2
A84: 掛け算 | B84: 1 | X84: creatvariable | Y84: 変数の作成 | Z84: 607.5 | AA84: 32.25 | AB84: 87 | AC84: 31.5 | AD84: Interface.createvariable | AF84: 3 | AG84: Buttons | AI84: sheet2
A85: 累乗 | B85: 2 | X85: sheetmanagement | Y85: HADの設定 | Z85: 732 | AA85: 73.5 | AB85: 87 | AC85: 31.5 | AD85: Interface.hadoption | AF85: 3 | AG85: Buttons | AI85: sheet2
A86: 変数の作成 | B86: 3 | X86: dataset | Y86: データセット | Z86: 607.5 | AA86: 73.5 | AB86: 87 | AC86: 31.5 | AD86: Interface.dataset | AF86: 3 | AG86: Buttons | AI86: sheet2
A87: 変数の作成ページ | B87: 0 | X87: varijouhou | Y87: シート管理 | Z87: 732 | AA87: 32.25 | AB87: 87 | AC87: 31.5 | AD87: System.Sheet_Manage | AF87: 3 | AG87: Buttons | AI87: sheet2
A88: 平行分析実行 | B88: 0 | C88: 0:しない, 1:実行する | X88: mlpromax | Y88: 最尤プロマックス | Z88: 434.25 | AA88: 507 | AB88: 87 | AC88: 30.75 | AD88: Interface.mlpromax | AF88: 1 | AG88: Buttons | AI88: sheet2
A89: 一標本検定の基準値 | B89: 0 | X89: principle | Y89: 主成分法 | Z89: 545.25 | AA89: 507 | AB89: 87 | AC89: 30.75 | AD89: Interface.principal | AF89: 1 | AG89: Buttons | AI89: sheet2
A90: クラスターランダム | B90: 0 | X90: screeplot | Y90: スクリープロット | Z90: 545.25 | AA90: 560.25 | AB90: 87 | AC90: 18.75 | AD90: Interface.screeplot | AF90: 1 | AG90: Buttons | AI90: sheet2
A91: クラスタ初期値設定 | B91: 1 | C91: 1.反復 2:ランダム 3:主成分法 | X91: factoroption | Y91: オプション | Z91: 792 | AA91: 506.25 | AB91: 87 | AC91: 31.5 | AD91: Interface.factoroption | AF91: 1 | AG91: Buttons | AI91: sheet2
A92: 反復回数 | B92: 20 | X92: factorrun | Y92: 分析実行 | Z92: 897.75 | AA92: 506.25 | AB92: 87 | AC92: 31.5 | AD92: Interface.factorrun | AF92: 1 | AG92: Buttons | AI92: sheet2
A93: 変数情報マルチページ | B93: 0 | C93: 0:フィルタ, 1:値ラベル, 2:変数ラベル | X93: factorsave2 | Y93: モデル保存 | Z93: 300 | AA93: 741 | AB93: 57 | AC93: 27.75 | AD93: Interface.factorvariable | AF93: 1 | AG93: Buttons | AI93: sheet2
A94: 出力を上書きしない | B94: 0 | C94: 0:上書きする, 1:上書きしない | X94: rawdata2 | Y94: 初期化 | Z94: 9.75 | AA94: 800.25 | AB94: 57 | AC94: 19.5 | AD94: Interface.rawdata | AF94: 3 | AG94: Buttons | AI94: sheet2
A95: 読み込まない変数の数 | B95: 0 | X95: fplus | Y95: 因子増やす | Z95: 9.75 | AA95: 841.5 | AB95: 57 | AC95: 20.25 | AD95: Interface.factorplus | AF95: 3 | AG95: Buttons | AI95: sheet2
A96: モデリングシートのセル幅 | B96: 8.08 | X96: fminus | Y96: 因子減らす | Z96: 9.75 | AA96: 876.75 | AB96: 57 | AC96: 19.5 | AD96: Interface.factorminus | AF96: 3 | AG96: Buttons | AI96: sheet2
A97: . | X97: freepara | Y97: パスを推定 | Z97: 141 | AA97: 807 | AB97: 84.75 | AC97: 30.75 | AD97: Interface.freepara | AF97: 3 | AG97: Buttons | AI97: sheet2
A98: オブジェクトの状態 | X98: freecov | Y98: 共分散を推定 | Z98: 246 | AA98: 807 | AB98: 84.75 | AC98: 30.75 | AD98: Interface.freecov | AF98: 3 | AG98: Buttons | AI98: sheet2
A99: モード | B99: 1 | C99: 1:変数情報、2:回帰分析、3:因子分析 | X99: modelcheck | Y99: モデルチェック | Z99: 496.5 | AA99: 806.25 | AB99: 84.75 | AC99: 30.75 | AD99: Interface.modelcheck | AF99: 3 | AG99: Buttons | AI99: sheet2
A100: 回帰分析オプションボタン | B100: 3 | C100: 1:一般化線形モデル、2:分散分析、3:回帰分析、4:多一般化線形混合モデル | X100: semrun | Y100: 分析実行 | Z100: 597.75 | AA100: 806.25 | AB100: 84.75 | AC100: 30.75 | AD100: Interface.factorrun | AF100: 3 | AG100: Buttons | AI100: sheet2
A101: 回帰：上書きしない | B101: FALSE | X101: redraw | Y101: HAD2Stan | Z101: 374.25 | AA101: 806.25 | AB101: 84.75 | AC101: 30.75 | AD101: Interface.redrawpath | AF101: 3 | AG101: Buttons | AI101: sheet2
A102: 回帰：マルチレベルモデル | B102: 0 | X102: dependent | Y102: 目的変数を投入 | Z102: 300 | AA102: 973.5 | AB102: 87 | AC102: 31.5 | AD102: Interface.dependent | AF102: 1 | AG102: Buttons | AI102: sheet2
A103: 回帰：各ステップの出力 | B103: FALSE | X103: maineffect | Y103: 主効果を全投入 | Z103: 411 | AA103: 973.5 | AB103: 87 | AC103: 31.5 | AD103: Interface.maineffect | AF103: 1 | AG103: Buttons | AI103: sheet2
A104: 回帰：媒介分析 | B104: FALSE | X104: interaction | Y104: 交互作用を全投入 | Z104: 523.5 | AA104: 972.75 | AB104: 87 | AC104: 31.5 | AD104: Interface.interaction | AF104: 2 | AG104: Buttons | AI104: sheet2
A105: 回帰：残差得点 | B105: FALSE | X105: regoption | Y105: オプション | Z105: 658.5 | AA105: 973.5 | AB105: 87 | AC105: 30.75 | AD105: Interface.regoption | AF105: 1 | AG105: Buttons | AI105: sheet2
A106: 回帰：交互作用項得点 | B106: FALSE | X106: regrun | Y106: 分析実行 | Z106: 764.25 | AA106: 973.5 | AB106: 87 | AC106: 30.75 | AD106: Interface.regrun | AF106: 1 | AG106: Buttons | AI106: sheet2
A107: 因子：分析オプション | B107: 1 | C107: 1:因子分析，2:クラスタ分析，3:対応分析，4:構造方程式モデル | X107: slice | Y107: スライス | Z107: 545.25 | AA107: 1162.5 | AB107: 87 | AC107: 28.5 | AD107: Interface.slice | AF107: 2 | AG107: Buttons | AI107: sheet2
A108: 因子：上書きしない | B108: FALSE | X108: cellmean | Y108: 各セルの平均値 | Z108: 655.5 | AA108: 1162.5 | AB108: 84.75 | AC108: 28.5 | AD108: Interface.cellmean | AF108: 1 | AG108: Buttons | AI108: sheet2
A109: 因子：固有値1以上まで | B109: FALSE | X109: modelsave | Y109: モデル保存 | Z109: 300 | AA109: 1208.25 | AB109: 57 | AC109: 27.75 | AD109: Interface.modelvariable | AF109: 1 | AG109: Buttons | AI109: sheet2
A110: 因子：抽出法 | B110: 1 | X110: linkdist | Y110: 媒介分析の設定 | Z110: 652.5 | AA110: 1162.5 | AB110: 88.5 | AC110: 28.5 | AD110: Interface.linkdist | AF110: 1 | AG110: Buttons | AI110: sheet2
A111: 因子：回転法 | B111: 1 | X111: swoption | Y111: Stepwiseの設定 | Z111: 651.75 | AA111: 1162.5 | AB111: 88.5 | AC111: 28.5 | AD111: Interface.swoption | AF111: 1 | AG111: Buttons | AI111: sheet2
A112: 因子：プロクラステス回転 | B112: FALSE | X112: had2glmmoption | Y112: HAD2GLIMMIXの設定 | Z112: 549 | AA112: 1161.75 | AB112: 105.75 | AC112: 25.5 | AD112: Interface.had2glimmixoption | AF112: 1 | AG112: Buttons | AI112: sheet2
A113: 因子得点 | B113: FALSE | X113: glmmstanoption | Y113: HAD2glmmstanの設定 | Z113: 631.5 | AA113: 1161.75 | AB113: 109.5 | AC113: 26.25 | AD113: Interface.glmmstanoption | AF113: 1 | AG113: Buttons | AI113: sheet2
A114: 尺度得点 | B114: FALSE | X114: history_hide | Y114: 履歴を非表示 | Z114: 207 | AA114: 10.5 | AB114: 78.75 | AC114: 21.75 | AD114: Interface.rirekihidden | AF114: 3 | AG114: Buttons | AI114: sheet5
A115: サイズで並び替え | B115: TRUE | X115: history_delete | Y115: 履歴を全消去 | Z115: 315 | AA115: 10.5 | AB115: 76.5 | AC115: 21.75 | AD115: Interface.rirekidel | AF115: 3 | AG115: Buttons | AI115: sheet5
A116: 相関行列 | B116: FALSE | X116: boot_ttm | Y116: 起動 | Z116: 12 | AA116: 40.5 | AB116: 51.75 | AC116: 36.75 | AD116: Interface.ttm2hadrun | AF116: 3 | AG116: Buttons | AI116: sheet7
A117: 多次元尺度法 | B117: FALSE | C117: FALSE | D117: FALSE | X117: close_ttm | Y117: 閉じる | Z117: 12 | AA117: 168 | AB117: 51.75 | AC117: 35.25 | AD117: Interface.ttm2hadhidden | AF117: 3 | AG117: Buttons | AI117: sheet7
A118: 回帰：ステップワイズ法 | B118: FALSE | X118: sheetmanageb | Y118: シート 管理 | Z118: 12 | AA118: 93 | AB118: 51.75 | AC118: 35.25 | AD118: Interface.sheetmanage | AF118: 3 | AG118: Buttons | AI118: sheet7
A119: クラスター標準化 | B119: FALSE
A120: 多変量正規乱数のサンプルサイズ | B120: 100
A121: 多変量正規乱数の設定 | B121: 1 | C121: 1:ローデータ, 2:共分散データ
A122: データセットマルチページ | B122: 0
A123: .
A124: 回帰分析の最大反復回数 | B124: 500
A125: 回帰分析の収束基準 | B125: 1e-05
A126: 連続データの推定法 | B126: 0 | C126: 0:最小二乗法, 1:最尤法
A127: 頑健標準誤差のタイプ | B127: FALSE | C127: True:クラスタ、False:不均一分散
A128: HLM用の設定
A129: HLMの最大反復回数 | B129: 500
A130: HLMの収束基準 | B130: 1e-06
A131: 頑健標準誤差のタイプ | B131: TRUE | C131: 0:モデル、1:頑健標準誤差
A132: HLMカテゴリカル変数 | B132: 0 | C132: 0：そのまま、１：カテゴリカルとして扱う
A133: レベル1の変数の中心化 | B133: FALSE | C133: 0:なし、１：あり
A134: レベル2の変数の中心化 | B134: FALSE | C134: ０：なし、１：あり
A135: HLMで交互作用のとき中心化 | B135: 1 | C135: 0:なし、１：あり
A136: HLMの固定効果の共分散 | B136: 0 | C136: 0:出力しない、1:出力する
A137: Nullモデルの出力 | B137: 0 | C137: 0:出力しない、1:出力する
A138: 切片の変量効果 | B138: 1 | C138: 1:推定する、0：しない
A139: 判別分析チェック | B139: FALSE
A140: 多変量チェック | B140: FALSE
A141: 回帰：フィルタをオフ | B141: FALSE
A142: 因子：フィルタをオフ | B142: FALSE
A143: 切り替えチェックボックス | B143: TRUE
A144: 構造方程式モデルオプション記録 | B144: FALSE | C144: 1 | D144: 1 | E144: TRUE | F144: FALSE | G144: FALSE | H144: FALSE
A145: 因子分析オプション記録 | B145: FALSE | C145: 1 | D145: 1 | E145: FALSE | F145: FALSE | G145: TRUE | H145: FALSE
A146: クラスタ分析オプション記録 | B146: FALSE | C146: 1 | D146: 1 | E146: FALSE | F146: FALSE | G146: TRUE | H146: TRUE
A147: 対応分析オプション記録 | B147: FALSE | C147: 1 | D147: 1 | E147: FALSE | F147: FALSE | G147: TRUE | H147: FALSE
A148: 因子数記録 | B148: 1 | C148: 2 | D148: 2 | E148: 0
A149: 散布図の線形近似直線 | B149: 0
A150: 媒介分析の表示 | B150: 1 | C150: 0:非標準化, 1:標準化
A151: エラーバーの下側 | B151: 1 | C151: 0:表示しない, 1:表示する
A152: 棒グラフのモノクロ | B152: 1 | C152: 0：カラー, 1:モノクロ
A153: グラフの枠線 | B153: 0 | C153: 0：枠線なし， 1:枠線あり
A154: マーカーを表示しない | B154: 0
A155: 回帰係数の共分散行列 | B155: 0
A156: 折れ線グラフのエラーバー | B156: 1
A157: ショートカットキー | B157: q | C157: e | D157: r | E157: w
A158: 交互作用項の階層的投入 | B158: FALSE
A159: 効果量のタイプ | B159: 2 | C159: 0:相関係数, 1:cohen's d 2: Hedges's g
A160: 回帰モデル保存マルチページ | B160: 0
A161: 因子モデル保存マルチページ | B161: 0
A162: 履歴の最大数 | B162: 100
A163: ηかω | B163: 0 | C163: 0η 1ω
A164: 一般化効果量 | B164: 0
A165: 尺度得点の計算法 | B165: 0 | C165: 0平均値，１：合計値
A166: GZLMでt分布で検定 | B166: FALSE
A167: 重回帰の頑健標準誤差 | B167: 1 | C167: 1:補正なし，2:不均一分散，3:クラスタ内相関
A168: HLMでｔ分布で検定 | B168: TRUE
A169: SEM用モデルスペース | B169: 0
A170: 分散を非負に推定する | B170: TRUE
A171: 外生変数を推定 | B171: TRUE
A172: パス図を描画 | B172: 0
A173: 情報行列の計算のためのeps | B173: 0.0001
A174: SEM推定の精度 | B174: 1e-05
A175: SEM推定の最大反復数 | B175: 500
A176: SEM推定の収束基準 | B176: 1e-05
A177: CFAサイズでソート | B177: 0
A178: パス図の結果を標準化解 | B178: 0
A179: @変数の数 | B179: 0
A180: 因子得点算出 | B180: 1 | C180: 0:因子間相関を反映，1：回帰法
A181: 結果シートの出力先 | B181: 0 | C181: 0:前，1:最後尾
A182: ブートストラップ リサンプリング数 | B182: 2000
A183: ブートストラップ ランダマイズ | B183: 0
A184: ロバスト回帰分析 | B184: 0
A185: EAP推定の積分 | B185: 0 | C185: 0：区分求積法，1：モンテカルロ法
A186: 頑健標準誤差SEM | B186: FALSE
A187: 欠損値推定SEM | B187: FALSE
A188: マルチレベルSEM | B188: 0
A189: カテゴリカル因子分析でソルバ― | B189: 1
A190: TTMのパス
A191: TTM 最小頻度数 | B191: 1 | J191: 4,0,5,1,0,0,0,###Factor1
A192: TTMチェックボックス | B192: FALSE | C192: TRUE | D192: TRUE | E192: FALSE | F192: TRUE | G192: TRUE
A193: TTMクラスタ数 | B193: 2 | J193: 4,0,2,1#0#1#0#0#0#0,0,0,0,###salary HR
A194: TTMクラスタ分析方法 | B194: 7 | J194: 4,0,2,1#0#1#0#0#0#0,0,0,0,###salary HR
A195: TTMスコアデータ出力 | B195: FALSE
A196: TTM次元数 | B196: 2
A197: TTM マルチページ | B197: 0
A198: TTMクラスタ出力 | B198: FALSE
A199: TTMクラスタデータのシート名 | B199: Cluster_data
A200: TTM対応分析次元数 | B200: 2
... 179 more rows

Sheet $data_cov$ (hidden)

Sheet History (hidden)
A2: 分析履歴
A4: 番号 | B4: 日付 | C4: コード | D4: 要約

Sheet $Calculation$ (hidden)
A1: goupID | B1: dep | D1: fix1 | E1: fix2 | F1: fix3 | G1: fix4 | H1: fix5 | J1: random1 | L1: rd | N1: 1.448518522
A2: 1 | B2: 3 | D2: 1 | E2: 3 | F2: 3 | G2: 1 | H2: 1 | J2: 1 | L2: =$B$2-MMULT($D$2:$H$2,beta) -> -0.03517794753 | N2: 0.2021669586 | Q2: =invsigma*_xlfn.MUNIT(3)- MMULT(MMULT($J$2:$J$4,MINVERSE(MMULT(TRANSPOSE($J$2:$J$4),$J$2:$J$4)*invsigma+invcovm)),TRANSPOSE($J$2:$J$4))*invsigma^2 -> 1.459731364 | R2: -0.3234334588 | S2: -0.3234334588 | U2: =MMULT(MMULT(TRANSPOSE($L$2:$L$4),$Q$2:$S$4),$L$2:$L$4) -> 0.1103319121 | V2: =LN(MDETERM(MMULT(MMULT($J$2:$J$4,covm),TRANSPOSE($J$2:$J$4))+(sigma*_xlfn.MUNIT(3)))) -> -0.9495886359 | X2: =(SUM($U$2:$U$101)+SUM($V$2:$V$101))*0.5 -> 102.2098423
A3: 1 | B3: 3 | D3: 1 | E3: 2 | F3: 3 | G3: 3 | H3: 1 | J3: 1 | L3: =$B$3-MMULT($D$3:$H$3,beta) -> -0.2874345699 | N3: 0.1631333498 | Q3: -0.3234334588 | R3: 1.459731364 | S3: -0.3234334588 | U3: =MMULT(MMULT(TRANSPOSE($L$5:$L$7),$Q$5:$S$7),$L$5:$L$7) -> 0.5055575612 | V3: =LN(MDETERM(MMULT(MMULT($J$5:$J$7,covm),TRANSPOSE($J$5:$J$7))+(sigma*_xlfn.MUNIT(3)))) -> -0.9495886359
A4: 1 | B4: 3 | D4: 1 | E4: 3 | F4: 3 | G4: 1 | H4: 1 | J4: 1 | L4: =$B$4-MMULT($D$4:$H$4,beta) -> -0.03517794753 | N4: 0.2272117905 | Q4: -0.3234334588 | R4: -0.3234334588 | S4: 1.459731364 | U4: =MMULT(MMULT(TRANSPOSE($L$8:$L$10),$Q$8:$S$10),$L$8:$L$10) -> 7.116830869 | V4: =LN(MDETERM(MMULT(MMULT($J$8:$J$10,covm),TRANSPOSE($J$8:$J$10))+(sigma*_xlfn.MUNIT(3)))) -> -0.9495886359
A5: 2 | B5: 3 | D5: 1 | E5: 3 | F5: 3 | G5: 3 | H5: 2.558717127e-17 | J5: 1 | L5: =$B$5-MMULT($D$5:$H$5,beta) -> -0.2260548192 | N5: 0.2635467093 | Q5: =invsigma*_xlfn.MUNIT(3)- MMULT(MMULT($J$5:$J$7,MINVERSE(MMULT(TRANSPOSE($J$5:$J$7),$J$5:$J$7)*invsigma+invcovm)),TRANSPOSE($J$5:$J$7))*invsigma^2 -> 1.459731364 | R5: -0.3234334588 | S5: -0.3234334588 | U5: =MMULT(MMULT(TRANSPOSE($L$11:$L$13),$Q$11:$S$13),$L$11:$L$13) -> 12.84696832 | V5: =LN(MDETERM(MMULT(MMULT($J$11:$J$13,covm),TRANSPOSE($J$11:$J$13))+(sigma*_xlfn.MUNIT(3)))) -> -0.9495886359
A6: 2 | B6: 2 | D6: 1 | E6: 1 | F6: 3 | G6: 2 | H6: 2.558717127e-17 | J6: 1 | L6: =$B$6-MMULT($D$6:$H$6,beta) -> -0.5945091115 | N6: 0.4723758259 | Q6: -0.3234334588 | R6: 1.459731364 | S6: -0.3234334588 | U6: =MMULT(MMULT(TRANSPOSE($L$14:$L$16),$Q$14:$S$16),$L$14:$L$16) -> 3.993985777 | V6: =LN(MDETERM(MMULT(MMULT($J$14:$J$16,covm),TRANSPOSE($J$14:$J$16))+(sigma*_xlfn.MUNIT(3)))) -> -0.9495886359
A7: 2 | B7: 2 | D7: 1 | E7: 1 | F7: 3 | G7: 1 | H7: 2.558717127e-17 | J7: 1 | L7: =$B$7-MMULT($D$7:$H$7,beta) -> -0.367297321 | N7: 0.5608006547 | Q7: -0.3234334588 | R7: -0.3234334588 | S7: 1.459731364 | U7: =MMULT(MMULT(TRANSPOSE($L$17:$L$18),$Q$17:$R$18),$L$17:$L$18) -> 0.4408095025 | V7: =LN(MDETERM(MMULT(MMULT($J$17:$J$18,covm),TRANSPOSE($J$17:$J$18))+(sigma*_xlfn.MUNIT(2)))) -> -0.5713362144
A8: 3 | B8: 1 | D8: 1 | E8: 3 | F8: 2 | G8: 3 | H8: 2.558717127e-17 | J8: 1 | L8: =$B$8-MMULT($D$8:$H$8,beta) -> -2.062921469 | Q8: =invsigma*_xlfn.MUNIT(3)- MMULT(MMULT($J$8:$J$10,MINVERSE(MMULT(TRANSPOSE($J$8:$J$10),$J$8:$J$10)*invsigma+invcovm)),TRANSPOSE($J$8:$J$10))*invsigma^2 -> 1.459731364 | R8: -0.3234334588 | S8: -0.3234334588 | U8: =MMULT(MMULT(TRANSPOSE($L$19:$L$21),$Q$19:$S$21),$L$19:$L$21) -> 2.667428456 | V8: =LN(MDETERM(MMULT(MMULT($J$19:$J$21,covm),TRANSPOSE($J$19:$J$21))+(sigma*_xlfn.MUNIT(3)))) -> -0.9495886359
A9: 3 | B9: 3 | D9: 1 | E9: 3 | F9: 2 | G9: 2 | H9: 2.558717127e-17 | J9: 1 | L9: =$B$9-MMULT($D$9:$H$9,beta) -> 0.1642903211 | N9: unit matrix | Q9: -0.3234334588 | R9: 1.459731364 | S9: -0.3234334588 | U9: =MMULT(MMULT(TRANSPOSE($L$22:$L$24),$Q$22:$S$24),$L$22:$L$24) -> 0.1001240335 | V9: =LN(MDETERM(MMULT(MMULT($J$22:$J$24,covm),TRANSPOSE($J$22:$J$24))+(sigma*_xlfn.MUNIT(3)))) -> -0.9495886359
A10: 3 | B10: 3 | D10: 1 | E10: 2 | F10: 2 | G10: 2 | H10: 2.558717127e-17 | J10: 1 | L10: =$B$10-MMULT($D$10:$H$10,beta) -> 0.3664572797 | N10: 1 | Q10: -0.3234334588 | R10: -0.3234334588 | S10: 1.459731364 | U10: =MMULT(MMULT(TRANSPOSE($L$25:$L$27),$Q$25:$S$27),$L$25:$L$27) -> 8.991577044 | V10: =LN(MDETERM(MMULT(MMULT($J$25:$J$27,covm),TRANSPOSE($J$25:$J$27))+(sigma*_xlfn.MUNIT(3)))) -> -0.9495886359
A11: 4 | B11: 1 | D11: 1 | E11: 4 | F11: 1 | G11: 2 | H11: 1 | J11: 1 | L11: =$B$11-MMULT($D$11:$H$11,beta) -> -2.138289997 | Q11: =invsigma*_xlfn.MUNIT(3)- MMULT(MMULT($J$11:$J$13,MINVERSE(MMULT(TRANSPOSE($J$11:$J$13),$J$11:$J$13)*invsigma+invcovm)),TRANSPOSE($J$11:$J$13))*invsigma^2 -> 1.459731364 | R11: -0.3234334588 | S11: -0.3234334588 | U11: =MMULT(MMULT(TRANSPOSE($L$28:$L$30),$Q$28:$S$30),$L$28:$L$30) -> 4.028918775 | V11: =LN(MDETERM(MMULT(MMULT($J$28:$J$30,covm),TRANSPOSE($J$28:$J$30))+(sigma*_xlfn.MUNIT(3)))) -> -0.9495886359
A12: 4 | B12: 1 | D12: 1 | E12: 4 | F12: 1 | G12: 3 | H12: 1 | J12: 1 | L12: =$B$12-MMULT($D$12:$H$12,beta) -> -2.365501788 | N12: corr matrix | Q12: -0.3234334588 | R12: 1.459731364 | S12: -0.3234334588 | U12: =MMULT(MMULT(TRANSPOSE($L$31:$L$33),$Q$31:$S$33),$L$31:$L$33) -> 1.858937728 | V12: =LN(MDETERM(MMULT(MMULT($J$31:$J$33,covm),TRANSPOSE($J$31:$J$33))+(sigma*_xlfn.MUNIT(3)))) -> -0.9495886359
A13: 4 | B13: 1 | D13: 1 | E13: 4 | F13: 1 | G13: 3 | H13: 1 | J13: 1 | L13: =$B$13-MMULT($D$13:$H$13,beta) -> -2.365501788 | N13: 1 | Q13: -0.3234334588 | R13: -0.3234334588 | S13: 1.459731364 | U13: =MMULT(MMULT(TRANSPOSE($L$34:$L$36),$Q$34:$S$36),$L$34:$L$36) -> 1.352288081 | V13: =LN(MDETERM(MMULT(MMULT($J$34:$J$36,covm),TRANSPOSE($J$34:$J$36))+(sigma*_xlfn.MUNIT(3)))) -> -0.9495886359
A14: 5 | B14: 2 | D14: 1 | E14: 2 | F14: 5 | G14: 2 | H14: 1 | J14: 1 | L14: =$B$14-MMULT($D$14:$H$14,beta) -> -1.386489479 | Q14: =invsigma*_xlfn.MUNIT(3)- MMULT(MMULT($J$14:$J$16,MINVERSE(MMULT(TRANSPOSE($J$14:$J$16),$J$14:$J$16)*invsigma+invcovm)),TRANSPOSE($J$14:$J$16))*invsigma^2 -> 1.459731364 | R14: -0.3234334588 | S14: -0.3234334588 | U14: =MMULT(MMULT(TRANSPOSE($L$37:$L$39),$Q$37:$S$39),$L$37:$L$39) -> 2.085009417 | V14: =LN(MDETERM(MMULT(MMULT($J$37:$J$39,covm),TRANSPOSE($J$37:$J$39))+(sigma*_xlfn.MUNIT(3)))) -> -0.9495886359
A15: 5 | B15: 3 | D15: 1 | E15: 4 | F15: 5 | G15: 3 | H15: 1 | J15: 1 | L15: =$B$15-MMULT($D$15:$H$15,beta) -> -1.018035187 | N15: tau matrix | Q15: -0.3234334588 | R15: 1.459731364 | S15: -0.3234334588 | U15: =MMULT(MMULT(TRANSPOSE($L$40:$L$42),$Q$40:$S$42),$L$40:$L$42) -> 1.051579365 | V15: =LN(MDETERM(MMULT(MMULT($J$40:$J$42,covm),TRANSPOSE($J$40:$J$42))+(sigma*_xlfn.MUNIT(3)))) -> -0.9495886359
A16: 5 | B16: 2 | D16: 1 | E16: 3 | F16: 5 | G16: 1 | H16: 1 | J16: 1 | L16: =$B$16-MMULT($D$16:$H$16,beta) -> -1.361444647 | N16: =MMULT(MMULT(tau*unit,corrm),(tau*unit)) -> 0.2231389209 | Q16: -0.3234334588 | R16: -0.3234334588 | S16: 1.459731364 | U16: =MMULT(MMULT(TRANSPOSE($L$43:$L$45),$Q$43:$S$45),$L$43:$L$45) -> 0.5438704358 | V16: =LN(MDETERM(MMULT(MMULT($J$43:$J$45,covm),TRANSPOSE($J$43:$J$45))+(sigma*_xlfn.MUNIT(3)))) -> -0.9495886359
A17: 6 | B17: 3 | D17: 1 | E17: 3 | F17: 5 | G17: 3 | H17: 2.558717127e-17 | J17: 1 | L17: =$B$17-MMULT($D$17:$H$17,beta) -> -0.5523215188 | Q17: =invsigma*_xlfn.MUNIT(2)- MMULT(MMULT($J$17:$J$18,MINVERSE(MMULT(TRANSPOSE($J$17:$J$18),$J$17:$J$18)*invsigma+invcovm)),TRANSPOSE($J$17:$J$18))*invsigma^2 -> 1.38806804 | R17: -0.3950967831 | U17: =MMULT(MMULT(TRANSPOSE($L$46:$L$48),$Q$46:$S$48),$L$46:$L$48) -> 2.713246378 | V17: =LN(MDETERM(MMULT(MMULT($J$46:$J$48,covm),TRANSPOSE($J$46:$J$48))+(sigma*_xlfn.MUNIT(3)))) -> -0.9495886359
A18: 6 | B18: 3 | D18: 1 | E18: 2 | F18: 5 | G18: 3 | H18: 2.558717127e-17 | J18: 1 | L18: =$B$18-MMULT($D$18:$H$18,beta) -> -0.3501545602 | N18: invcovm | Q18: -0.3950967831 | R18: 1.38806804 | U18: =MMULT(MMULT(TRANSPOSE($L$49:$L$51),$Q$49:$S$51),$L$49:$L$51) -> 7.417407496 | V18: =LN(MDETERM(MMULT(MMULT($J$49:$J$51,covm),TRANSPOSE($J$49:$J$51))+(sigma*_xlfn.MUNIT(3)))) -> -0.9495886359
A19: 6 | B19: 4 | D19: 1 | E19: 3 | F19: 7 | G19: 3 | H19: 1 | J19: 1 | L19: =$B$19-MMULT($D$19:$H$19,beta) -> -0.1421349277 | N19: =MINVERSE(covm) -> 4.481513113 | Q19: =invsigma*_xlfn.MUNIT(3)- MMULT(MMULT($J$19:$J$21,MINVERSE(MMULT(TRANSPOSE($J$19:$J$21),$J$19:$J$21)*invsigma+invcovm)),TRANSPOSE($J$19:$J$21))*invsigma^2 -> 1.459731364 | R19: -0.3234334588 | S19: -0.3234334588 | U19: =MMULT(MMULT(TRANSPOSE($L$52:$L$54),$Q$52:$S$54),$L$52:$L$54) -> 0.6146301563 | V19: =LN(MDETERM(MMULT(MMULT($J$52:$J$54,covm),TRANSPOSE($J$52:$J$54))+(sigma*_xlfn.MUNIT(3)))) -> -0.9495886359
A20: 7 | B20: 3 | D20: 1 | E20: 4 | F20: 7 | G20: 3 | H20: 1 | J20: 1 | L20: =$B$20-MMULT($D$20:$H$20,beta) -> -1.344301886 | Q20: -0.3234334588 | R20: 1.459731364 | S20: -0.3234334588 | U20: =MMULT(MMULT(TRANSPOSE($L$55:$L$57),$Q$55:$S$57),$L$55:$L$57) -> 6.082046954 | V20: =LN(MDETERM(MMULT(MMULT($J$55:$J$57,covm),TRANSPOSE($J$55:$J$57))+(sigma*_xlfn.MUNIT(3)))) -> -0.9495886359
A21: 7 | B21: 4 | D21: 1 | E21: 4 | F21: 7 | G21: 1 | H21: 1 | J21: 1 | L21: =$B$21-MMULT($D$21:$H$21,beta) -> 0.1101216947 | N21: invsigma | Q21: -0.3234334588 | R21: -0.3234334588 | S21: 1.459731364 | U21: =MMULT(MMULT(TRANSPOSE($L$58:$L$60),$Q$58:$S$60),$L$58:$L$60) -> 2.271914246 | V21: =LN(MDETERM(MMULT(MMULT($J$58:$J$60,covm),TRANSPOSE($J$58:$J$60))+(sigma*_xlfn.MUNIT(3)))) -> -0.9495886359
A22: 7 | B22: 3 | D22: 1 | E22: 4 | F22: 3 | G22: 1 | H22: 2.558717127e-17 | J22: 1 | L22: =$B$22-MMULT($D$22:$H$22,beta) -> 0.02620180315 | N22: =1/sigma -> 1.783164823 | Q22: =invsigma*_xlfn.MUNIT(3)- MMULT(MMULT($J$22:$J$24,MINVERSE(MMULT(TRANSPOSE($J$22:$J$24),$J$22:$J$24)*invsigma+invcovm)),TRANSPOSE($J$22:$J$24))*invsigma^2 -> 1.459731364 | R22: -0.3234334588 | S22: -0.3234334588 | U22: =MMULT(MMULT(TRANSPOSE($L$61:$L$63),$Q$61:$S$63),$L$61:$L$63) -> 4.241997248 | V22: =LN(MDETERM(MMULT(MMULT($J$61:$J$63,covm),TRANSPOSE($J$61:$J$63))+(sigma*_xlfn.MUNIT(3)))) -> -0.9495886359
A23: 8 | B23: 3 | D23: 1 | E23: 3 | F23: 3 | G23: 1 | H23: 2.558717127e-17 | J23: 1 | L23: =$B$23-MMULT($D$23:$H$23,beta) -> 0.2283687618 | Q23: -0.3234334588 | R23: 1.459731364 | S23: -0.3234334588 | U23: =MMULT(MMULT(TRANSPOSE($L$64:$L$66),$Q$64:$S$66),$L$64:$L$66) -> 1.099122473 | V23: =LN(MDETERM(MMULT(MMULT($J$64:$J$66,covm),TRANSPOSE($J$64:$J$66))+(sigma*_xlfn.MUNIT(3)))) -> -0.9495886359
A24: 8 | B24: 3 | D24: 1 | E24: 2 | F24: 3 | G24: 2 | H24: 2.558717127e-17 | J24: 1 | L24: =$B$24-MMULT($D$24:$H$24,beta) -> 0.2033239299 | Q24: -0.3234334588 | R24: -0.3234334588 | S24: 1.459731364 | U24: =MMULT(MMULT(TRANSPOSE($L$67:$L$69),$Q$67:$S$69),$L$67:$L$69) -> 3.388609936 | V24: =LN(MDETERM(MMULT(MMULT($J$67:$J$69,covm),TRANSPOSE($J$67:$J$69))+(sigma*_xlfn.MUNIT(3)))) -> -0.9495886359
A25: 8 | B25: 1 | D25: 1 | E25: 2 | F25: 4 | G25: 2 | H25: 2.558717127e-17 | J25: 1 | L25: =$B$25-MMULT($D$25:$H$25,beta) -> -1.95980942 | Q25: =invsigma*_xlfn.MUNIT(3)- MMULT(MMULT($J$25:$J$27,MINVERSE(MMULT(TRANSPOSE($J$25:$J$27),$J$25:$J$27)*invsigma+invcovm)),TRANSPOSE($J$25:$J$27))*invsigma^2 -> 1.459731364 | R25: -0.3234334588 | S25: -0.3234334588 | U25: =MMULT(MMULT(TRANSPOSE($L$70:$L$72),$Q$70:$S$72),$L$70:$L$72) -> 2.427820928 | V25: =LN(MDETERM(MMULT(MMULT($J$70:$J$72,covm),TRANSPOSE($J$70:$J$72))+(sigma*_xlfn.MUNIT(3)))) -> -0.9495886359
A26: 9 | B26: 4 | D26: 1 | E26: 4 | F26: 4 | G26: 3 | H26: 2.558717127e-17 | J26: 1 | L26: =$B$26-MMULT($D$26:$H$26,beta) -> 0.4086448724 | Q26: -0.3234334588 | R26: 1.459731364 | S26: -0.3234334588 | U26: =MMULT(MMULT(TRANSPOSE($L$73:$L$75),$Q$73:$S$75),$L$73:$L$75) -> 1.476889364 | V26: =LN(MDETERM(MMULT(MMULT($J$73:$J$75,covm),TRANSPOSE($J$73:$J$75))+(sigma*_xlfn.MUNIT(3)))) -> -0.9495886359
A27: 9 | B27: 4 | D27: 1 | E27: 2 | F27: 4 | G27: 2 | H27: 2.558717127e-17 | J27: 1 | L27: =$B$27-MMULT($D$27:$H$27,beta) -> 1.04019058 | Q27: -0.3234334588 | R27: -0.3234334588 | S27: 1.459731364 | U27: =MMULT(MMULT(TRANSPOSE($L$76:$L$78),$Q$76:$S$78),$L$76:$L$78) -> 1.131848301 | V27: =LN(MDETERM(MMULT(MMULT($J$76:$J$78,covm),TRANSPOSE($J$76:$J$78))+(sigma*_xlfn.MUNIT(3)))) -> -0.9495886359
A28: 9 | B28: 5 | D28: 1 | E28: 4 | F28: 5 | G28: 3 | H28: 1 | J28: 1 | L28: =$B$28-MMULT($D$28:$H$28,beta) -> 0.9819648133 | Q28: =invsigma*_xlfn.MUNIT(3)- MMULT(MMULT($J$28:$J$30,MINVERSE(MMULT(TRANSPOSE($J$28:$J$30),$J$28:$J$30)*invsigma+invcovm)),TRANSPOSE($J$28:$J$30))*invsigma^2 -> 1.459731364 | R28: -0.3234334588 | S28: -0.3234334588 | U28: =MMULT(MMULT(TRANSPOSE($L$79:$L$81),$Q$79:$S$81),$L$79:$L$81) -> 1.051579365 | V28: =LN(MDETERM(MMULT(MMULT($J$79:$J$81,covm),TRANSPOSE($J$79:$J$81))+(sigma*_xlfn.MUNIT(3)))) -> -0.9495886359
A29: 10 | B29: 5 | D29: 1 | E29: 3 | F29: 5 | G29: 1 | H29: 1 | J29: 1 | L29: =$B$29-MMULT($D$29:$H$29,beta) -> 1.638555353 | Q29: -0.3234334588 | R29: 1.459731364 | S29: -0.3234334588 | U29: =MMULT(MMULT(TRANSPOSE($L$82:$L$84),$Q$82:$S$84),$L$82:$L$84) -> 0.4560156624 | V29: =LN(MDETERM(MMULT(MMULT($J$82:$J$84,covm),TRANSPOSE($J$82:$J$84))+(sigma*_xlfn.MUNIT(3)))) -> -0.9495886359
A30: 10 | B30: 5 | D30: 1 | E30: 4 | F30: 5 | G30: 3 | H30: 1 | J30: 1 | L30: =$B$30-MMULT($D$30:$H$30,beta) -> 0.9819648133 | Q30: -0.3234334588 | R30: -0.3234334588 | S30: 1.459731364 | U30: =MMULT(MMULT(TRANSPOSE($L$85:$L$87),$Q$85:$S$87),$L$85:$L$87) -> 0.123523206 | V30: =LN(MDETERM(MMULT(MMULT($J$85:$J$87,covm),TRANSPOSE($J$85:$J$87))+(sigma*_xlfn.MUNIT(3)))) -> -0.9495886359
A31: 10 | B31: 4 | D31: 1 | E31: 3 | F31: 8 | G31: 2 | H31: 2.558717127e-17 | J31: 1 | L31: =$B$31-MMULT($D$31:$H$31,beta) -> 0.1854902223 | Q31: =invsigma*_xlfn.MUNIT(3)- MMULT(MMULT($J$31:$J$33,MINVERSE(MMULT(TRANSPOSE($J$31:$J$33),$J$31:$J$33)*invsigma+invcovm)),TRANSPOSE($J$31:$J$33))*invsigma^2 -> 1.459731364 | R31: -0.3234334588 | S31: -0.3234334588 | U31: =MMULT(MMULT(TRANSPOSE($L$88:$L$90),$Q$88:$S$90),$L$88:$L$90) -> 0.9195799454 | V31: =LN(MDETERM(MMULT(MMULT($J$88:$J$90,covm),TRANSPOSE($J$88:$J$90))+(sigma*_xlfn.MUNIT(3)))) -> -0.9495886359
A32: 11 | B32: 3 | D32: 1 | E32: 4 | F32: 8 | G32: 2 | H32: 2.558717127e-17 | J32: 1 | L32: =$B$32-MMULT($D$32:$H$32,beta) -> -1.016676736 | Q32: -0.3234334588 | R32: 1.459731364 | S32: -0.3234334588 | U32: =MMULT(MMULT(TRANSPOSE($L$91:$L$93),$Q$91:$S$93),$L$91:$L$93) -> 1.880710347 | V32: =LN(MDETERM(MMULT(MMULT($J$91:$J$93,covm),TRANSPOSE($J$91:$J$93))+(sigma*_xlfn.MUNIT(3)))) -> -0.9495886359
A33: 11 | B33: 4 | D33: 1 | E33: 4 | F33: 8 | G33: 1 | H33: 2.558717127e-17 | J33: 1 | L33: =$B$33-MMULT($D$33:$H$33,beta) -> 0.2105350542 | Q33: -0.3234334588 | R33: -0.3234334588 | S33: 1.459731364 | U33: =MMULT(MMULT(TRANSPOSE($L$94:$L$96),$Q$94:$S$96),$L$94:$L$96) -> 2.53797688 | V33: =LN(MDETERM(MMULT(MMULT($J$94:$J$96,covm),TRANSPOSE($J$94:$J$96))+(sigma*_xlfn.MUNIT(3)))) -> -0.9495886359
A34: 11 | B34: 3 | D34: 1 | E34: 3 | F34: 6 | G34: 3 | H34: 1 | J34: 1 | L34: =$B$34-MMULT($D$34:$H$34,beta) -> -0.9790015779 | Q34: =invsigma*_xlfn.MUNIT(3)- MMULT(MMULT($J$34:$J$36,MINVERSE(MMULT(TRANSPOSE($J$34:$J$36),$J$34:$J$36)*invsigma+invcovm)),TRANSPOSE($J$34:$J$36))*invsigma^2 -> 1.459731364 | R34: -0.3234334588 | S34: -0.3234334588 | U34: =MMULT(MMULT(TRANSPOSE($L$97:$L$99),$Q$97:$S$99),$L$97:$L$99) -> 0.9611360699 | V34: =LN(MDETERM(MMULT(MMULT($J$97:$J$99,covm),TRANSPOSE($J$97:$J$99))+(sigma*_xlfn.MUNIT(3)))) -> -0.9495886359
A35: 12 | B35: 3 | D35: 1 | E35: 3 | F35: 6 | G35: 1 | H35: 1 | J35: 1 | L35: =$B$35-MMULT($D$35:$H$35,beta) -> -0.5245779969 | Q35: -0.3234334588 | R35: 1.459731364 | S35: -0.3234334588 | U35: =MMULT(MMULT(TRANSPOSE($L$100:$L$102),$Q$100:$S$102),$L$100:$L$102) -> 7.635110041 | V35: =LN(MDETERM(MMULT(MMULT($J$100:$J$102,covm),TRANSPOSE($J$100:$J$102))+(sigma*_xlfn.MUNIT(3)))) -> -0.9495886359
A36: 12 | B36: 4 | D36: 1 | E36: 5 | F36: 6 | G36: 2 | H36: 1 | J36: 1 | L36: =$B$36-MMULT($D$36:$H$36,beta) -> -0.1561237047 | Q36: -0.3234334588 | R36: -0.3234334588 | S36: 1.459731364 | U36: =MMULT(MMULT(TRANSPOSE($L$103:$L$105),$Q$103:$S$105),$L$103:$L$105) -> 1.886834761 | V36: =LN(MDETERM(MMULT(MMULT($J$103:$J$105,covm),TRANSPOSE($J$103:$J$105))+(sigma*_xlfn.MUNIT(3)))) -> -0.9495886359
A37: 12 | B37: 3 | D37: 1 | E37: 3 | F37: 4 | G37: 1 | H37: 2.558717127e-17 | J37: 1 | L37: =$B$37-MMULT($D$37:$H$37,beta) -> 0.06523541197 | Q37: =invsigma*_xlfn.MUNIT(3)- MMULT(MMULT($J$37:$J$39,MINVERSE(MMULT(TRANSPOSE($J$37:$J$39),$J$37:$J$39)*invsigma+invcovm)),TRANSPOSE($J$37:$J$39))*invsigma^2 -> 1.459731364 | R37: -0.3234334588 | S37: -0.3234334588 | U37: =MMULT(MMULT(TRANSPOSE($L$106:$L$108),$Q$106:$S$108),$L$106:$L$108) -> 1.129976821 | V37: =LN(MDETERM(MMULT(MMULT($J$106:$J$108,covm),TRANSPOSE($J$106:$J$108))+(sigma*_xlfn.MUNIT(3)))) -> -0.9495886359
A38: 13 | B38: 4 | D38: 1 | E38: 1 | F38: 4 | G38: 2 | H38: 2.558717127e-17 | J38: 1 | L38: =$B$38-MMULT($D$38:$H$38,beta) -> 1.242357539 | Q38: -0.3234334588 | R38: 1.459731364 | S38: -0.3234334588 | U38: =MMULT(MMULT(TRANSPOSE($L$109:$L$111),$Q$109:$S$111),$L$109:$L$111) -> 1.711965403 | V38: =LN(MDETERM(MMULT(MMULT($J$109:$J$111,covm),TRANSPOSE($J$109:$J$111))+(sigma*_xlfn.MUNIT(3)))) -> -0.9495886359
A39: 13 | B39: 3 | D39: 1 | E39: 2 | F39: 4 | G39: 1 | H39: 2.558717127e-17 | J39: 1 | L39: =$B$39-MMULT($D$39:$H$39,beta) -> 0.2674023706 | Q39: -0.3234334588 | R39: -0.3234334588 | S39: 1.459731364 | U39: =MMULT(MMULT(TRANSPOSE($L$112:$L$114),$Q$112:$S$114),$L$112:$L$114) -> 15.57004806 | V39: =LN(MDETERM(MMULT(MMULT($J$112:$J$114,covm),TRANSPOSE($J$112:$J$114))+(sigma*_xlfn.MUNIT(3)))) -> -0.9495886359
A40: 13 | B40: 4 | D40: 1 | E40: 3 | F40: 6 | G40: 1 | H40: 2.558717127e-17 | J40: 1 | L40: =$B$40-MMULT($D$40:$H$40,beta) -> 0.7389687124 | Q40: =invsigma*_xlfn.MUNIT(3)- MMULT(MMULT($J$40:$J$42,MINVERSE(MMULT(TRANSPOSE($J$40:$J$42),$J$40:$J$42)*invsigma+invcovm)),TRANSPOSE($J$40:$J$42))*invsigma^2 -> 1.459731364 | R40: -0.3234334588 | S40: -0.3234334588 | U40: =MMULT(MMULT(TRANSPOSE($L$115:$L$117),$Q$115:$S$117),$L$115:$L$117) -> 1.160313901 | V40: =LN(MDETERM(MMULT(MMULT($J$115:$J$117,covm),TRANSPOSE($J$115:$J$117))+(sigma*_xlfn.MUNIT(3)))) -> -0.9495886359
A41: 14 | B41: 4 | D41: 1 | E41: 3 | F41: 6 | G41: 3 | H41: 2.558717127e-17 | J41: 1 | L41: =$B$41-MMULT($D$41:$H$41,beta) -> 0.2845451314 | Q41: -0.3234334588 | R41: 1.459731364 | S41: -0.3234334588 | U41: =MMULT(MMULT(TRANSPOSE($L$118:$L$120),$Q$118:$S$120),$L$118:$L$120) -> 1.868469219 | V41: =LN(MDETERM(MMULT(MMULT($J$118:$J$120,covm),TRANSPOSE($J$118:$J$120))+(sigma*_xlfn.MUNIT(3)))) -> -0.9495886359
A42: 14 | B42: 3 | D42: 1 | E42: 3 | F42: 6 | G42: 1 | H42: 2.558717127e-17 | J42: 1 | L42: =$B$42-MMULT($D$42:$H$42,beta) -> -0.2610312876 | Q42: -0.3234334588 | R42: -0.3234334588 | S42: 1.459731364 | U42: =MMULT(MMULT(TRANSPOSE($L$121:$L$123),$Q$121:$S$123),$L$121:$L$123) -> 5.707697895 | V42: =LN(MDETERM(MMULT(MMULT($J$121:$J$123,covm),TRANSPOSE($J$121:$J$123))+(sigma*_xlfn.MUNIT(3)))) -> -0.9495886359
A43: 14 | B43: 3 | D43: 1 | E43: 3 | F43: 5 | G43: 2 | H43: 2.558717127e-17 | J43: 1 | L43: =$B$43-MMULT($D$43:$H$43,beta) -> -0.3251097283 | Q43: =invsigma*_xlfn.MUNIT(3)- MMULT(MMULT($J$43:$J$45,MINVERSE(MMULT(TRANSPOSE($J$43:$J$45),$J$43:$J$45)*invsigma+invcovm)),TRANSPOSE($J$43:$J$45))*invsigma^2 -> 1.459731364 | R43: -0.3234334588 | S43: -0.3234334588 | U43: =MMULT(MMULT(TRANSPOSE($L$124:$L$126),$Q$124:$S$126),$L$124:$L$126) -> 1.117927671 | V43: =LN(MDETERM(MMULT(MMULT($J$124:$J$126,covm),TRANSPOSE($J$124:$J$126))+(sigma*_xlfn.MUNIT(3)))) -> -0.9495886359
A44: 15 | B44: 4 | D44: 1 | E44: 3 | F44: 5 | G44: 3 | H44: 2.558717127e-17 | J44: 1 | L44: =$B$44-MMULT($D$44:$H$44,beta) -> 0.4476784812 | Q44: -0.3234334588 | R44: 1.459731364 | S44: -0.3234334588 | U44: =MMULT(MMULT(TRANSPOSE($L$127:$L$129),$Q$127:$S$129),$L$127:$L$129) -> 1.62274919 | V44: =LN(MDETERM(MMULT(MMULT($J$127:$J$129,covm),TRANSPOSE($J$127:$J$129))+(sigma*_xlfn.MUNIT(3)))) -> -0.9495886359
A45: 15 | B45: 3 | D45: 1 | E45: 1 | F45: 5 | G45: 2 | H45: 2.558717127e-17 | J45: 1 | L45: =$B$45-MMULT($D$45:$H$45,beta) -> 0.07922418893 | Q45: -0.3234334588 | R45: -0.3234334588 | S45: 1.459731364 | U45: =MMULT(MMULT(TRANSPOSE($L$130:$L$132),$Q$130:$S$132),$L$130:$L$132) -> 0.6076111471 | V45: =LN(MDETERM(MMULT(MMULT($J$130:$J$132,covm),TRANSPOSE($J$130:$J$132))+(sigma*_xlfn.MUNIT(3)))) -> -0.9495886359
A46: 15 | B46: 3 | D46: 1 | E46: 1 | F46: 5 | G46: 2 | H46: 2.558717127e-17 | J46: 1 | L46: =$B$46-MMULT($D$46:$H$46,beta) -> 0.07922418893 | Q46: =invsigma*_xlfn.MUNIT(3)- MMULT(MMULT($J$46:$J$48,MINVERSE(MMULT(TRANSPOSE($J$46:$J$48),$J$46:$J$48)*invsigma+invcovm)),TRANSPOSE($J$46:$J$48))*invsigma^2 -> 1.459731364 | R46: -0.3234334588 | S46: -0.3234334588 | U46: =MMULT(MMULT(TRANSPOSE($L$133:$L$135),$Q$133:$S$135),$L$133:$L$135) -> 0.3668183221 | V46: =LN(MDETERM(MMULT(MMULT($J$133:$J$135,covm),TRANSPOSE($J$133:$J$135))+(sigma*_xlfn.MUNIT(3)))) -> -0.9495886359
A47: 16 | B47: 3 | D47: 1 | E47: 1 | F47: 5 | G47: 2 | H47: 2.558717127e-17 | J47: 1 | L47: =$B$47-MMULT($D$47:$H$47,beta) -> 0.07922418893 | Q47: -0.3234334588 | R47: 1.459731364 | S47: -0.3234334588 | U47: =MMULT(MMULT(TRANSPOSE($L$136:$L$138),$Q$136:$S$138),$L$136:$L$138) -> 12.97817739 | V47: =LN(MDETERM(MMULT(MMULT($J$136:$J$138,covm),TRANSPOSE($J$136:$J$138))+(sigma*_xlfn.MUNIT(3)))) -> -0.9495886359
A48: 16 | B48: 2 | D48: 1 | E48: 3 | F48: 5 | G48: 2 | H48: 2.558717127e-17 | J48: 1 | L48: =$B$48-MMULT($D$48:$H$48,beta) -> -1.325109728 | Q48: -0.3234334588 | R48: -0.3234334588 | S48: 1.459731364 | U48: =MMULT(MMULT(TRANSPOSE($L$139:$L$141),$Q$139:$S$141),$L$139:$L$141) -> 1.822013239 | V48: =LN(MDETERM(MMULT(MMULT($J$139:$J$141,covm),TRANSPOSE($J$139:$J$141))+(sigma*_xlfn.MUNIT(3)))) -> -0.9495886359
A49: 16 | B49: 3 | D49: 1 | E49: 2 | F49: 8 | G49: 1 | H49: 2.558717127e-17 | J49: 1 | L49: =$B$49-MMULT($D$49:$H$49,beta) -> -0.3851310286 | Q49: =invsigma*_xlfn.MUNIT(3)- MMULT(MMULT($J$49:$J$51,MINVERSE(MMULT(TRANSPOSE($J$49:$J$51),$J$49:$J$51)*invsigma+invcovm)),TRANSPOSE($J$49:$J$51))*invsigma^2 -> 1.459731364 | R49: -0.3234334588 | S49: -0.3234334588 | U49: =MMULT(MMULT(TRANSPOSE($L$142:$L$144),$Q$142:$S$144),$L$142:$L$144) -> 2.797767379 | V49: =LN(MDETERM(MMULT(MMULT($J$142:$J$144,covm),TRANSPOSE($J$142:$J$144))+(sigma*_xlfn.MUNIT(3)))) -> -0.9495886359
A50: 17 | B50: 2 | D50: 1 | E50: 2 | F50: 8 | G50: 3 | H50: 2.558717127e-17 | J50: 1 | L50: =$B$50-MMULT($D$50:$H$50,beta) -> -1.83955461 | Q50: -0.3234334588 | R50: 1.459731364 | S50: -0.3234334588 | U50: =MMULT(MMULT(TRANSPOSE($L$145:$L$147),$Q$145:$S$147),$L$145:$L$147) -> 0.4148555497 | V50: =LN(MDETERM(MMULT(MMULT($J$145:$J$147,covm),TRANSPOSE($J$145:$J$147))+(sigma*_xlfn.MUNIT(3)))) -> -0.9495886359
A51: 17 | B51: 5 | D51: 1 | E51: 3 | F51: 8 | G51: 3 | H51: 2.558717127e-17 | J51: 1 | L51: =$B$51-MMULT($D$51:$H$51,beta) -> 0.9582784318 | Q51: -0.3234334588 | R51: -0.3234334588 | S51: 1.459731364 | U51: =MMULT(MMULT(TRANSPOSE($L$148:$L$150),$Q$148:$S$150),$L$148:$L$150) -> 0.7072085017 | V51: =LN(MDETERM(MMULT(MMULT($J$148:$J$150,covm),TRANSPOSE($J$148:$J$150))+(sigma*_xlfn.MUNIT(3)))) -> -0.9495886359
A52: 17 | B52: 3 | D52: 1 | E52: 2 | F52: 2 | G52: 2 | H52: 2.558717127e-17 | J52: 1 | L52: =$B$52-MMULT($D$52:$H$52,beta) -> 0.3664572797 | Q52: =invsigma*_xlfn.MUNIT(3)- MMULT(MMULT($J$52:$J$54,MINVERSE(MMULT(TRANSPOSE($J$52:$J$54),$J$52:$J$54)*invsigma+invcovm)),TRANSPOSE($J$52:$J$54))*invsigma^2 -> 1.459731364 | R52: -0.3234334588 | S52: -0.3234334588 | U52: =MMULT(MMULT(TRANSPOSE($L$151:$L$153),$Q$151:$S$153),$L$151:$L$153) -> 0.7210546146 | V52: =LN(MDETERM(MMULT(MMULT($J$151:$J$153,covm),TRANSPOSE($J$151:$J$153))+(sigma*_xlfn.MUNIT(3)))) -> -0.9495886359
A53: 18 | B53: 3 | D53: 1 | E53: 3 | F53: 2 | G53: 3 | H53: 2.558717127e-17 | J53: 1 | L53: =$B$53-MMULT($D$53:$H$53,beta) -> -0.06292146943 | Q53: -0.3234334588 | R53: 1.459731364 | S53: -0.3234334588 | U53: =MMULT(MMULT(TRANSPOSE($L$154:$L$156),$Q$154:$S$156),$L$154:$L$156) -> 2.109428115 | V53: =LN(MDETERM(MMULT(MMULT($J$154:$J$156,covm),TRANSPOSE($J$154:$J$156))+(sigma*_xlfn.MUNIT(3)))) -> -0.9495886359
A54: 18 | B54: 3 | D54: 1 | E54: 2 | F54: 2 | G54: 1 | H54: 2.558717127e-17 | J54: 1 | L54: =$B$54-MMULT($D$54:$H$54,beta) -> 0.5936690702 | Q54: -0.3234334588 | R54: -0.3234334588 | S54: 1.459731364 | U54: =MMULT(MMULT(TRANSPOSE($L$157:$L$159),$Q$157:$S$159),$L$157:$L$159) -> 0.6489006994 | V54: =LN(MDETERM(MMULT(MMULT($J$157:$J$159,covm),TRANSPOSE($J$157:$J$159))+(sigma*_xlfn.MUNIT(3)))) -> -0.9495886359
A55: 18 | B55: 1 | D55: 1 | E55: 2 | F55: 3 | G55: 3 | H55: 2.558717127e-17 | J55: 1 | L55: =$B$55-MMULT($D$55:$H$55,beta) -> -2.023887861 | Q55: =invsigma*_xlfn.MUNIT(3)- MMULT(MMULT($J$55:$J$57,MINVERSE(MMULT(TRANSPOSE($J$55:$J$57),$J$55:$J$57)*invsigma+invcovm)),TRANSPOSE($J$55:$J$57))*invsigma^2 -> 1.459731364 | R55: -0.3234334588 | S55: -0.3234334588 | U55: =MMULT(MMULT(TRANSPOSE($L$160:$L$162),$Q$160:$S$162),$L$160:$L$162) -> 5.302531673 | V55: =LN(MDETERM(MMULT(MMULT($J$160:$J$162,covm),TRANSPOSE($J$160:$J$162))+(sigma*_xlfn.MUNIT(3)))) -> -0.9495886359
A56: 19 | B56: 3 | D56: 1 | E56: 2 | F56: 3 | G56: 3 | H56: 2.558717127e-17 | J56: 1 | L56: =$B$56-MMULT($D$56:$H$56,beta) -> -0.0238878606 | Q56: -0.3234334588 | R56: 1.459731364 | S56: -0.3234334588 | U56: =MMULT(MMULT(TRANSPOSE($L$163:$L$165),$Q$163:$S$165),$L$163:$L$165) -> 0.04902272296 | V56: =LN(MDETERM(MMULT(MMULT($J$163:$J$165,covm),TRANSPOSE($J$163:$J$165))+(sigma*_xlfn.MUNIT(3)))) -> -0.9495886359
A57: 19 | B57: 2 | D57: 1 | E57: 3 | F57: 3 | G57: 2 | H57: 2.558717127e-17 | J57: 1 | L57: =$B$57-MMULT($D$57:$H$57,beta) -> -0.9988430287 | Q57: -0.3234334588 | R57: -0.3234334588 | S57: 1.459731364 | U57: =MMULT(MMULT(TRANSPOSE($L$166:$L$168),$Q$166:$S$168),$L$166:$L$168) -> 3.859463966 | V57: =LN(MDETERM(MMULT(MMULT($J$166:$J$168,covm),TRANSPOSE($J$166:$J$168))+(sigma*_xlfn.MUNIT(3)))) -> -0.9495886359
A58: 19 | B58: 3 | D58: 1 | E58: 5 | F58: 5 | G58: 3 | H58: 1 | J58: 1 | L58: =$B$58-MMULT($D$58:$H$58,beta) -> -1.220202145 | Q58: =invsigma*_xlfn.MUNIT(3)- MMULT(MMULT($J$58:$J$60,MINVERSE(MMULT(TRANSPOSE($J$58:$J$60),$J$58:$J$60)*invsigma+invcovm)),TRANSPOSE($J$58:$J$60))*invsigma^2 -> 1.459731364 | R58: -0.3234334588 | S58: -0.3234334588 | U58: =MMULT(MMULT(TRANSPOSE($L$169:$L$171),$Q$169:$S$171),$L$169:$L$171) -> 2.880908531 | V58: =LN(MDETERM(MMULT(MMULT($J$169:$J$171,covm),TRANSPOSE($J$169:$J$171))+(sigma*_xlfn.MUNIT(3)))) -> -0.9495886359
A59: 20 | B59: 3 | D59: 1 | E59: 1 | F59: 5 | G59: 2 | H59: 1 | J59: 1 | L59: =$B$59-MMULT($D$59:$H$59,beta) -> -0.1843225204 | Q59: -0.3234334588 | R59: 1.459731364 | S59: -0.3234334588 | U59: =MMULT(MMULT(TRANSPOSE($L$172:$L$174),$Q$172:$S$174),$L$172:$L$174) -> 6.328539427 | V59: =LN(MDETERM(MMULT(MMULT($J$172:$J$174,covm),TRANSPOSE($J$172:$J$174))+(sigma*_xlfn.MUNIT(3)))) -> -0.9495886359
A60: 20 | B60: 3 | D60: 1 | E60: 4 | F60: 5 | G60: 2 | H60: 1 | J60: 1 | L60: =$B$60-MMULT($D$60:$H$60,beta) -> -0.7908233962 | Q60: -0.3234334588 | R60: -0.3234334588 | S60: 1.459731364 | U60: =MMULT(MMULT(TRANSPOSE($L$175:$L$177),$Q$175:$S$177),$L$175:$L$177) -> 14.37953965 | V60: =LN(MDETERM(MMULT(MMULT($J$175:$J$177,covm),TRANSPOSE($J$175:$J$177))+(sigma*_xlfn.MUNIT(3)))) -> -0.9495886359
A61: 20 | B61: 2 | D61: 1 | E61: 4 | F61: 2 | G61: 2 | H61: 1 | J61: 1 | L61: =$B$61-MMULT($D$61:$H$61,beta) -> -1.301423347 | Q61: =invsigma*_xlfn.MUNIT(3)- MMULT(MMULT($J$61:$J$63,MINVERSE(MMULT(TRANSPOSE($J$61:$J$63),$J$61:$J$63)*invsigma+invcovm)),TRANSPOSE($J$61:$J$63))*invsigma^2 -> 1.459731364 | R61: -0.3234334588 | S61: -0.3234334588 | U61: =MMULT(MMULT(TRANSPOSE($L$178:$L$180),$Q$178:$S$180),$L$178:$L$180) -> 1.393169313 | V61: =LN(MDETERM(MMULT(MMULT($J$178:$J$180,covm),TRANSPOSE($J$178:$J$180))+(sigma*_xlfn.MUNIT(3)))) -> -0.9495886359
A62: 21 | B62: 2 | D62: 1 | E62: 5 | F62: 2 | G62: 2 | H62: 1 | J62: 1 | L62: =$B$62-MMULT($D$62:$H$62,beta) -> -1.503590305 | Q62: -0.3234334588 | R62: 1.459731364 | S62: -0.3234334588 | U62: =MMULT(MMULT(TRANSPOSE($L$181:$L$183),$Q$181:$S$183),$L$181:$L$183) -> 3.826238513 | V62: =LN(MDETERM(MMULT(MMULT($J$181:$J$183,covm),TRANSPOSE($J$181:$J$183))+(sigma*_xlfn.MUNIT(3)))) -> -0.9495886359
A63: 21 | B63: 2 | D63: 1 | E63: 4 | F63: 2 | G63: 1 | H63: 1 | J63: 1 | L63: =$B$63-MMULT($D$63:$H$63,beta) -> -1.074211556 | Q63: -0.3234334588 | R63: -0.3234334588 | S63: 1.459731364 | U63: =MMULT(MMULT(TRANSPOSE($L$184:$L$186),$Q$184:$S$186),$L$184:$L$186) -> 1.320881076 | V63: =LN(MDETERM(MMULT(MMULT($J$184:$J$186,covm),TRANSPOSE($J$184:$J$186))+(sigma*_xlfn.MUNIT(3)))) -> -0.9495886359
A64: 21 | B64: 2 | D64: 1 | E64: 1 | F64: 5 | G64: 2 | H64: 2.558717127e-17 | J64: 1 | L64: =$B$64-MMULT($D$64:$H$64,beta) -> -0.9207758111 | Q64: =invsigma*_xlfn.MUNIT(3)- MMULT(MMULT($J$64:$J$66,MINVERSE(MMULT(TRANSPOSE($J$64:$J$66),$J$64:$J$66)*invsigma+invcovm)),TRANSPOSE($J$64:$J$66))*invsigma^2 -> 1.459731364 | R64: -0.3234334588 | S64: -0.3234334588 | U64: =MMULT(MMULT(TRANSPOSE($L$187:$L$189),$Q$187:$S$189),$L$187:$L$189) -> 2.012583701 | V64: =LN(MDETERM(MMULT(MMULT($J$187:$J$189,covm),TRANSPOSE($J$187:$J$189))+(sigma*_xlfn.MUNIT(3)))) -> -0.9495886359
A65: 22 | B65: 3 | D65: 1 | E65: 2 | F65: 5 | G65: 3 | H65: 2.558717127e-17 | J65: 1 | L65: =$B$65-MMULT($D$65:$H$65,beta) -> -0.3501545602 | Q65: -0.3234334588 | R65: 1.459731364 | S65: -0.3234334588 | U65: =MMULT(MMULT(TRANSPOSE($L$190:$L$192),$Q$190:$S$192),$L$190:$L$192) -> 2.838969979 | V65: =LN(MDETERM(MMULT(MMULT($J$190:$J$192,covm),TRANSPOSE($J$190:$J$192))+(sigma*_xlfn.MUNIT(3)))) -> -0.9495886359
A66: 22 | B66: 3 | D66: 1 | E66: 2 | F66: 5 | G66: 3 | H66: 2.558717127e-17 | J66: 1 | L66: =$B$66-MMULT($D$66:$H$66,beta) -> -0.3501545602 | Q66: -0.3234334588 | R66: -0.3234334588 | S66: 1.459731364 | U66: =MMULT(MMULT(TRANSPOSE($L$193:$L$195),$Q$193:$S$195),$L$193:$L$195) -> 0.3020089383 | V66: =LN(MDETERM(MMULT(MMULT($J$193:$J$195,covm),TRANSPOSE($J$193:$J$195))+(sigma*_xlfn.MUNIT(3)))) -> -0.9495886359
A67: 22 | B67: 2 | D67: 1 | E67: 2 | F67: 4 | G67: 3 | H67: 2.558717127e-17 | J67: 1 | L67: =$B$67-MMULT($D$67:$H$67,beta) -> -1.18702121 | Q67: =invsigma*_xlfn.MUNIT(3)- MMULT(MMULT($J$67:$J$69,MINVERSE(MMULT(TRANSPOSE($J$67:$J$69),$J$67:$J$69)*invsigma+invcovm)),TRANSPOSE($J$67:$J$69))*invsigma^2 -> 1.459731364 | R67: -0.3234334588 | S67: -0.3234334588 | U67: =MMULT(MMULT(TRANSPOSE($L$196:$L$198),$Q$196:$S$198),$L$196:$L$198) -> 6.707838968 | V67: =LN(MDETERM(MMULT(MMULT($J$196:$J$198,covm),TRANSPOSE($J$196:$J$198))+(sigma*_xlfn.MUNIT(3)))) -> -0.9495886359
A68: 23 | B68: 2 | D68: 1 | E68: 3 | F68: 4 | G68: 2 | H68: 2.558717127e-17 | J68: 1 | L68: =$B$68-MMULT($D$68:$H$68,beta) -> -1.161976379 | Q68: -0.3234334588 | R68: 1.459731364 | S68: -0.3234334588 | U68: =MMULT(MMULT(TRANSPOSE($L$199:$L$201),$Q$199:$S$201),$L$199:$L$201) -> 2.755006495 | V68: =LN(MDETERM(MMULT(MMULT($J$199:$J$201,covm),TRANSPOSE($J$199:$J$201))+(sigma*_xlfn.MUNIT(3)))) -> -0.9495886359
A69: 23 | B69: 2 | D69: 1 | E69: 2 | F69: 4 | G69: 3 | H69: 2.558717127e-17 | J69: 1 | L69: =$B$69-MMULT($D$69:$H$69,beta) -> -1.18702121 | Q69: -0.3234334588 | R69: -0.3234334588 | S69: 1.459731364 | U69: =MMULT(MMULT(TRANSPOSE($L$202:$L$204),$Q$202:$S$204),$L$202:$L$204) -> 2.4373388 | V69: =LN(MDETERM(MMULT(MMULT($J$202:$J$204,covm),TRANSPOSE($J$202:$J$204))+(sigma*_xlfn.MUNIT(3)))) -> -0.9495886359
A70: 23 | B70: 3 | D70: 1 | E70: 3 | F70: 5 | G70: 2 | H70: 1 | J70: 1 | L70: =$B$70-MMULT($D$70:$H$70,beta) -> -0.5886564376 | Q70: =invsigma*_xlfn.MUNIT(3)- MMULT(MMULT($J$70:$J$72,MINVERSE(MMULT(TRANSPOSE($J$70:$J$72),$J$70:$J$72)*invsigma+invcovm)),TRANSPOSE($J$70:$J$72))*invsigma^2 -> 1.459731364 | R70: -0.3234334588 | S70: -0.3234334588 | U70: =MMULT(MMULT(TRANSPOSE($L$205:$L$207),$Q$205:$S$207),$L$205:$L$207) -> 3.736468249 | V70: =LN(MDETERM(MMULT(MMULT($J$205:$J$207,covm),TRANSPOSE($J$205:$J$207))+(sigma*_xlfn.MUNIT(3)))) -> -0.9495886359
A71: 24 | B71: 3 | D71: 1 | E71: 3 | F71: 5 | G71: 1 | H71: 1 | J71: 1 | L71: =$B$71-MMULT($D$71:$H$71,beta) -> -0.3614446471 | Q71: -0.3234334588 | R71: 1.459731364 | S71: -0.3234334588 | U71: =MMULT(MMULT(TRANSPOSE($L$208:$L$210),$Q$208:$S$210),$L$208:$L$210) -> 0.6100124918 | V71: =LN(MDETERM(MMULT(MMULT($J$208:$J$210,covm),TRANSPOSE($J$208:$J$210))+(sigma*_xlfn.MUNIT(3)))) -> -0.9495886359
A72: 24 | B72: 2 | D72: 1 | E72: 3 | F72: 5 | G72: 1 | H72: 1 | J72: 1 | L72: =$B$72-MMULT($D$72:$H$72,beta) -> -1.361444647 | Q72: -0.3234334588 | R72: -0.3234334588 | S72: 1.459731364 | U72: =MMULT(MMULT(TRANSPOSE($L$211:$L$213),$Q$211:$S$213),$L$211:$L$213) -> 0.7400199227 | V72: =LN(MDETERM(MMULT(MMULT($J$211:$J$213,covm),TRANSPOSE($J$211:$J$213))+(sigma*_xlfn.MUNIT(3)))) -> -0.9495886359
A73: 24 | B73: 3 | D73: 1 | E73: 4 | F73: 6 | G73: 2 | H73: 2.558717127e-17 | J73: 1 | L73: =$B$73-MMULT($D$73:$H$73,beta) -> -0.6904100367 | Q73: =invsigma*_xlfn.MUNIT(3)- MMULT(MMULT($J$73:$J$75,MINVERSE(MMULT(TRANSPOSE($J$73:$J$75),$J$73:$J$75)*invsigma+invcovm)),TRANSPOSE($J$73:$J$75))*invsigma^2 -> 1.459731364 | R73: -0.3234334588 | S73: -0.3234334588 | U73: =MMULT(MMULT(TRANSPOSE($L$214:$L$216),$Q$214:$S$216),$L$214:$L$216) -> 0.7981463324 | V73: =LN(MDETERM(MMULT(MMULT($J$214:$J$216,covm),TRANSPOSE($J$214:$J$216))+(sigma*_xlfn.MUNIT(3)))) -> -0.9495886359
A74: 25 | B74: 4 | D74: 1 | E74: 4 | F74: 6 | G74: 3 | H74: 2.558717127e-17 | J74: 1 | L74: =$B$74-MMULT($D$74:$H$74,beta) -> 0.08237817277 | Q74: -0.3234334588 | R74: 1.459731364 | S74: -0.3234334588 | U74: =MMULT(MMULT(TRANSPOSE($L$217:$L$219),$Q$217:$S$219),$L$217:$L$219) -> 2.609937827 | V74: =LN(MDETERM(MMULT(MMULT($J$217:$J$219,covm),TRANSPOSE($J$217:$J$219))+(sigma*_xlfn.MUNIT(3)))) -> -0.9495886359
A75: 25 | B75: 2 | D75: 1 | E75: 1 | F75: 6 | G75: 1 | H75: 2.558717127e-17 | J75: 1 | L75: =$B$75-MMULT($D$75:$H$75,beta) -> -0.8566973704 | Q75: -0.3234334588 | R75: -0.3234334588 | S75: 1.459731364 | U75: =MMULT(MMULT(TRANSPOSE($L$220:$L$222),$Q$220:$S$222),$L$220:$L$222) -> 1.075637661 | V75: =LN(MDETERM(MMULT(MMULT($J$220:$J$222,covm),TRANSPOSE($J$220:$J$222))+(sigma*_xlfn.MUNIT(3)))) -> -0.9495886359
A76: 25 | B76: 2 | D76: 1 | E76: 3 | F76: 1 | G76: 2 | H76: 1 | J76: 1 | L76: =$B$76-MMULT($D$76:$H$76,beta) -> -0.9361230384 | Q76: =invsigma*_xlfn.MUNIT(3)- MMULT(MMULT($J$76:$J$78,MINVERSE(MMULT(TRANSPOSE($J$76:$J$78),$J$76:$J$78)*invsigma+invcovm)),TRANSPOSE($J$76:$J$78))*invsigma^2 -> 1.459731364 | R76: -0.3234334588 | S76: -0.3234334588 | U76: =MMULT(MMULT(TRANSPOSE($L$223:$L$225),$Q$223:$S$225),$L$223:$L$225) -> 0.08182234706 | V76: =LN(MDETERM(MMULT(MMULT($J$223:$J$225,covm),TRANSPOSE($J$223:$J$225))+(sigma*_xlfn.MUNIT(3)))) -> -0.9495886359
A77: 26 | B77: 3 | D77: 1 | E77: 4 | F77: 1 | G77: 3 | H77: 1 | J77: 1 | L77: =$B$77-MMULT($D$77:$H$77,beta) -> -0.3655017876 | Q77: -0.3234334588 | R77: 1.459731364 | S77: -0.3234334588 | U77: =MMULT(MMULT(TRANSPOSE($L$226:$L$228),$Q$226:$S$228),$L$226:$L$228) -> 4.230630292 | V77: =LN(MDETERM(MMULT(MMULT($J$226:$J$228,covm),TRANSPOSE($J$226:$J$228))+(sigma*_xlfn.MUNIT(3)))) -> -0.9495886359
A78: 26 | B78: 2 | D78: 1 | E78: 1 | F78: 1 | G78: 1 | H78: 1 | J78: 1 | L78: =$B$78-MMULT($D$78:$H$78,beta) -> -0.3045773307 | Q78: -0.3234334588 | R78: -0.3234334588 | S78: 1.459731364 | U78: =MMULT(MMULT(TRANSPOSE($L$229:$L$231),$Q$229:$S$231),$L$229:$L$231) -> 4.160891893 | V78: =LN(MDETERM(MMULT(MMULT($J$229:$J$231,covm),TRANSPOSE($J$229:$J$231))+(sigma*_xlfn.MUNIT(3)))) -> -0.9495886359
A79: 26 | B79: 4 | D79: 1 | E79: 3 | F79: 6 | G79: 3 | H79: 2.558717127e-17 | J79: 1 | L79: =$B$79-MMULT($D$79:$H$79,beta) -> 0.2845451314 | Q79: =invsigma*_xlfn.MUNIT(3)- MMULT(MMULT($J$79:$J$81,MINVERSE(MMULT(TRANSPOSE($J$79:$J$81),$J$79:$J$81)*invsigma+invcovm)),TRANSPOSE($J$79:$J$81))*invsigma^2 -> 1.459731364 | R79: -0.3234334588 | S79: -0.3234334588 | U79: =MMULT(MMULT(TRANSPOSE($L$232:$L$234),$Q$232:$S$234),$L$232:$L$234) -> 1.59998799 | V79: =LN(MDETERM(MMULT(MMULT($J$232:$J$234,covm),TRANSPOSE($J$232:$J$234))+(sigma*_xlfn.MUNIT(3)))) -> -0.9495886359
A80: 27 | B80: 4 | D80: 1 | E80: 3 | F80: 6 | G80: 1 | H80: 2.558717127e-17 | J80: 1 | L80: =$B$80-MMULT($D$80:$H$80,beta) -> 0.7389687124 | Q80: -0.3234334588 | R80: 1.459731364 | S80: -0.3234334588 | U80: =MMULT(MMULT(TRANSPOSE($L$235:$L$237),$Q$235:$S$237),$L$235:$L$237) -> 5.17735573 | V80: =LN(MDETERM(MMULT(MMULT($J$235:$J$237,covm),TRANSPOSE($J$235:$J$237))+(sigma*_xlfn.MUNIT(3)))) -> -0.9495886359
A81: 27 | B81: 3 | D81: 1 | E81: 3 | F81: 6 | G81: 1 | H81: 2.558717127e-17 | J81: 1 | L81: =$B$81-MMULT($D$81:$H$81,beta) -> -0.2610312876 | Q81: -0.3234334588 | R81: -0.3234334588 | S81: 1.459731364 | U81: =MMULT(MMULT(TRANSPOSE($L$238:$L$240),$Q$238:$S$240),$L$238:$L$240) -> 6.869281064 | V81: =LN(MDETERM(MMULT(MMULT($J$238:$J$240,covm),TRANSPOSE($J$238:$J$240))+(sigma*_xlfn.MUNIT(3)))) -> -0.9495886359
A82: 27 | B82: 3 | D82: 1 | E82: 3 | F82: 5 | G82: 1 | H82: 2.558717127e-17 | J82: 1 | L82: =$B$82-MMULT($D$82:$H$82,beta) -> -0.09789793782 | Q82: =invsigma*_xlfn.MUNIT(3)- MMULT(MMULT($J$82:$J$84,MINVERSE(MMULT(TRANSPOSE($J$82:$J$84),$J$82:$J$84)*invsigma+invcovm)),TRANSPOSE($J$82:$J$84))*invsigma^2 -> 1.459731364 | R82: -0.3234334588 | S82: -0.3234334588 | U82: =MMULT(MMULT(TRANSPOSE($L$241:$L$243),$Q$241:$S$243),$L$241:$L$243) -> 3.782405678 | V82: =LN(MDETERM(MMULT(MMULT($J$241:$J$243,covm),TRANSPOSE($J$241:$J$243))+(sigma*_xlfn.MUNIT(3)))) -> -0.9495886359
A83: 28 | B83: 3 | D83: 1 | E83: 2 | F83: 5 | G83: 3 | H83: 2.558717127e-17 | J83: 1 | L83: =$B$83-MMULT($D$83:$H$83,beta) -> -0.3501545602 | Q83: -0.3234334588 | R83: 1.459731364 | S83: -0.3234334588 | U83: =MMULT(MMULT(TRANSPOSE($L$244:$L$246),$Q$244:$S$246),$L$244:$L$246) -> 2.012862966 | V83: =LN(MDETERM(MMULT(MMULT($J$244:$J$246,covm),TRANSPOSE($J$244:$J$246))+(sigma*_xlfn.MUNIT(3)))) -> -0.9495886359
A84: 28 | B84: 3 | D84: 1 | E84: 3 | F84: 5 | G84: 3 | H84: 2.558717127e-17 | J84: 1 | L84: =$B$84-MMULT($D$84:$H$84,beta) -> -0.5523215188 | Q84: -0.3234334588 | R84: -0.3234334588 | S84: 1.459731364 | U84: =MMULT(MMULT(TRANSPOSE($L$247:$L$249),$Q$247:$S$249),$L$247:$L$249) -> 0.6750088028 | V84: =LN(MDETERM(MMULT(MMULT($J$247:$J$249,covm),TRANSPOSE($J$247:$J$249))+(sigma*_xlfn.MUNIT(3)))) -> -0.9495886359
A85: 28 | B85: 3 | D85: 1 | E85: 1 | F85: 6 | G85: 2 | H85: 2.558717127e-17 | J85: 1 | L85: =$B$85-MMULT($D$85:$H$85,beta) -> -0.08390916087 | Q85: =invsigma*_xlfn.MUNIT(3)- MMULT(MMULT($J$85:$J$87,MINVERSE(MMULT(TRANSPOSE($J$85:$J$87),$J$85:$J$87)*invsigma+invcovm)),TRANSPOSE($J$85:$J$87))*invsigma^2 -> 1.459731364 | R85: -0.3234334588 | S85: -0.3234334588 | U85: =MMULT(MMULT(TRANSPOSE($L$250:$L$252),$Q$250:$S$252),$L$250:$L$252) -> 0.93793181 | V85: =LN(MDETERM(MMULT(MMULT($J$250:$J$252,covm),TRANSPOSE($J$250:$J$252))+(sigma*_xlfn.MUNIT(3)))) -> -0.9495886359
A86: 29 | B86: 3 | D86: 1 | E86: 1 | F86: 6 | G86: 2 | H86: 2.558717127e-17 | J86: 1 | L86: =$B$86-MMULT($D$86:$H$86,beta) -> -0.08390916087 | Q86: -0.3234334588 | R86: 1.459731364 | S86: -0.3234334588 | U86: =MMULT(MMULT(TRANSPOSE($L$253:$L$255),$Q$253:$S$255),$L$253:$L$255) -> 10.07234623 | V86: =LN(MDETERM(MMULT(MMULT($J$253:$J$255,covm),TRANSPOSE($J$253:$J$255))+(sigma*_xlfn.MUNIT(3)))) -> -0.9495886359
A87: 29 | B87: 3 | D87: 1 | E87: 1 | F87: 6 | G87: 3 | H87: 2.558717127e-17 | J87: 1 | L87: =$B$87-MMULT($D$87:$H$87,beta) -> -0.3111209514 | Q87: -0.3234334588 | R87: -0.3234334588 | S87: 1.459731364 | U87: =MMULT(MMULT(TRANSPOSE($L$256:$L$258),$Q$256:$S$258),$L$256:$L$258) -> 7.150870439 | V87: =LN(MDETERM(MMULT(MMULT($J$256:$J$258,covm),TRANSPOSE($J$256:$J$258))+(sigma*_xlfn.MUNIT(3)))) -> -0.9495886359
A88: 29 | B88: 3 | D88: 1 | E88: 3 | F88: 2 | G88: 1 | H88: 1 | J88: 1 | L88: =$B$88-MMULT($D$88:$H$88,beta) -> 0.1279554023 | Q88: =invsigma*_xlfn.MUNIT(3)- MMULT(MMULT($J$88:$J$90,MINVERSE(MMULT(TRANSPOSE($J$88:$J$90),$J$88:$J$90)*invsigma+invcovm)),TRANSPOSE($J$88:$J$90))*invsigma^2 -> 1.459731364 | R88: -0.3234334588 | S88: -0.3234334588 | U88: =MMULT(MMULT(TRANSPOSE($L$259:$L$261),$Q$259:$S$261),$L$259:$L$261) -> 7.962312107 | V88: =LN(MDETERM(MMULT(MMULT($J$259:$J$261,covm),TRANSPOSE($J$259:$J$261))+(sigma*_xlfn.MUNIT(3)))) -> -0.9495886359
A89: 30 | B89: 3 | D89: 1 | E89: 5 | F89: 2 | G89: 3 | H89: 1 | J89: 1 | L89: =$B$89-MMULT($D$89:$H$89,beta) -> -0.730802096 | Q89: -0.3234334588 | R89: 1.459731364 | S89: -0.3234334588 | U89: =MMULT(MMULT(TRANSPOSE($L$262:$L$264),$Q$262:$S$264),$L$262:$L$264) -> 1.095499402 | V89: =LN(MDETERM(MMULT(MMULT($J$262:$J$264,covm),TRANSPOSE($J$262:$J$264))+(sigma*_xlfn.MUNIT(3)))) -> -0.9495886359
A90: 30 | B90: 3 | D90: 1 | E90: 2 | F90: 2 | G90: 2 | H90: 1 | J90: 1 | L90: =$B$90-MMULT($D$90:$H$90,beta) -> 0.1029105704 | Q90: -0.3234334588 | R90: -0.3234334588 | S90: 1.459731364 | U90: =MMULT(MMULT(TRANSPOSE($L$265:$L$267),$Q$265:$S$267),$L$265:$L$267) -> 0.6137043535 | V90: =LN(MDETERM(MMULT(MMULT($J$265:$J$267,covm),TRANSPOSE($J$265:$J$267))+(sigma*_xlfn.MUNIT(3)))) -> -0.9495886359
A91: 30 | B91: 3 | D91: 1 | E91: 2 | F91: 7 | G91: 2 | H91: 1 | J91: 1 | L91: =$B$91-MMULT($D$91:$H$91,beta) -> -0.7127561786 | Q91: =invsigma*_xlfn.MUNIT(3)- MMULT(MMULT($J$91:$J$93,MINVERSE(MMULT(TRANSPOSE($J$91:$J$93),$J$91:$J$93)*invsigma+invcovm)),TRANSPOSE($J$91:$J$93))*invsigma^2 -> 1.459731364 | R91: -0.3234334588 | S91: -0.3234334588 | U91: =MMULT(MMULT(TRANSPOSE($L$268:$L$270),$Q$268:$S$270),$L$268:$L$270) -> 1.478060007 | V91: =LN(MDETERM(MMULT(MMULT($J$268:$J$270,covm),TRANSPOSE($J$268:$J$270))+(sigma*_xlfn.MUNIT(3)))) -> -0.9495886359
A92: 31 | B92: 3 | D92: 1 | E92: 3 | F92: 7 | G92: 3 | H92: 1 | J92: 1 | L92: =$B$92-MMULT($D$92:$H$92,beta) -> -1.142134928 | Q92: -0.3234334588 | R92: 1.459731364 | S92: -0.3234334588 | U92: =MMULT(MMULT(TRANSPOSE($L$271:$L$273),$Q$271:$S$273),$L$271:$L$273) -> 1.741989118 | V92: =LN(MDETERM(MMULT(MMULT($J$271:$J$273,covm),TRANSPOSE($J$271:$J$273))+(sigma*_xlfn.MUNIT(3)))) -> -0.9495886359
A93: 31 | B93: 3 | D93: 1 | E93: 2 | F93: 7 | G93: 1 | H93: 1 | J93: 1 | L93: =$B$93-MMULT($D$93:$H$93,beta) -> -0.4855443881 | Q93: -0.3234334588 | R93: -0.3234334588 | S93: 1.459731364 | U93: =MMULT(MMULT(TRANSPOSE($L$274:$L$276),$Q$274:$S$276),$L$274:$L$276) -> 0.006491028817 | V93: =LN(MDETERM(MMULT(MMULT($J$274:$J$276,covm),TRANSPOSE($J$274:$J$276))+(sigma*_xlfn.MUNIT(3)))) -> -0.9495886359
A94: 31 | B94: 2 | D94: 1 | E94: 3 | F94: 4 | G94: 3 | H94: 2.558717127e-17 | J94: 1 | L94: =$B$94-MMULT($D$94:$H$94,beta) -> -1.389188169 | Q94: =invsigma*_xlfn.MUNIT(3)- MMULT(MMULT($J$94:$J$96,MINVERSE(MMULT(TRANSPOSE($J$94:$J$96),$J$94:$J$96)*invsigma+invcovm)),TRANSPOSE($J$94:$J$96))*invsigma^2 -> 1.459731364 | R94: -0.3234334588 | S94: -0.3234334588 | U94: =MMULT(MMULT(TRANSPOSE($L$277:$L$279),$Q$277:$S$279),$L$277:$L$279) -> 0.1850784519 | V94: =LN(MDETERM(MMULT(MMULT($J$277:$J$279,covm),TRANSPOSE($J$277:$J$279))+(sigma*_xlfn.MUNIT(3)))) -> -0.9495886359
A95: 32 | B95: 3 | D95: 1 | E95: 4 | F95: 4 | G95: 2 | H95: 2.558717127e-17 | J95: 1 | L95: =$B$95-MMULT($D$95:$H$95,beta) -> -0.3641433371 | Q95: -0.3234334588 | R95: 1.459731364 | S95: -0.3234334588 | U95: =MMULT(MMULT(TRANSPOSE($L$280:$L$282),$Q$280:$S$282),$L$280:$L$282) -> 0.83281806 | V95: =LN(MDETERM(MMULT(MMULT($J$280:$J$282,covm),TRANSPOSE($J$280:$J$282))+(sigma*_xlfn.MUNIT(3)))) -> -0.9495886359
A96: 32 | B96: 3 | D96: 1 | E96: 3 | F96: 4 | G96: 2 | H96: 2.558717127e-17 | J96: 1 | L96: =$B$96-MMULT($D$96:$H$96,beta) -> -0.1619763785 | Q96: -0.3234334588 | R96: -0.3234334588 | S96: 1.459731364 | U96: =MMULT(MMULT(TRANSPOSE($L$283:$L$285),$Q$283:$S$285),$L$283:$L$285) -> 5.928979852 | V96: =LN(MDETERM(MMULT(MMULT($J$283:$J$285,covm),TRANSPOSE($J$283:$J$285))+(sigma*_xlfn.MUNIT(3)))) -> -0.9495886359
A97: 32 | B97: 4 | D97: 1 | E97: 4 | F97: 3 | G97: 3 | H97: 2.558717127e-17 | J97: 1 | L97: =$B$97-MMULT($D$97:$H$97,beta) -> 0.5717782222 | Q97: =invsigma*_xlfn.MUNIT(3)- MMULT(MMULT($J$97:$J$99,MINVERSE(MMULT(TRANSPOSE($J$97:$J$99),$J$97:$J$99)*invsigma+invcovm)),TRANSPOSE($J$97:$J$99))*invsigma^2 -> 1.459731364 | R97: -0.3234334588 | S97: -0.3234334588 | U97: =MMULT(MMULT(TRANSPOSE($L$286:$L$288),$Q$286:$S$288),$L$286:$L$288) -> 0.3881129967 | V97: =LN(MDETERM(MMULT(MMULT($J$286:$J$288,covm),TRANSPOSE($J$286:$J$288))+(sigma*_xlfn.MUNIT(3)))) -> -0.9495886359
A98: 33 | B98: 4 | D98: 1 | E98: 3 | F98: 3 | G98: 3 | H98: 2.558717127e-17 | J98: 1 | L98: =$B$98-MMULT($D$98:$H$98,beta) -> 0.7739451808 | Q98: -0.3234334588 | R98: 1.459731364 | S98: -0.3234334588 | U98: =MMULT(MMULT(TRANSPOSE($L$289:$L$291),$Q$289:$S$291),$L$289:$L$291) -> 3.947324558 | V98: =LN(MDETERM(MMULT(MMULT($J$289:$J$291,covm),TRANSPOSE($J$289:$J$291))+(sigma*_xlfn.MUNIT(3)))) -> -0.9495886359
A99: 33 | B99: 3 | D99: 1 | E99: 2 | F99: 3 | G99: 1 | H99: 2.558717127e-17 | J99: 1 | L99: =$B$99-MMULT($D$99:$H$99,beta) -> 0.4305357204 | Q99: -0.3234334588 | R99: -0.3234334588 | S99: 1.459731364 | U99: =MMULT(MMULT(TRANSPOSE($L$292:$L$294),$Q$292:$S$294),$L$292:$L$294) -> 1.585467525 | V99: =LN(MDETERM(MMULT(MMULT($J$292:$J$294,covm),TRANSPOSE($J$292:$J$294))+(sigma*_xlfn.MUNIT(3)))) -> -0.9495886359
A100: 33 | B100: 3 | D100: 1 | E100: 2 | F100: 4 | G100: 2 | H100: 2.558717127e-17 | J100: 1 | L100: =$B$100-MMULT($D$100:$H$100,beta) -> 0.0401905801 | Q100: =invsigma*_xlfn.MUNIT(3)- MMULT(MMULT($J$100:$J$102,MINVERSE(MMULT(TRANSPOSE($J$100:$J$102),$J$100:$J$102)*invsigma+invcovm)),TRANSPOSE($J$100:$J$102))*invsigma^2 -> 1.459731364 | R100: -0.3234334588 | S100: -0.3234334588 | U100: =MMULT(MMULT(TRANSPOSE($L$295:$L$297),$Q$295:$S$297),$L$295:$L$297) -> 5.700189356 | V100: =LN(MDETERM(MMULT(MMULT($J$295:$J$297,covm),TRANSPOSE($J$295:$J$297))+(sigma*_xlfn.MUNIT(3)))) -> -0.9495886359
A101: 34 | B101: 5 | D101: 1 | E101: 1 | F101: 4 | G101: 3 | H101: 2.558717127e-17 | J101: 1 | L101: =$B$101-MMULT($D$101:$H$101,beta) -> 2.015145748 | Q101: -0.3234334588 | R101: 1.459731364 | S101: -0.3234334588 | U101: =MMULT(MMULT(TRANSPOSE($L$298:$L$300),$Q$298:$S$300),$L$298:$L$300) -> 3.743409288 | V101: =LN(MDETERM(MMULT(MMULT($J$298:$J$300,covm),TRANSPOSE($J$298:$J$300))+(sigma*_xlfn.MUNIT(3)))) -> -0.9495886359
A102: 34 | B102: 2 | D102: 1 | E102: 2 | F102: 4 | G102: 1 | H102: 2.558717127e-17 | J102: 1 | L102: =$B$102-MMULT($D$102:$H$102,beta) -> -0.7325976294 | Q102: -0.3234334588 | R102: -0.3234334588 | S102: 1.459731364
A103: 34 | B103: 4 | D103: 1 | E103: 2 | F103: 5 | G103: 2 | H103: 1 | J103: 1 | L103: =$B$103-MMULT($D$103:$H$103,beta) -> 0.613510521 | Q103: =invsigma*_xlfn.MUNIT(3)- MMULT(MMULT($J$103:$J$105,MINVERSE(MMULT(TRANSPOSE($J$103:$J$105),$J$103:$J$105)*invsigma+invcovm)),TRANSPOSE($J$103:$J$105))*invsigma^2 -> 1.459731364 | R103: -0.3234334588 | S103: -0.3234334588
A104: 35 | B104: 3 | D104: 1 | E104: 3 | F104: 5 | G104: 3 | H104: 1 | J104: 1 | L104: =$B$104-MMULT($D$104:$H$104,beta) -> -0.8158682281 | Q104: -0.3234334588 | R104: 1.459731364 | S104: -0.3234334588
A105: 35 | B105: 4 | D105: 1 | E105: 5 | F105: 5 | G105: 3 | H105: 1 | J105: 1 | L105: =$B$105-MMULT($D$105:$H$105,beta) -> -0.2202021454 | Q105: -0.3234334588 | R105: -0.3234334588 | S105: 1.459731364
A106: 35 | B106: 3 | D106: 1 | E106: 3 | F106: 5 | G106: 2 | H106: 2.558717127e-17 | J106: 1 | L106: =$B$106-MMULT($D$106:$H$106,beta) -> -0.3251097283 | Q106: =invsigma*_xlfn.MUNIT(3)- MMULT(MMULT($J$106:$J$108,MINVERSE(MMULT(TRANSPOSE($J$106:$J$108),$J$106:$J$108)*invsigma+invcovm)),TRANSPOSE($J$106:$J$108))*invsigma^2 -> 1.459731364 | R106: -0.3234334588 | S106: -0.3234334588
A107: 36 | B107: 4 | D107: 1 | E107: 2 | F107: 5 | G107: 3 | H107: 2.558717127e-17 | J107: 1 | L107: =$B$107-MMULT($D$107:$H$107,beta) -> 0.6498454398 | Q107: -0.3234334588 | R107: 1.459731364 | S107: -0.3234334588
A108: 36 | B108: 3 | D108: 1 | E108: 3 | F108: 5 | G108: 2 | H108: 2.558717127e-17 | J108: 1 | L108: =$B$108-MMULT($D$108:$H$108,beta) -> -0.3251097283 | Q108: -0.3234334588 | R108: -0.3234334588 | S108: 1.459731364
A109: 36 | B109: 3 | D109: 1 | E109: 5 | F109: 6 | G109: 1 | H109: 1 | J109: 1 | L109: =$B$109-MMULT($D$109:$H$109,beta) -> -0.9289119142 | Q109: =invsigma*_xlfn.MUNIT(3)- MMULT(MMULT($J$109:$J$111,MINVERSE(MMULT(TRANSPOSE($J$109:$J$111),$J$109:$J$111)*invsigma+invcovm)),TRANSPOSE($J$109:$J$111))*invsigma^2 -> 1.459731364 | R109: -0.3234334588 | S109: -0.3234334588
A110: 37 | B110: 4 | D110: 1 | E110: 4 | F110: 6 | G110: 1 | H110: 1 | J110: 1 | L110: =$B$110-MMULT($D$110:$H$110,beta) -> 0.2732550445 | Q110: -0.3234334588 | R110: 1.459731364 | S110: -0.3234334588
A111: 37 | B111: 3 | D111: 1 | E111: 3 | F111: 6 | G111: 1 | H111: 1 | J111: 1 | L111: =$B$111-MMULT($D$111:$H$111,beta) -> -0.5245779969 | Q111: -0.3234334588 | R111: -0.3234334588 | S111: 1.459731364
A112: 37 | B112: 5 | D112: 1 | E112: 1 | F112: 2 | G112: 1 | H112: 1 | J112: 1 | L112: =$B$112-MMULT($D$112:$H$112,beta) -> 2.53228932 | Q112: =invsigma*_xlfn.MUNIT(3)- MMULT(MMULT($J$112:$J$114,MINVERSE(MMULT(TRANSPOSE($J$112:$J$114),$J$112:$J$114)*invsigma+invcovm)),TRANSPOSE($J$112:$J$114))*invsigma^2 -> 1.459731364 | R112: -0.3234334588 | S112: -0.3234334588
A113: 38 | B113: 4 | D113: 1 | E113: 1 | F113: 2 | G113: 2 | H113: 1 | J113: 1 | L113: =$B$113-MMULT($D$113:$H$113,beta) -> 1.305077529 | Q113: -0.3234334588 | R113: 1.459731364 | S113: -0.3234334588
A114: 38 | B114: 2 | D114: 1 | E114: 3 | F114: 2 | G114: 3 | H114: 1 | J114: 1 | L114: =$B$114-MMULT($D$114:$H$114,beta) -> -1.326468179 | Q114: -0.3234334588 | R114: -0.3234334588 | S114: 1.459731364
A115: 38 | B115: 3 | D115: 1 | E115: 3 | F115: 2 | G115: 3 | H115: 1 | J115: 1 | L115: =$B$115-MMULT($D$115:$H$115,beta) -> -0.3264681787 | Q115: =invsigma*_xlfn.MUNIT(3)- MMULT(MMULT($J$115:$J$117,MINVERSE(MMULT(TRANSPOSE($J$115:$J$117),$J$115:$J$117)*invsigma+invcovm)),TRANSPOSE($J$115:$J$117))*invsigma^2 -> 1.459731364 | R115: -0.3234334588 | S115: -0.3234334588
A116: 39 | B116: 3 | D116: 1 | E116: 4 | F116: 2 | G116: 2 | H116: 1 | J116: 1 | L116: =$B$116-MMULT($D$116:$H$116,beta) -> -0.3014233469 | Q116: -0.3234334588 | R116: 1.459731364 | S116: -0.3234334588
A117: 39 | B117: 4 | D117: 1 | E117: 3 | F117: 2 | G117: 3 | H117: 1 | J117: 1 | L117: =$B$117-MMULT($D$117:$H$117,beta) -> 0.6735318213 | Q117: -0.3234334588 | R117: -0.3234334588 | S117: 1.459731364
A118: 39 | B118: 2 | D118: 1 | E118: 2 | F118: 2 | G118: 2 | H118: 2.558717127e-17 | J118: 1 | L118: =$B$118-MMULT($D$118:$H$118,beta) -> -0.6335427203 | Q118: =invsigma*_xlfn.MUNIT(3)- MMULT(MMULT($J$118:$J$120,MINVERSE(MMULT(TRANSPOSE($J$118:$J$120),$J$118:$J$120)*invsigma+invcovm)),TRANSPOSE($J$118:$J$120))*invsigma^2 -> 1.459731364 | R118: -0.3234334588 | S118: -0.3234334588
A119: 40 | B119: 3 | D119: 1 | E119: 2 | F119: 2 | G119: 1 | H119: 2.558717127e-17 | J119: 1 | L119: =$B$119-MMULT($D$119:$H$119,beta) -> 0.5936690702 | Q119: -0.3234334588 | R119: 1.459731364 | S119: -0.3234334588
A120: 40 | B120: 2 | D120: 1 | E120: 3 | F120: 2 | G120: 1 | H120: 2.558717127e-17 | J120: 1 | L120: =$B$120-MMULT($D$120:$H$120,beta) -> -0.6084978884 | Q120: -0.3234334588 | R120: -0.3234334588 | S120: 1.459731364
A121: 40 | B121: 5 | D121: 1 | E121: 3 | F121: 2 | G121: 3 | H121: 2.558717127e-17 | J121: 1 | L121: =$B$121-MMULT($D$121:$H$121,beta) -> 1.937078531 | Q121: =invsigma*_xlfn.MUNIT(3)- MMULT(MMULT($J$121:$J$123,MINVERSE(MMULT(TRANSPOSE($J$121:$J$123),$J$121:$J$123)*invsigma+invcovm)),TRANSPOSE($J$121:$J$123))*invsigma^2 -> 1.459731364 | R121: -0.3234334588 | S121: -0.3234334588
A122: 41 | B122: 4 | D122: 1 | E122: 3 | F122: 2 | G122: 3 | H122: 2.558717127e-17 | J122: 1 | L122: =$B$122-MMULT($D$122:$H$122,beta) -> 0.9370785306 | Q122: -0.3234334588 | R122: 1.459731364 | S122: -0.3234334588
A123: 41 | B123: 3 | D123: 1 | E123: 3 | F123: 2 | G123: 3 | H123: 2.558717127e-17 | J123: 1 | L123: =$B$123-MMULT($D$123:$H$123,beta) -> -0.06292146943 | Q123: -0.3234334588 | R123: -0.3234334588 | S123: 1.459731364
A124: 41 | B124: 4 | D124: 1 | E124: 4 | F124: 3 | G124: 1 | H124: 1 | J124: 1 | L124: =$B$124-MMULT($D$124:$H$124,beta) -> 0.7626550938 | Q124: =invsigma*_xlfn.MUNIT(3)- MMULT(MMULT($J$124:$J$126,MINVERSE(MMULT(TRANSPOSE($J$124:$J$126),$J$124:$J$126)*invsigma+invcovm)),TRANSPOSE($J$124:$J$126))*invsigma^2 -> 1.459731364 | R124: -0.3234334588 | S124: -0.3234334588
A125: 42 | B125: 4 | D125: 1 | E125: 4 | F125: 3 | G125: 3 | H125: 1 | J125: 1 | L125: =$B$125-MMULT($D$125:$H$125,beta) -> 0.3082315129 | Q125: -0.3234334588 | R125: 1.459731364 | S125: -0.3234334588
A126: 42 | B126: 3 | D126: 1 | E126: 3 | F126: 3 | G126: 2 | H126: 1 | J126: 1 | L126: =$B$126-MMULT($D$126:$H$126,beta) -> -0.262389738 | Q126: -0.3234334588 | R126: -0.3234334588 | S126: 1.459731364
A127: 42 | B127: 4 | D127: 1 | E127: 2 | F127: 4 | G127: 2 | H127: 1 | J127: 1 | L127: =$B$127-MMULT($D$127:$H$127,beta) -> 0.7766438708 | Q127: =invsigma*_xlfn.MUNIT(3)- MMULT(MMULT($J$127:$J$129,MINVERSE(MMULT(TRANSPOSE($J$127:$J$129),$J$127:$J$129)*invsigma+invcovm)),TRANSPOSE($J$127:$J$129))*invsigma^2 -> 1.459731364 | R127: -0.3234334588 | S127: -0.3234334588
A128: 43 | B128: 3 | D128: 1 | E128: 4 | F128: 4 | G128: 1 | H128: 1 | J128: 1 | L128: =$B$128-MMULT($D$128:$H$128,beta) -> -0.4004782559 | Q128: -0.3234334588 | R128: 1.459731364 | S128: -0.3234334588
A129: 43 | B129: 4 | D129: 1 | E129: 2 | F129: 4 | G129: 3 | H129: 1 | J129: 1 | L129: =$B$129-MMULT($D$129:$H$129,beta) -> 0.5494320803 | Q129: -0.3234334588 | R129: -0.3234334588 | S129: 1.459731364
A130: 43 | B130: 3 | D130: 1 | E130: 4 | F130: 4 | G130: 1 | H130: 1 | J130: 1 | L130: =$B$130-MMULT($D$130:$H$130,beta) -> -0.4004782559 | Q130: =invsigma*_xlfn.MUNIT(3)- MMULT(MMULT($J$130:$J$132,MINVERSE(MMULT(TRANSPOSE($J$130:$J$132),$J$130:$J$132)*invsigma+invcovm)),TRANSPOSE($J$130:$J$132))*invsigma^2 -> 1.459731364 | R130: -0.3234334588 | S130: -0.3234334588
A131: 44 | B131: 3 | D131: 1 | E131: 3 | F131: 4 | G131: 3 | H131: 1 | J131: 1 | L131: =$B$131-MMULT($D$131:$H$131,beta) -> -0.6527348783 | Q131: -0.3234334588 | R131: 1.459731364 | S131: -0.3234334588
A132: 44 | B132: 3 | D132: 1 | E132: 2 | F132: 4 | G132: 2 | H132: 1 | J132: 1 | L132: =$B$132-MMULT($D$132:$H$132,beta) -> -0.2233561292 | Q132: -0.3234334588 | R132: -0.3234334588 | S132: 1.459731364
A133: 44 | B133: 3 | D133: 1 | E133: 3 | F133: 4 | G133: 3 | H133: 2.558717127e-17 | J133: 1 | L133: =$B$133-MMULT($D$133:$H$133,beta) -> -0.389188169 | Q133: =invsigma*_xlfn.MUNIT(3)- MMULT(MMULT($J$133:$J$135,MINVERSE(MMULT(TRANSPOSE($J$133:$J$135),$J$133:$J$135)*invsigma+invcovm)),TRANSPOSE($J$133:$J$135))*invsigma^2 -> 1.459731364 | R133: -0.3234334588 | S133: -0.3234334588
A134: 45 | B134: 3 | D134: 1 | E134: 3 | F134: 4 | G134: 3 | H134: 2.558717127e-17 | J134: 1 | L134: =$B$134-MMULT($D$134:$H$134,beta) -> -0.389188169 | Q134: -0.3234334588 | R134: 1.459731364 | S134: -0.3234334588
A135: 45 | B135: 3 | D135: 1 | E135: 2 | F135: 4 | G135: 2 | H135: 2.558717127e-17 | J135: 1 | L135: =$B$135-MMULT($D$135:$H$135,beta) -> 0.0401905801 | Q135: -0.3234334588 | R135: -0.3234334588 | S135: 1.459731364
A136: 45 | B136: 1 | D136: 1 | E136: 2 | F136: 6 | G136: 1 | H136: 2.558717127e-17 | J136: 1 | L136: =$B$136-MMULT($D$136:$H$136,beta) -> -2.058864329 | Q136: =invsigma*_xlfn.MUNIT(3)- MMULT(MMULT($J$136:$J$138,MINVERSE(MMULT(TRANSPOSE($J$136:$J$138),$J$136:$J$138)*invsigma+invcovm)),TRANSPOSE($J$136:$J$138))*invsigma^2 -> 1.459731364 | R136: -0.3234334588 | S136: -0.3234334588
A137: 46 | B137: 5 | D137: 1 | E137: 3 | F137: 6 | G137: 1 | H137: 2.558717127e-17 | J137: 1 | L137: =$B$137-MMULT($D$137:$H$137,beta) -> 1.738968712 | Q137: -0.3234334588 | R137: 1.459731364 | S137: -0.3234334588
A138: 46 | B138: 3 | D138: 1 | E138: 2 | F138: 6 | G138: 2 | H138: 2.558717127e-17 | J138: 1 | L138: =$B$138-MMULT($D$138:$H$138,beta) -> -0.2860761195 | Q138: -0.3234334588 | R138: -0.3234334588 | S138: 1.459731364
A139: 46 | B139: 3 | D139: 1 | E139: 4 | F139: 2 | G139: 2 | H139: 1 | J139: 1 | L139: =$B$139-MMULT($D$139:$H$139,beta) -> -0.3014233469 | Q139: =invsigma*_xlfn.MUNIT(3)- MMULT(MMULT($J$139:$J$141,MINVERSE(MMULT(TRANSPOSE($J$139:$J$141),$J$139:$J$141)*invsigma+invcovm)),TRANSPOSE($J$139:$J$141))*invsigma^2 -> 1.459731364 | R139: -0.3234334588 | S139: -0.3234334588
A140: 47 | B140: 3 | D140: 1 | E140: 3 | F140: 2 | G140: 1 | H140: 1 | J140: 1 | L140: =$B$140-MMULT($D$140:$H$140,beta) -> 0.1279554023 | Q140: -0.3234334588 | R140: 1.459731364 | S140: -0.3234334588
A141: 47 | B141: 2 | D141: 1 | E141: 3 | F141: 2 | G141: 2 | H141: 1 | J141: 1 | L141: =$B$141-MMULT($D$141:$H$141,beta) -> -1.099256388 | Q141: -0.3234334588 | R141: -0.3234334588 | S141: 1.459731364
A142: 47 | B142: 4 | D142: 1 | E142: 3 | F142: 4 | G142: 3 | H142: 1 | J142: 1 | L142: =$B$142-MMULT($D$142:$H$142,beta) -> 0.3472651217 | Q142: =invsigma*_xlfn.MUNIT(3)- MMULT(MMULT($J$142:$J$144,MINVERSE(MMULT(TRANSPOSE($J$142:$J$144),$J$142:$J$144)*invsigma+invcovm)),TRANSPOSE($J$142:$J$144))*invsigma^2 -> 1.459731364 | R142: -0.3234334588 | S142: -0.3234334588
A143: 48 | B143: 5 | D143: 1 | E143: 3 | F143: 4 | G143: 3 | H143: 1 | J143: 1 | L143: =$B$143-MMULT($D$143:$H$143,beta) -> 1.347265122 | Q143: -0.3234334588 | R143: 1.459731364 | S143: -0.3234334588
A144: 48 | B144: 3 | D144: 1 | E144: 3 | F144: 4 | G144: 1 | H144: 1 | J144: 1 | L144: =$B$144-MMULT($D$144:$H$144,beta) -> -0.1983112973 | Q144: -0.3234334588 | R144: -0.3234334588 | S144: 1.459731364
A145: 48 | B145: 4 | D145: 1 | E145: 4 | F145: 5 | G145: 1 | H145: 1 | J145: 1 | L145: =$B$145-MMULT($D$145:$H$145,beta) -> 0.4363883943 | Q145: =invsigma*_xlfn.MUNIT(3)- MMULT(MMULT($J$145:$J$147,MINVERSE(MMULT(TRANSPOSE($J$145:$J$147),$J$145:$J$147)*invsigma+invcovm)),TRANSPOSE($J$145:$J$147))*invsigma^2 -> 1.459731364 | R145: -0.3234334588 | S145: -0.3234334588
A146: 49 | B146: 4 | D146: 1 | E146: 3 | F146: 5 | G146: 2 | H146: 1 | J146: 1 | L146: =$B$146-MMULT($D$146:$H$146,beta) -> 0.4113435624 | Q146: -0.3234334588 | R146: 1.459731364 | S146: -0.3234334588
A147: 49 | B147: 4 | D147: 1 | E147: 2 | F147: 5 | G147: 3 | H147: 1 | J147: 1 | L147: =$B$147-MMULT($D$147:$H$147,beta) -> 0.3862987305 | Q147: -0.3234334588 | R147: -0.3234334588 | S147: 1.459731364
A148: 49 | B148: 4 | D148: 1 | E148: 5 | F148: 6 | G148: 3 | H148: 1 | J148: 1 | L148: =$B$148-MMULT($D$148:$H$148,beta) -> -0.3833354952 | Q148: =invsigma*_xlfn.MUNIT(3)- MMULT(MMULT($J$148:$J$150,MINVERSE(MMULT(TRANSPOSE($J$148:$J$150),$J$148:$J$150)*invsigma+invcovm)),TRANSPOSE($J$148:$J$150))*invsigma^2 -> 1.459731364 | R148: -0.3234334588 | S148: -0.3234334588
A149: 50 | B149: 4 | D149: 1 | E149: 5 | F149: 6 | G149: 2 | H149: 1 | J149: 1 | L149: =$B$149-MMULT($D$149:$H$149,beta) -> -0.1561237047 | Q149: -0.3234334588 | R149: 1.459731364 | S149: -0.3234334588
A150: 50 | B150: 4 | D150: 1 | E150: 3 | F150: 6 | G150: 1 | H150: 1 | J150: 1 | L150: =$B$150-MMULT($D$150:$H$150,beta) -> 0.4754220031 | Q150: -0.3234334588 | R150: -0.3234334588 | S150: 1.459731364
A151: 50 | B151: 3 | D151: 1 | E151: 3 | F151: 5 | G151: 2 | H151: 2.558717127e-17 | J151: 1 | L151: =$B$151-MMULT($D$151:$H$151,beta) -> -0.3251097283 | Q151: =invsigma*_xlfn.MUNIT(3)- MMULT(MMULT($J$151:$J$153,MINVERSE(MMULT(TRANSPOSE($J$151:$J$153),$J$151:$J$153)*invsigma+invcovm)),TRANSPOSE($J$151:$J$153))*invsigma^2 -> 1.459731364 | R151: -0.3234334588 | S151: -0.3234334588
A152: 51 | B152: 4 | D152: 1 | E152: 3 | F152: 5 | G152: 3 | H152: 2.558717127e-17 | J152: 1 | L152: =$B$152-MMULT($D$152:$H$152,beta) -> 0.4476784812 | Q152: -0.3234334588 | R152: 1.459731364 | S152: -0.3234334588
A153: 51 | B153: 3 | D153: 1 | E153: 3 | F153: 5 | G153: 2 | H153: 2.558717127e-17 | J153: 1 | L153: =$B$153-MMULT($D$153:$H$153,beta) -> -0.3251097283 | Q153: -0.3234334588 | R153: -0.3234334588 | S153: 1.459731364
A154: 51 | B154: 5 | D154: 1 | E154: 4 | F154: 7 | G154: 3 | H154: 1 | J154: 1 | L154: =$B$154-MMULT($D$154:$H$154,beta) -> 0.6556981137 | Q154: =invsigma*_xlfn.MUNIT(3)- MMULT(MMULT($J$154:$J$156,MINVERSE(MMULT(TRANSPOSE($J$154:$J$156),$J$154:$J$156)*invsigma+invcovm)),TRANSPOSE($J$154:$J$156))*invsigma^2 -> 1.459731364 | R154: -0.3234334588 | S154: -0.3234334588
A155: 52 | B155: 5 | D155: 1 | E155: 4 | F155: 7 | G155: 1 | H155: 1 | J155: 1 | L155: =$B$155-MMULT($D$155:$H$155,beta) -> 1.110121695 | Q155: -0.3234334588 | R155: 1.459731364 | S155: -0.3234334588
A156: 52 | B156: 4 | D156: 1 | E156: 4 | F156: 7 | G156: 2 | H156: 1 | J156: 1 | L156: =$B$156-MMULT($D$156:$H$156,beta) -> -0.1170900958 | Q156: -0.3234334588 | R156: -0.3234334588 | S156: 1.459731364
A157: 52 | B157: 4 | D157: 1 | E157: 3 | F157: 5 | G157: 1 | H157: 1 | J157: 1 | L157: =$B$157-MMULT($D$157:$H$157,beta) -> 0.6385553529 | Q157: =invsigma*_xlfn.MUNIT(3)- MMULT(MMULT($J$157:$J$159,MINVERSE(MMULT(TRANSPOSE($J$157:$J$159),$J$157:$J$159)*invsigma+invcovm)),TRANSPOSE($J$157:$J$159))*invsigma^2 -> 1.459731364 | R157: -0.3234334588 | S157: -0.3234334588
A158: 53 | B158: 4 | D158: 1 | E158: 5 | F158: 5 | G158: 2 | H158: 1 | J158: 1 | L158: =$B$158-MMULT($D$158:$H$158,beta) -> 0.00700964514 | Q158: -0.3234334588 | R158: 1.459731364 | S158: -0.3234334588
A159: 53 | B159: 4 | D159: 1 | E159: 2 | F159: 5 | G159: 3 | H159: 1 | J159: 1 | L159: =$B$159-MMULT($D$159:$H$159,beta) -> 0.3862987305 | Q159: -0.3234334588 | R159: -0.3234334588 | S159: 1.459731364
A160: 53 | B160: 3 | D160: 1 | E160: 3 | F160: 4 | G160: 1 | H160: 2.558717127e-17 | J160: 1 | L160: =$B$160-MMULT($D$160:$H$160,beta) -> 0.06523541197 | Q160: =invsigma*_xlfn.MUNIT(3)- MMULT(MMULT($J$160:$J$162,MINVERSE(MMULT(TRANSPOSE($J$160:$J$162),$J$160:$J$162)*invsigma+invcovm)),TRANSPOSE($J$160:$J$162))*invsigma^2 -> 1.459731364 | R160: -0.3234334588 | S160: -0.3234334588
A161: 54 | B161: 1 | D161: 1 | E161: 3 | F161: 4 | G161: 1 | H161: 2.558717127e-17 | J161: 1 | L161: =$B$161-MMULT($D$161:$H$161,beta) -> -1.934764588 | Q161: -0.3234334588 | R161: 1.459731364 | S161: -0.3234334588
A162: 54 | B162: 3 | D162: 1 | E162: 3 | F162: 4 | G162: 3 | H162: 2.558717127e-17 | J162: 1 | L162: =$B$162-MMULT($D$162:$H$162,beta) -> -0.389188169 | Q162: -0.3234334588 | R162: -0.3234334588 | S162: 1.459731364
A163: 54 | B163: 4 | D163: 1 | E163: 4 | F163: 7 | G163: 3 | H163: 2.558717127e-17 | J163: 1 | L163: =$B$163-MMULT($D$163:$H$163,beta) -> -0.08075517703 | Q163: =invsigma*_xlfn.MUNIT(3)- MMULT(MMULT($J$163:$J$165,MINVERSE(MMULT(TRANSPOSE($J$163:$J$165),$J$163:$J$165)*invsigma+invcovm)),TRANSPOSE($J$163:$J$165))*invsigma^2 -> 1.459731364 | R163: -0.3234334588 | S163: -0.3234334588
A164: 55 | B164: 4 | D164: 1 | E164: 4 | F164: 7 | G164: 3 | H164: 2.558717127e-17 | J164: 1 | L164: =$B$164-MMULT($D$164:$H$164,beta) -> -0.08075517703 | Q164: -0.3234334588 | R164: 1.459731364 | S164: -0.3234334588
A165: 55 | B165: 4 | D165: 1 | E165: 3 | F165: 7 | G165: 3 | H165: 2.558717127e-17 | J165: 1 | L165: =$B$165-MMULT($D$165:$H$165,beta) -> 0.1214117816 | Q165: -0.3234334588 | R165: -0.3234334588 | S165: 1.459731364
A166: 55 | B166: 3 | D166: 1 | E166: 3 | F166: 8 | G166: 3 | H166: 1 | J166: 1 | L166: =$B$166-MMULT($D$166:$H$166,beta) -> -1.305268277 | Q166: =invsigma*_xlfn.MUNIT(3)- MMULT(MMULT($J$166:$J$168,MINVERSE(MMULT(TRANSPOSE($J$166:$J$168),$J$166:$J$168)*invsigma+invcovm)),TRANSPOSE($J$166:$J$168))*invsigma^2 -> 1.459731364 | R166: -0.3234334588 | S166: -0.3234334588
A167: 56 | B167: 5 | D167: 1 | E167: 4 | F167: 8 | G167: 2 | H167: 1 | J167: 1 | L167: =$B$167-MMULT($D$167:$H$167,beta) -> 0.7197765544 | Q167: -0.3234334588 | R167: 1.459731364 | S167: -0.3234334588
A168: 56 | B168: 4 | D168: 1 | E168: 4 | F168: 8 | G168: 2 | H168: 1 | J168: 1 | L168: =$B$168-MMULT($D$168:$H$168,beta) -> -0.2802234456 | Q168: -0.3234334588 | R168: -0.3234334588 | S168: 1.459731364
A169: 56 | B169: 5 | D169: 1 | E169: 4 | F169: 4 | G169: 3 | H169: 1 | J169: 1 | L169: =$B$169-MMULT($D$169:$H$169,beta) -> 1.145098163 | Q169: =invsigma*_xlfn.MUNIT(3)- MMULT(MMULT($J$169:$J$171,MINVERSE(MMULT(TRANSPOSE($J$169:$J$171),$J$169:$J$171)*invsigma+invcovm)),TRANSPOSE($J$169:$J$171))*invsigma^2 -> 1.459731364 | R169: -0.3234334588 | S169: -0.3234334588
A170: 57 | B170: 5 | D170: 1 | E170: 5 | F170: 4 | G170: 3 | H170: 1 | J170: 1 | L170: =$B$170-MMULT($D$170:$H$170,beta) -> 0.9429312044 | Q170: -0.3234334588 | R170: 1.459731364 | S170: -0.3234334588
A171: 57 | B171: 5 | D171: 1 | E171: 4 | F171: 4 | G171: 3 | H171: 1 | J171: 1 | L171: =$B$171-MMULT($D$171:$H$171,beta) -> 1.145098163 | Q171: -0.3234334588 | R171: -0.3234334588 | S171: 1.459731364
A172: 57 | B172: 4 | D172: 1 | E172: 4 | F172: 6 | G172: 2 | H172: 1 | J172: 1 | L172: =$B$172-MMULT($D$172:$H$172,beta) -> 0.04604325397 | Q172: =invsigma*_xlfn.MUNIT(3)- MMULT(MMULT($J$172:$J$174,MINVERSE(MMULT(TRANSPOSE($J$172:$J$174),$J$172:$J$174)*invsigma+invcovm)),TRANSPOSE($J$172:$J$174))*invsigma^2 -> 1.459731364 | R172: -0.3234334588 | S172: -0.3234334588
A173: 58 | B173: 4 | D173: 1 | E173: 5 | F173: 6 | G173: 3 | H173: 1 | J173: 1 | L173: =$B$173-MMULT($D$173:$H$173,beta) -> -0.3833354952 | Q173: -0.3234334588 | R173: 1.459731364 | S173: -0.3234334588
A174: 58 | B174: 1 | D174: 1 | E174: 1 | F174: 6 | G174: 1 | H174: 1 | J174: 1 | L174: =$B$174-MMULT($D$174:$H$174,beta) -> -2.12024408 | Q174: -0.3234334588 | R174: -0.3234334588 | S174: 1.459731364
A175: 58 | B175: 5 | D175: 1 | E175: 3 | F175: 8 | G175: 3 | H175: 2.558717127e-17 | J175: 1 | L175: =$B$175-MMULT($D$175:$H$175,beta) -> 0.9582784318 | Q175: =invsigma*_xlfn.MUNIT(3)- MMULT(MMULT($J$175:$J$177,MINVERSE(MMULT(TRANSPOSE($J$175:$J$177),$J$175:$J$177)*invsigma+invcovm)),TRANSPOSE($J$175:$J$177))*invsigma^2 -> 1.459731364 | R175: -0.3234334588 | S175: -0.3234334588
A176: 59 | B176: 5 | D176: 1 | E176: 4 | F176: 8 | G176: 1 | H176: 2.558717127e-17 | J176: 1 | L176: =$B$176-MMULT($D$176:$H$176,beta) -> 1.210535054 | Q176: -0.3234334588 | R176: 1.459731364 | S176: -0.3234334588
A177: 59 | B177: 1 | D177: 1 | E177: 2 | F177: 8 | G177: 1 | H177: 2.558717127e-17 | J177: 1 | L177: =$B$177-MMULT($D$177:$H$177,beta) -> -2.385131029 | Q177: -0.3234334588 | R177: -0.3234334588 | S177: 1.459731364
A178: 59 | B178: 3 | D178: 1 | E178: 3 | F178: 3 | G178: 2 | H178: 2.558717127e-17 | J178: 1 | L178: =$B$178-MMULT($D$178:$H$178,beta) -> 0.001156971274 | Q178: =invsigma*_xlfn.MUNIT(3)- MMULT(MMULT($J$178:$J$180,MINVERSE(MMULT(TRANSPOSE($J$178:$J$180),$J$178:$J$180)*invsigma+invcovm)),TRANSPOSE($J$178:$J$180))*invsigma^2 -> 1.459731364 | R178: -0.3234334588 | S178: -0.3234334588
A179: 60 | B179: 4 | D179: 1 | E179: 3 | F179: 3 | G179: 2 | H179: 2.558717127e-17 | J179: 1 | L179: =$B$179-MMULT($D$179:$H$179,beta) -> 1.001156971 | Q179: -0.3234334588 | R179: 1.459731364 | S179: -0.3234334588
A180: 60 | B180: 3 | D180: 1 | E180: 1 | F180: 3 | G180: 3 | H180: 2.558717127e-17 | J180: 1 | L180: =$B$180-MMULT($D$180:$H$180,beta) -> 0.178279098 | Q180: -0.3234334588 | R180: -0.3234334588 | S180: 1.459731364
A181: 60 | B181: 2 | D181: 1 | E181: 3 | F181: 2 | G181: 3 | H181: 1 | J181: 1 | L181: =$B$181-MMULT($D$181:$H$181,beta) -> -1.326468179 | Q181: =invsigma*_xlfn.MUNIT(3)- MMULT(MMULT($J$181:$J$183,MINVERSE(MMULT(TRANSPOSE($J$181:$J$183),$J$181:$J$183)*invsigma+invcovm)),TRANSPOSE($J$181:$J$183))*invsigma^2 -> 1.459731364 | R181: -0.3234334588 | S181: -0.3234334588
A182: 61 | B182: 4 | D182: 1 | E182: 3 | F182: 2 | G182: 3 | H182: 1 | J182: 1 | L182: =$B$182-MMULT($D$182:$H$182,beta) -> 0.6735318213 | Q182: -0.3234334588 | R182: 1.459731364 | S182: -0.3234334588
A183: 61 | B183: 3 | D183: 1 | E183: 3 | F183: 2 | G183: 3 | H183: 1 | J183: 1 | L183: =$B$183-MMULT($D$183:$H$183,beta) -> -0.3264681787 | Q183: -0.3234334588 | R183: -0.3234334588 | S183: 1.459731364
A184: 61 | B184: 3 | D184: 1 | E184: 2 | F184: 6 | G184: 3 | H184: 2.558717127e-17 | J184: 1 | L184: =$B$184-MMULT($D$184:$H$184,beta) -> -0.51328791 | Q184: =invsigma*_xlfn.MUNIT(3)- MMULT(MMULT($J$184:$J$186,MINVERSE(MMULT(TRANSPOSE($J$184:$J$186),$J$184:$J$186)*invsigma+invcovm)),TRANSPOSE($J$184:$J$186))*invsigma^2 -> 1.459731364 | R184: -0.3234334588 | S184: -0.3234334588
A185: 62 | B185: 4 | D185: 1 | E185: 3 | F185: 6 | G185: 2 | H185: 2.558717127e-17 | J185: 1 | L185: =$B$185-MMULT($D$185:$H$185,beta) -> 0.5117569219 | Q185: -0.3234334588 | R185: 1.459731364 | S185: -0.3234334588
A186: 62 | B186: 3 | D186: 1 | E186: 2 | F186: 6 | G186: 3 | H186: 2.558717127e-17 | J186: 1 | L186: =$B$186-MMULT($D$186:$H$186,beta) -> -0.51328791 | Q186: -0.3234334588 | R186: -0.3234334588 | S186: 1.459731364
A187: 62 | B187: 4 | D187: 1 | E187: 3 | F187: 7 | G187: 3 | H187: 2.558717127e-17 | J187: 1 | L187: =$B$187-MMULT($D$187:$H$187,beta) -> 0.1214117816 | Q187: =invsigma*_xlfn.MUNIT(3)- MMULT(MMULT($J$187:$J$189,MINVERSE(MMULT(TRANSPOSE($J$187:$J$189),$J$187:$J$189)*invsigma+invcovm)),TRANSPOSE($J$187:$J$189))*invsigma^2 -> 1.459731364 | R187: -0.3234334588 | S187: -0.3234334588
A188: 63 | B188: 5 | D188: 1 | E188: 4 | F188: 7 | G188: 2 | H188: 2.558717127e-17 | J188: 1 | L188: =$B$188-MMULT($D$188:$H$188,beta) -> 1.146456613 | Q188: -0.3234334588 | R188: 1.459731364 | S188: -0.3234334588
A189: 63 | B189: 5 | D189: 1 | E189: 5 | F189: 7 | G189: 3 | H189: 2.558717127e-17 | J189: 1 | L189: =$B$189-MMULT($D$189:$H$189,beta) -> 0.7170778644 | Q189: -0.3234334588 | R189: -0.3234334588 | S189: 1.459731364
A190: 63 | B190: 5 | D190: 1 | E190: 4 | F190: 7 | G190: 3 | H190: 2.558717127e-17 | J190: 1 | L190: =$B$190-MMULT($D$190:$H$190,beta) -> 0.919244823 | Q190: =invsigma*_xlfn.MUNIT(3)- MMULT(MMULT($J$190:$J$192,MINVERSE(MMULT(TRANSPOSE($J$190:$J$192),$J$190:$J$192)*invsigma+invcovm)),TRANSPOSE($J$190:$J$192))*invsigma^2 -> 1.459731364 | R190: -0.3234334588 | S190: -0.3234334588
A191: 64 | B191: 3 | D191: 1 | E191: 2 | F191: 7 | G191: 1 | H191: 2.558717127e-17 | J191: 1 | L191: =$B$191-MMULT($D$191:$H$191,beta) -> -0.2219976788 | Q191: -0.3234334588 | R191: 1.459731364 | S191: -0.3234334588
A192: 64 | B192: 5 | D192: 1 | E192: 4 | F192: 7 | G192: 2 | H192: 2.558717127e-17 | J192: 1 | L192: =$B$192-MMULT($D$192:$H$192,beta) -> 1.146456613 | Q192: -0.3234334588 | R192: -0.3234334588 | S192: 1.459731364
A193: 64 | B193: 3 | D193: 1 | E193: 3 | F193: 5 | G193: 1 | H193: 1 | J193: 1 | L193: =$B$193-MMULT($D$193:$H$193,beta) -> -0.3614446471 | Q193: =invsigma*_xlfn.MUNIT(3)- MMULT(MMULT($J$193:$J$195,MINVERSE(MMULT(TRANSPOSE($J$193:$J$195),$J$193:$J$195)*invsigma+invcovm)),TRANSPOSE($J$193:$J$195))*invsigma^2 -> 1.459731364 | R193: -0.3234334588 | S193: -0.3234334588
A194: 65 | B194: 4 | D194: 1 | E194: 3 | F194: 5 | G194: 3 | H194: 1 | J194: 1 | L194: =$B$194-MMULT($D$194:$H$194,beta) -> 0.1841317719 | Q194: -0.3234334588 | R194: 1.459731364 | S194: -0.3234334588
A195: 65 | B195: 3 | D195: 1 | E195: 2 | F195: 5 | G195: 1 | H195: 1 | J195: 1 | L195: =$B$195-MMULT($D$195:$H$195,beta) -> -0.1592776885 | Q195: -0.3234334588 | R195: -0.3234334588 | S195: 1.459731364
A196: 65 | B196: 3 | D196: 1 | E196: 4 | F196: 2 | G196: 1 | H196: 1 | J196: 1 | L196: =$B$196-MMULT($D$196:$H$196,beta) -> -0.07421155636 | Q196: =invsigma*_xlfn.MUNIT(3)- MMULT(MMULT($J$196:$J$198,MINVERSE(MMULT(TRANSPOSE($J$196:$J$198),$J$196:$J$198)*invsigma+invcovm)),TRANSPOSE($J$196:$J$198))*invsigma^2 -> 1.459731364 | R196: -0.3234334588 | S196: -0.3234334588
A197: 66 | B197: 5 | D197: 1 | E197: 3 | F197: 2 | G197: 1 | H197: 1 | J197: 1 | L197: =$B$197-MMULT($D$197:$H$197,beta) -> 2.127955402 | Q197: -0.3234334588 | R197: 1.459731364 | S197: -0.3234334588
A198: 66 | B198: 4 | D198: 1 | E198: 3 | F198: 2 | G198: 2 | H198: 1 | J198: 1 | L198: =$B$198-MMULT($D$198:$H$198,beta) -> 0.9007436118 | Q198: -0.3234334588 | R198: -0.3234334588 | S198: 1.459731364
A199: 66 | B199: 4 | D199: 1 | E199: 3 | F199: 4 | G199: 1 | H199: 2.558717127e-17 | J199: 1 | L199: =$B$199-MMULT($D$199:$H$199,beta) -> 1.065235412 | Q199: =invsigma*_xlfn.MUNIT(3)- MMULT(MMULT($J$199:$J$201,MINVERSE(MMULT(TRANSPOSE($J$199:$J$201),$J$199:$J$201)*invsigma+invcovm)),TRANSPOSE($J$199:$J$201))*invsigma^2 -> 1.459731364 | R199: -0.3234334588 | S199: -0.3234334588
A200: 67 | B200: 4 | D200: 1 | E200: 4 | F200: 4 | G200: 3 | H200: 2.558717127e-17 | J200: 1 | L200: =$B$200-MMULT($D$200:$H$200,beta) -> 0.4086448724 | Q200: -0.3234334588 | R200: 1.459731364 | S200: -0.3234334588
... 100 more rows

Sheet TTM_data (hidden)
A1: TTM2HAD

Sheet $Japanese$ (hidden)
A1: 基本システム用語 | B1: メッセージボックス | C1: 出力 | D1: ステータスバー | E1: コントロール | G1: UserForm1 | H1: UserForm2 | I1: UserForm3 | J1: UserForm4 | K1: UserForm5 | L1: UserForm6 | M1: UserForm7 | N1: UserForm8 | O1: UserForm9 | P1: UserForm10 | Q1: UserForm11 | R1: UserForm12 | S1: UserForm13 | T1: UserForm14 | U1: UserForm15 | V1: UserForm16 | W1: UserForm17 | X1: UserForm18 | Y1: UserForm19 | Z1: UserForm20 | AA1: UserForm21 | AB1: UserForm22 | AC1: UserForm23 | AD1: UserForm24 | AE1: UserForm25 | AF1: UserForm26
A2: データ | B2: 統計分析ソフト HAD | C2: ※Stanに入力するためのinput行列を指定されたディレクトリにcsvファイルで保存しました。 | D2: HAD実行中．．．.データ入力 | E2: データ 読み込み | G2: 統計分析マクロ HAD | H2: 列幅の調整： HAD | I2: シートの管理： HAD | J2: 尺度平均値： HAD | K2: 設定： HAD | L2: 因子分析オプション： HAD | M2: 回帰モデルオプション： HAD | N2: 変数の作成： HAD | O2: 数値計算： HAD | P2: データセット： HAD | Q2: HAD計算中 | R2: 変数情報変更： HAD | S2: 分析に使用する変数： HAD | T2: モデルの選択 回帰分析： HAD | U2: 統計分析マクロ HAD（簡易モード） | V2: 媒介分析の設定： HAD | W2: モデルの選択 因子分析： HAD | X2: ステップワイズ法設定 | Y2: スクリープロット設定 | Z2: TTM2HAD | AA2: 潜在ランク回帰分析の詳細設定 | AB2: HAD2GLIMMIXの設定 | AC2: HAD2R | AD2: HAD2glmmstanの設定 | AE2: グラフ設定 | AF2: HAD2Stan_SEM
A3: モデリング | B3: HADファイルをアクティブにしてください | C3: 要約統計量 | D3: HAD実行中．．．. | E3: モデリング シート | G3: ID変数を含む | H3: HADの設定値 | I3: 閉じる | J3: OK | K3: 作成している行列データを使用する | L3: ・推定設定 | M3: キャンセル | N3: キャンセル | O3: 逆行列の計算 | P3: 変数をグループに並び替える （横のデータを縦に） | Q3: 現在計算中です。 このまましばらくお待ちください。 もし分析が時間がたっても終わらない場合は、 下の「分析中断」ボタンをおしてください。 | R3: フィルタ | S3: キャンセル | T3: ・分析で用いるモデルを選択してください。 | U3: キャンセル | V3: ・順序回帰分析のリンク関数 | W3: ・分析で用いるモデルを選択してください。 | X3: ・ステップワイズ法の基準 | Y3: ・平行分析 | Z3: 参照 | AA3: 学習回数の推定数に対する倍率 | AB3: ・推定方法 | AC3: 参照 | AD3: データファイルのパス | AE3: グループ別 | AF3: キャンセル
A4: ソルバー アドイン | B4: エラー内容: | C4: 箱ひげ図 | D4: HAD実行中．．．.分析準備中 | E4: 列幅の 調整 | G4: OK | H4: 各変数名の長さにあわせる | I4: 全削除 | J4: -1をかけて逆転 | K4: ・出力設定 | L4: ・因子軸の回転基準 | M4: OK | N4: OK | O4: 対称行列の固有値（Jacobi法） | P4: グループ内人数= | Q4: 分析中断 | R4: 値ラベル | S4: OK | T4: 使用変数 | U4: OK | V4: ・カウントデータの分布 | W4: キャンセル | X4: 投入基準 | Y4: サンプリング回数= | Z4: ・ExcelTTMの読み込み | AA4: ・潜在ランク分析（自己組織化マップ）の推定設定 | AB4: ガウス-エルミート求積法による最尤法 | AC4: 閉じる | AD4: 参照 | AE4: ID変数のラベルをつける | AF4: OK
A5: シート管理 | B5: 変数名を選択してください。 | C5: ヒストグラム | D5: HAD実行中．．．.分析 | E5: 数値 計算 | G5: グループ平均センタリング（変数名_g） | H5: マニュアル | I5: 下の記号がついてないシートを削除 | J5: 最大値 + | K5: ラベルで結果を出力 | L5: 最大反復数 = | M5: 投入基準 | N5: 平均値で2群に分割する | O5: 固有値の計算（QR法） | P5: グループを変数に並び替える （縦のデータを横に） | R5: ラベル | S5: 追加→ | T5: キャンセル | U5: 詳細モード | V5: ポアソン | W5: OK | X5: 削除基準 | Y5: 初期値をランダムにする | Z5: 出現頻度の最小値 | AA5: 非比例オッズモデル | AB5: ラプラス近似による最尤法 | AC5: R用データ保存 | AD5: データファイル名 | AE5: 正規曲線を表示 | AF5: ・HAD2Stan_SEM設定
A6: HADを起動 | B6: 変数より多い変数の使用は分析できません。 | C6: 度数分布 | D6: HAD実行中．．．.因子分析 | E6: HAD2R | G6: グループ内平均（変数名_m） | H6: OK | I6: すべてのシートを削除 | J6: 逆転しない | K6: ・欠損値設定 | L6: 収束基準 = | M6: 削除基準 | N6: 使用変数の合計得点を算出する | O6: OK | P6: （縦のデータを横にする） | R6: ＠変数 | S6: ←削除 | T6: OK | U6: 出力を上書きしない | V6: 負の二項分布 | W6: ・使用変数 | X6: キャンセル | Y6: ・単純構造性分析 | Z6: ・使用する単語の設定 | AA6: 比例オッズモデル | AB6: 制限付き疑似最尤法 | AC6: csvファイルの読み込み | AD6: .csv | AE6: ヒストグラムの級数= | AF6: Rの作業ディレクトリ
A7: 変数の投入 | B7: 分析コードを選択してください。 | C7: 正規性の検定 | D7: HAD実行中．．．.クラスタ分析 | E7: TTM2 HAD | G7: キャンセル | H7: キャンセル | I7: "$"がついてないシートを全削除 | J7: 負荷量が負の項目があります。 得点を逆転して合成しますか？ | K7: "." （ピリオド） | L7: 直交回転基準= | M7: 主効果を全体平均で中心化する | N7: 使用変数の平均得点を算出する | O7: キャンセル | P7: （横のデータを縦にする） | R7: 変数名 | S7: 全投入 | T7: 追加→ | U7: 差の検定 | V7: ロジット | W7: ・独立変数 | X7: OK | Y7: キャンセル | Z7: 動詞 | AA7: ・潜在ランク回帰分析の回帰係数 | AB7: 疑似最尤法 | AC7: ・フォルダのパス | AD7: キャンセル | AE7: マーカーを表示しない | AF7: 参照
A8: 変数の作成 | B8: 分析コードが正しくありません。 | C8: 散布図 | D8: HAD実行中．．．.等質性分析 | E8: 分析 | G8: データ入力方法 | H8: Excelデフォルト(列幅8.38) | I8: 名前変更 | J8: から引いて逆転 | K8: ユーザー指定 | L8: ※Kappaが大きいほど因子間相関が大きくなります | M8: 2値のダミー変数をカテゴリカル変数として扱う（推奨） | N8: 中央値で2群に分割する | O8: 行列式の計算 | P8: OK | R8: 値 | S8: 全削除 | T8: ←削除 | U8: 対応なし | V8: プロビット | W8: モデルを保存 | X8: デフォルト設定 | Y8: OK | Z8: 名詞 | AA8: ・連続量の潜在ランク分析の平均値の推定方法 | AB8: キャンセル | AC8: ・ファイル名 | AD8: OK | AE8: 線形近似直線を引く | AF8: データファイル名
A9: 分析コードを実行 | B9: 分析コードが不適切です。 | C9: 群ごとの統計量 | D9: HAD実行中．．．.構造方程式モデル | E9: データ シート | G9: 差の検定 | I9: 表示 | J9: 固定値 | K9: ・HADの表示設定 | L9: キャンセル | M9: タイプⅢ | N9: 変数の合成 | O9: 出力を上書きしない | P9: キャンセル | R9: 値より大きいサブジェクトを除外 | S9: 使用変数 | T9: 主効果を投入 | U9: 対応あり | V9: ・打ち切りデータの方向 | W9: 選択したモデルを消去 | Y9: デフォルト設定 | Z9: 形容詞 | AA9: 生成位相マップ | AB9: OK | AC9: 書き出し | AD9: ・R用のデータ設定 | AE9: ドットプロットを重ねる | AF9: .csv
A10: 分析コードをHADに反映 | B10: モデリングシートの設定が初期化されます。 | C10: カーネル密度推定 | D10: HAD実行中．．．出力 | E10: 使用変数 | G10: マルチレベル分析 | I10: 削除 | J10: から引いて逆転 | K10: 変数情報を保存する（254変数まで） | L10: OK | M10: タイプⅡ | N10: 尺度変換 | O10: 多変量正規乱数の発生 | P10: マルチレベルデータ | R10: 値より小さいサブジェクトを除外 | S10: データリスト | T10: 交互作用を投入 | U10: 平均の差の検定 | V10: 下側 | W10: 保存したモデル一覧 | Y10: 非反復推定法(最大法） | Z10: 副詞 | AA10: 自己組織化マップ | AB10: デフォルト設定 | AC10: .csv | AD10: ・MCMCの設定 | AE10: 95%信頼区間 | AF10: 欠損値を"NA"に変換する
A11: 記述統計量 | B11: 初期化しますか？ | C11: クロス集計表 | D11: HAD実行中．．．.カテゴリカル相関係数 | E11: 選択セルを使用 | G11: マルチレベル相関分析 | I11: シート名 | K11: 表示設定 | L11: デフォルト設定 | M11: ・共変量 | N11: 数値変換 | O11: サンプルサイズ = | P11: データセットの出力 | R11: 値と等しいサブジェクトだけ使用 | S11: 分析で使用する変数 | T11: ・目的変数 | U11: 相関分析 | V11: 上側 | W11: 保存したモデルから選択 | Y11: 主因子法 | Z11: キーワード | AA11: 近傍関数の分散 | AB11: ・残差共分散の構造 | AC11: 参照 | AD11: サンプリング数 | AE11: 標準誤差
A12: ヒストグラム | B12: セルを選択してください。 | C12: 平均値の検定 | D12: HAD実行中．．．.多重クロス表 | E12: 統制変数を投入 | G12: MUML用共分散行列 | I12: モデリング | K12: 分析設定 | L12: （1から1000まで） | M12: ・多重比較の方法 | N12: 値の再割り当て | O12: 共分散行列を完全に一致させる | P12: データセット選択 | R12: データが | S12: HADから除外する変数 | T12: ・独立変数 | U12: 相関の差の検定 | V12: 両側 | W12: 分析コードから入力 | Y12: 非反復推定法(平均法） | Z12: 同義語 | AA12: デフォルト設定 | AB12: 一次自己回帰（AR(1)） | AC12: ファイル | AD12: マルコフ連鎖の数 | AE12: ヒストグラム
A13: メインデータセットとして利用 | B13: データに数式エラーが含まれています。 | C13: 多重クロス表 | D13: HAD実行中．．．.対数線形モデル | E13: 変数を左につめる | G13: データの要約 | I13: データシート | K13: グラフ設定 | L13: （0.00001から1まで） | M13: 修正Shaffer | N13: ダミー変数 | O13: シミュレーション（デバグ用） | P13: 乱数データ生成 | R13: 値と等しいサブジェクトを除外 | S13: 除外する変数 | T13: リストから削除 | U13: 項目分析 (α係数) | V13: 一般化ポアソン | W13: ・スライス変数 | Y13: 精度は高いが、時間がかかる | Z13: ・出力 | AA13: キャンセル | AB13: 球面性（HF） | AC13: 読み込み | AD13: 採用間隔(thin) | AE13: 散布図
A14: 変数をデータセットに追加 | B14: 数式エラーを欠損値に変換しますか？ | C14: 主成分分析 | D14: HAD実行中．．．.対数線形モデル | E14: 変数情報 | G14: 要約統計量 | I14: シート管理 | K14: ショートカット | L14: （1から10 まで） | M14: Shaffer | N14: OK | O14: 乱数生成 | P14: ・現在の使用データ： | R14: OK | S14: キャンセル | T14: モデルを保存 | U14: 信頼性係数 | V14: キャンセル | W14: 使用変数 | Y14: 共通性の和の推移をグラフにする | Z14: 単語の出現頻度数 | AA14: OK | AB14: 分散成分（VC） | AC14: 欠損値を"NA"に変換する | AD14: ウォームアップ数 | AE14: 箱ひげ図
A15: 分析コード | B15: データに空白セルが含まれています。 | C15: 対応のない平均順位の差の検定 | D15: シミュレーション実行中．．．．(現在 | E15: 回帰分析 | G15: 出力を上書きしない | I15: シート削除 | K15: 右クリック | L15: （重み：0から変数の数まで） | M15: Holm | N15: キャンセル | O15: サンプリング | P15: キャンセル | R15: キャンセル | S15: OK | T15: 選択したモデルを消去 | U15: 平均の推定 | V15: OK | W15: モデルを表示↓ | Y15: スクリープロットのカットポイント探索 | Z15: 単語と単語のクロス表 | AA15: 反復推定回数 | AB15: 無構造（UN） | AC15: OK | AD15: 並列化をする | AE15: グラフに枠線をつけない
A16: 変数情報 | B16: データの欠損値や変数の数を確認してください。 | C16: 対応のある平均順位の差の検定 | D16: HAD実行中．．．.分散分析 | E16: 因子分析 | G16: 標準化得点（変数名_s） | I16: 閉じる | K16: システム | L16: ・平行分析 | M16: 主効果および多重比較の有意水準 | N16: 出力を上書きしない | O16: 行列演算 | P16: OK | R16: 適用 | S16: 除外→ | T16: 保存したモデル一覧 | U16: 基準値 = | V16: デフォルト設定 | W16: 選択した部分のモデルを編集(半角スペース区切り) | Y16: 効率のいいモデルを探索 ※推奨 | Z16: 回答者と単語のクロス表 | AA16: ・潜在ランク分析（EMアルゴリズム）の推定設定 | AC16: "NA"を欠損値に変換する | AD16: コア数 | AE16: モノクロ表示にする
A17: 使用変数： | B17: データにスペースのみのセル（変数名 | C17: ピアソンの積率相関係数 | D17: HAD実行中．．．.分散分析出力 | E17: 変数の作成 | G17: 簡便法用共分散行列 | I17: 全削除 | K17: キャンセル | L17: サンプリング回数= | M17: Bonferroni | N17: 出力を上書きしない | O17: OK | P17: シートを指定 | R17: 変数名 | S17: ←戻す | T17: 保存したモデルから選択 | U17: データの要約 | V17: なし | W17: 編集を反映 | Y17: 平行分析を実行する | Z17: 分析実行 | AA17: 近傍関数の分散 | AC17: ・R上で使うデータのオブジェクト名 | AD17: デフォルト設定 | AE17: 折れ線の太さ=
A18: 変数名 | B18: 行目）が含まれています。 | C18: 共分散行列 | D18: HAD実行中．．．.平均値の差の検定 出力 | E18: データセット | G18: ペアワイズ共分散行列 | I18: シートを移動 | K18: OK | L18: 初期値をランダムにする | M18: ・単純効果の誤差項の計算方法 | N18: 使用変数の主成分得点を算出する | O18: キャンセル | P18: ローデータを使用する | R18: 値 | S18: 全読込 | T18: 分析コードから入力 | U18: 要約統計量 | V18: 負Log-Log | W18: 現在のモデル | Y18: 共通性の和 | Z18: キャンセル | AC18: Rコード | AD18: 出力名 | AE18: 目盛線を内側にする
A19: コード | B19: データを確認してください。 | C19: スピアマンの順位相関係数 | D19: HAD実行中．．．.分散分析単純効果検定出力 | E19: シート管理 | G19: 共分散行列 | I19: 選択シートを新規ファイルに移動 | K19: キャンセル | L19: プロマックス回転 Power = | M19: プールされた誤差項 | N19: 変数の合成に，標準化した得点を使用する | O19: 一様分布 | P19: 共分散データを使用する | R19: ラベル | S19: 読み込む変数 | T19: ・スライス変数 | U19: 度数分布表 | V19: 補Log-Log | W19: ・分析法 | Y19: VSS | Z19: 出力を上書きしない | AC19: HAD2Rをオン | AD19: R上のデータ名 | AE19: グラフ全体の設定
A20: 構造方程式 | B20: 変数以上は読み込めません。 | C20: ポリコリック相関係数 | D20: HAD実行中．．．.クラスター分析 | E20: HADの設定 | G20: 行列表示 | I20: 分析履歴 | K20: OK | L20: 独立クラスタ回転 Power = | M20: 水準別誤差項 | N20: 中央値を高群に含める | O20: 正規分布 | P20: ポリコリック相関データを使用する | R20: OK | S20: ・HADから除外する変数を選択してください。 | T20: 使用変数 | U20: 散布図 | V20: ・重回帰分析の推定法 | W20: 分析コード | Y20: VSSの複雑性 = | Z20: 単語と単語の距離行列 | AC20: HAD2Rは現在はオフです | AD20: ・出力設定 | AE20: カーネル密度得点を出力
A21: モデリング | B21: データセットを入力してください。 | C21: アルファ係数 | D21: HAD実行中．．．. | E21: フィルタ | G21: 相関分析 | I21: 保護 | K21: ・HADの初期化 | L21: 斜交回転法 | M21: 回帰分析 | N21: 中央値を低群に含める | O21: 標本サイズ = | P21: ローデータ | R21: キャンセル | S21: ・分析で使用する変数を選択してください。 | T21: モデルを表示↓ | U21: 箱ひげ図 | V21: 最小二乗法 | W21: モデルを表示↓ | Z21: 回答者ごとの単語への反応データ | AC21: HAD2Rをオンにする | AD21: stanの結果を出力 | AE21: キャンセル
A22: 確認的 | B22: 前に「HADから除外する変数」に指定した変数は、今回も除外しますか？ | C22: 信頼性係数 | D22: HAD実行中．．．.クラスタ分析 クラスタの特徴計算中 | E22: 値ラベル | G22: 中心化得点（変数名_c） | K22: 分析の設定がすべてHADのデフォルトに戻り、 保存されている変数情報すべてが消去されます。 | L22: 直接オブリミン回転 （クォーティミン） | M22: 分散分析 | N22: 基準値を欠損値にする | O22: 標本の数 = | P22: （グループで平均する） | R22: 適用 | S22: 全除外 | T22: 選択した部分のモデルを編集(半角スペース区切り) | U22: 直線回帰 | V22: 最尤法 | W22: すべてのモデルを消去 | Z22: データ出力 | AC22: ・データ読み込み用のRコード | AD22: stanコードを出力 | AE22: OK
A23: 因子分析 | B23: 変数名に、「$」、「\」、「,(カンマ)」、「半角スペース」は使えません | C23: 対応のない平均値の差の検定 | D23: HAD実行中．．．.クラスター分析 デンドログラム作成中 | E23: ラベル | G23: read me | K23: キャンセル | L23: （0から1 まで） | M23: 一般化線形モデル | N23: 標準化得点（変数名_s） | O23: 最小値 = | P23: グループ単位のデータ （グループ平均） | R23: 追加 | S23: 統制変数 | T23: 編集を反映 | U23: セルごとの度数 | V23: ・ロバスト標準誤差のタイプ | W23: ・モデル名 | Z23: 単語のクラスタリング | AC23: ↓ | AD23: ・glmmstanのインストール | AE23: カーネル区間数=
A24: マルチレベル | B24: 同じ名前の変数があります。 | C24: 対応のある平均値の差の検定 | D24: HAD実行中．．．.多次元尺度法 | E24: @変数 | G24: ペアワイズ削除 | K24: 設定の初期化 | L24: 因子分析 | M24: 一般化線形混合モデル | N24: 集団平均値（変数名_m） | O24: 最大値 = | P24: 選択した変数を出力する | R24: 削除 | S24: 追加→ | T24: 現在のモデル | U24: ラベル付き | V24: クラスタの補正 | Z24: データの数量化 | AD24: インストール用コードを出力 | AE24: エラーバーを表示
A25: SEM | B25: 変数の数が最大値( | C25: 重回帰分析 | D25: HAD実行中．．．.潜在ランク分析 EMアルゴリズム | E25: 目的変数を投入 | G25: リストワイズ削除 | K25: 変数情報の列を常にウィンドウ固定 | L25: クラスタ分析 | M25: キャンセル | N25: 集団平均で中心化（変数名_g） | O25: 母平均 = | P25: SASのコードを出力 | R25: フィルター全削除 | S25: ←削除 | T25: ・分析法 | U25: グループ別 | V25: 不均一分散の補正 | Z25: クラスタデータの出力 | AE25: デフォルト
A26: 制約→ | B26: )より多いため、すべてを読み込むことができません。 | C26: ポアソン回帰分析 | D26: 回目 | E26: 主効果を全投入 | G26: 欠損値処理方法 | K26: シート全表示 | L26: 数量化分析 | M26: OK | N26: 中心化得点（変数名_c） | O26: 母分散 = | P26: ・多変量正規乱数を生成する | R26: 選択セルを入力 | S26: 登録 | T26: 分析コード | U26: クロス表 | V26: ・ブートストラップ標本数 | Z26: クラスタ数= | AE26: 下側にエラーバーをつけない
A27: グループ→ | B27: データ読み込み中にエラーが起きました。HADを終了します。 | C27: 負の二項回帰分析 | D27: HAD実行中．．．.潜在ランク分析 自己組織化マップ | E27: 交互作用を全投入 | G27: データを出力 | K27: ・前のバージョン(HAD16以降)のデータを読み込む | L27: 構造方程式モデル | M27: キャンセル | N27: マルチレベルデータ | O27: 出力を上書きしない | P27: 選択した変数の共分散行列から生成 | R27: フィルターを適用する | S27: 消去 | T27: モデルを表示↓ | U27: ヒストグラムの級数 = | V27: 乱数の初期値をランダムにする | Z27: 多次元尺度法 | AE27: バンド幅パラメータ=
A28: 最大値 | B28: 別のシートからのデータ使用時は、回帰分析・因子分析以外は利用できません。 | C28: ロジスティック回帰分析 | D28: HAD実行中．．．.標準誤差の計算中 | E28: オプション | G28: マルチレベルデータ | K28: シートの保護を解除 | L28: ・単純構造性分析 | M28: OK | N28: 出力を上書きしない | O28: 正規分布 | P28: シートを指定 | R28: すべてのデータを分析に利用する | S28: 登録変数一覧 | T28: すべてのモデルを消去 | U28: 正規性の検定 | V28: ブートストラップ標本サイズ = | Z28: 最長距離法 | AE28: 折れ線グラフにエラーバーをつける
A29: 最小値 | B29: 最大数( | C29: ガンマ回帰分析 | D29: HAD実行中．．．.因子分析 反復回数 = | E29: 分析実行 | G29: （級内相関係数） | K29: 画面の初期化 | L29: キャンセル | M29: ・球面性からの逸脱による自由度補正 | N29: OK | O29: ポアソン分布 | P29: キャンセル | R29: 選択セルを入力 | S29: 登録変数の表示↓ | T29: 分析で用いるモデルを選択 | U29: 順位相関分析 | V29: パラメトリック | Z29: 群平均法 | AE29: 戻る
A30: ソルバーオン | B30: )より多い変数の分析はできません。 | C30: 線形回帰分析 | D30: HAD実行中．．．.因子分析 反復回数 = | E30: フィルタをオフにする | G30: PW相関分析 | K30: "NA" | L30: OK | M30: H-F | N30: キャンセル | O30: キャンセル | P30: OK | R30: 消去 | T30: ・モデル名 | U30: 共分散 | V30: ノンパラメトリック | Z30: ウォード法 | AE30: バイオリンプロットを重ねる
A31: ソルバーオフ | B31: 別のシートからのデータ使用時は、変数の作成は利用できません。 | C31: 判別分析 | D31: HAD実行中．．．.カテゴリカル因子分析・・・ | E31: 出力を上書きしない | G31: データの再構成 | K31: OK | L31: デフォルト設定 | M31: G-G | N31: リストワイズ削除（合成 | O31: OK | P31: 出力を上書きしない | R31: 選択セルを入力 | U31: 順位の差の検定 (ノンパラ検定) | V31: ・ブートストラップ標本の抽出法 | Z31: 次元数= | AE31: 平均値に印をつける
A32: ポリコリック相関データ | B32: 共分散データからはカテゴリカル因子分析は実行できません。 | C32: 因子分析 | D32: ニュートン法 | E32: 連続 | G32: 変数をグループに並び替える | K32: キャンセル | L32: 非反復推定法(最大法） | M32: 下限 | N32: リストワイズ削除（尺度 | O32: 二項分布 | P32: サンプルサイズ = | R32: 変数名 | U32: 対応あり | V32: ・乱数の設定 | Z32: クラスタの出現頻度数 | AE32: 棒グラフ
A33: 共分散データ | B33: 共分散データからはクラスタ分析は実行できません。 | C33: 階層クラスタ分析 | D33: 準ニュートン法 | E33: 順序 | G33: ペアワイズデータセット | K33: 表示 | L33: 主因子法 | M33: 補正なし | N33: リストワイズ削除（ダミー | O33: 負の二項分布 | P33: ・一変量標準正規乱数を生成する | R33: OK | U33: 対応なし | V33: ・ブートストラップ信頼区間の推定法 | Z33: データのシート名 | AE33: カーネル密度推定
A34: プロクラステス | B34: 共分散データからは数量化分析は実行できません。 | C34: K-means法 | D34: セカント法 | E34: 割合 | G34: グループ内人数= | K34: 非表示 | L34: VSS | M34: ・説明変数の設定 (一般化線形モデルと共通) | N34: 平均値= | O34: 平均 | P34: 標準正規分布から乱数データを生成 | R34: キャンセル | U34: 変数間の関連性 | V34: パーセンタイル法 | Z34: 対応分析 | AE34: 標本サイズによって変える
A35: 回転 | B35: Mac版ではSEMはまだ実装していません。 | C35: サンプルサイズ | D35: HAD実行中．．．.因子得点計算中 | E35: カウント | G35: 因子分析 | K35: 除去→ | L35: VSSの複雑性 = | M35: ・分析法選択 | N35: 標準偏差= | O35: 分散 | P35: ランダマイズ | R35: 適用 | U35: 対応分析 | V35: バイアス修正法 | Z35: 次元数=
A36: 最短距離法 | B36: このHADはソルバーがオフのバージョンです。ソルバーオンバージョンをダウンロードしてください。 | C36: ※分散は不偏分散，標準偏差は不偏分散の平方根が出力されています。 | D36: HAD実行中．．．.因子得点計算中(EAP 区分求積法)・・・ | E36: 打ち切り | G36: 項目分析 | K36: ←戻す | L36: 共通性の和 | M36: 名義有意水準を表示 | N36: 変数の引き算 | O36: サンプルサイズ = | P36: サンプルサイズを変更 | R36: フィルタ変数作成 | U36: マルチレベル分析 | V36: 標準化係数を表示する | Z36: クラスタ分析
A37: 最長距離法 | B37: モデルスペースを開いて実行してください。 | C37: 変数名 | D37: HAD実行中．．．.因子得点計算中(EAP モンテカルロ積分)・・・ | E37: 名義 | G37: グループを変数に並び替える | K37: 全表示 | L37: 非反復推定法(平均法） | M37: デフォルト設定 | N37: 変数の足し算 | O37: 確率 | P37: ペアワイズデータセット | R37: ・現在のフィルタ設定を変数化する | U37: マルチレベル相関分析 | V37: ・パス図の表示 | Z37: スコアデータの出力
A38: メディアン法 | B38: シート指定のデータでは因子得点は算出できません。 | C38: 有効N | D38: HAD実行中．．．.因子得点計算中(MAP法)・・・ | E38: 混合分布 | G38: （縦のデータを横にする） | K38: 全除去 | L38: 精度は高いが、時間がかかる | M38: デフォルト設定 | N38: 変数の掛け算 | O38: 試行数 | P38: リストワイズ削除 | R38: （除外=1, 使用=0） | U38: MUML用共分散行列 | Z38: Varimax回転
A39: 重心法 | B39: 共分散データ使用時は頑健な標準誤差は利用できません。 | C39: 平均値 | D39: HAD実行中．．．.因子分析 回数 = | E39: 分位点 | G39: （横のデータを縦にする） | K39: 再読込み | L39: 共通性の和の推移をグラフにする | M39: デフォルト設定 | N39: キャンセル | O39: 平均 | P39: 出力を上書きしない | R39: この変数をグループ分け変数にする | U39: ペアワイズ相関分析 | Z39: 重みあり
A40: 群平均法 | B40: 共分散データ使用時はクラスタ標準誤差は利用できません。 | C40: 中央値 | D40: HAD実行中．．．.平行分析 反復回数 = | E40: 頑健標準誤差 | G40: 目的変数= | K40: 全て初期化 | L40: スクリープロットのカットポイント探索 | M40: Satterthwaitの補正を行う | N40: OK | O40: 平均 | P40: ・データの並び替え | R40: OK | U40: ペアワイズ共分散行列 | Z40: 重みなし
A41: 可変法 | B41: 非階層クラスター分析では変数の分類はできません。 | C41: 標準偏差 | D41: HAD実行中．．．.項目反応理論グラフ出力中 | E41: クラスタ標準誤差 | G41: 回帰分析 | K41: デフォルト設定 | L41: 効率のいいモデルを探索 ※推奨 | M41: ペアごとの誤差項 | N41: 出力を上書きしない | O41: 過分散 | P41: ・データの並び替え | R41: キャンセル | U41: 識別可能 | Z41: デンドログラムの要約基準=
A42: ウォード法 | B42: 非階層クラスター分析では距離行列から分析はできません。 | C42: 分散 | D42: HAD実行中．．．.回帰分析 | E42: モデル保存 | G42: 残差得点 | K42: シートのセル幅変更 | L42: デフォルト設定 | M42: 要因の誤差項 | N42: リストワイズ削除（数値 | O42: 出力を上書きしない | P42: ・マルチレベルデータの並び替え | R42: ＠変数追加 | U42: 級内相関係数 | Z42: デンドログラムを要約
A43: クラスタ分析 | B43: 混合分布モデルでは変数の分類はできません。 | C43: 歪度 | D43: HAD実行中．．．.回帰分析ステップ | E43: 回帰分析 | G43: カテゴリーで統制 | K43: ・エラーバー | L43: キャンセル | M43: 内要因の多重比較 | N43: - 変数 | O43: ランダマイズ | P43: フィルタをオフにする | R43: ＠変数削除 | U43: マルチレベルデータ | Z43: クラスタデータ
A44: k-means法 | B44: 混合分布モデルでは距離行列から分析はできません。 | C44: 尖度 | D44: HAD実行中．．．.回帰分析 単純主効果の検定 | E44: 分散分析 | G44: モデリングシートを読み込む | K44: 標準誤差 | L44: OK | M44: ・その他の設定 | N44: 変数 + | O44: 形状 | P44: 共分散行列が完全に一致するように生成 | R44: ＠変数 | U44: フィルタをオフにする | Z44: 主成分分析
A45: 改良k-means | B45: 潜在クラス分析では変数の分類はできません。 | C45: 最小値 | D45: HAD実行中．．．.混合分布回帰分析 | E45: 一般化線形モデル | G45: 使用する変数の数を入力する | K45: 95%信頼区間 | L45: ・クラスター基準 | M45: 共変量を中心化する | N45: 乗 | O45: ガンマ分布 | P45: リストワイズ削除 | R45: 代入する変数名 | U45: ヒストグラム | Z45: 主成分分析
A46: 混合正規分布 | B46: 潜在クラス分析では距離行列から分析はできません。 | C46: 最大値 | D46: HAD実行中．．．.潜在ランク回帰分析 | E46: 一般化線形混合モデル | G46: 交互作用項 | K46: キャンセル | L46: ウォード法 | M46: ・標準化係数 | N46: 変数の累乗 | O46: 尺度 | P46: マルチレベルモデル用の共分散行列 | R46: 適用 | U46: APIモデル | Z46: 対応分析
A47: 潜在クラス分析 | B47: 潜在ランク分析では変数の分類はできません。 | C47: 人数 | D47: HAD実行中．．．.一般化線形混合モデル事前処理中 | E47: 階層的投入法 | G47: 簡易モード | K47: OK | L47: 群平均法 | M47: 目的変数が2値データのときロジスティック回帰分析を実行 | N47: 変数 * | O47: α | P47: Betweenレベル | R47: ＠変数全削除 | U47: グループごとの回帰直線 | Z47: サイズで並び替え
A48: 潜在ランク分析 | B48: 潜在ランク分析では距離行列から分析はできません。 | C48: 標準誤差 | D48: HAD実行中．．．.一般化線形混合モデル 単純主効果の検定 | E48: ステップワイズ | G48: 識別可能 | K48: ・ヒストグラムの表示 | L48: 重心法 | M48: ステップワイズ法 | N48: 変数の対数変換 | O48: β | P48: Withinレベル | R48: キャンセル | U48: バブルチャート | Z48: （主成分分析で用いる）
A49: 連続 | B49: 一般化最小二乗法では欠損値推定は実行できません。 | C49: 95%精度 | D49: ブートストラップ実行中．．．．(現在 | E49: 媒介分析 | G49: （グループ内間混合） | K49: ・散布図の表示 | L49: 最長距離法 | M49: 多変量回帰 | N49: ダミー変数を作成 | O49: ベータ分布 | P49: グループ内通し番号 | R49: OK | U49: 主成分分析 | Z49: （対応分析で用いる）
A50: 順序 | B50: 共分散データからは構造方程式モデリングは実行できません。 | C50: 得点 | D50: HAD実行中．．．.ブートストラップ処理中 | E50: 各ステップを出力しない | G50: マルチレベル回帰分析 | K50: 線形近似直線を引く | L50: 最短距離法 | M50: 重回帰分析 | N50: 最初の変数から残りの変数を引いた差得点を算出する | O50: データセットから | P50: 指数分布族乱数の生成 | R50: 変数名 | U50: 群ごとの統計量
A51: 外生変数 | B51: 探索的因子分析ではモデルスペースは使用しません。 | C51: 正規性検定 | D51: HAD実行中．．．.一般化線形混合モデル実行中(NULLモデル) | E51: 残差得点を出力 | G51: 級内相関= | K51: 下側にエラーバーをつけない | L51: デンドログラムの表示法 | M51: 相関係数の差 | N51: 今までの値 | P51: ・一変量の指数分布族乱数を生成する | R51: コード説明 | U51: グラフ設定
A52: パスを推定 | B52: 使用変数を入力してください。 | C52: χ2乗値 | D52: HAD実行中．．．.一般化線形混合モデル実行中 | E52: HAD2GLIMMIX | G52: 以下をはずす | K52: ・グラフの表示設定 | L52: 距離の | M52: ロジスティック・カウント回帰分析の標準化係数を出力する | N52: 新しい値 | R52: 分析法： | U52: 多重クロス表分析
A53: 共分散を推定 | B53: 使用変数と因子数の合計が規定値(95)を超えています。 | C53: p値 | D53: HAD実行中．．．.一般化線形混合モデル事後処理中 | E53: HAD2glmmstan | G53: 媒介分析 | K53: モノクロ表示にする | L53: 乗 | M53: ※計算に時間がかかることがあります | N53: その他の全ての値 | R53: 使用変数：
A54: 初期化 | B54: 使用変数と因子数の合計が規定値(50)を超えています。 | C54: ジャック・ベラ検定 | D54: HAD実行中．．．.媒介分析処理中 | E54: 因子分析 | G54: bootn= | K54: グラフに枠線をつけない | L54: クラスター経過工程を出力 | M54: 交互作用項を含む場合、各変数を中心化する（推奨） | N54: 欠損値 | R54: 使用変数名
A55: モデルチェック | B55: すでに潜在因子数が0になっています。 | C55: 統計量 | D55: HAD実行中．．．.回帰分析ステップ | E55: クラスタ分析 | G55: ランダマイズ | K55: マーカーを表示しない | L55: ・出力設定 | M55: ・ステップワイズ法の基準 | N55: 範囲を指定 | R55: コードを実行
A56: HAD2Stan | B56: 2つ以上の変数を選択してください。 | C56: 補正p値 | D56: HAD実行中．．．.多変量回帰分析 | E56: 数量化分析 | G56: スクリープロット | K56: 折れ線グラフにエラーバーをつける | L56: 距離行列を出力 | M56: 球面性の検定結果を出力する | N56: 値を指定 | R56: 新しく作成した変数のコードを再実行することで， データを増やした場合に同じ方法で得点化できます。
A57: パス追加 | B57: モデルが識別できません。推定するパラメータを減らしてください。 | C57: コルモゴロフ・スミルノフ検定 | D57: HAD実行中．．．.媒介分析出力 | E57: 構造方程式モデル | G57: データ共分散行列 | K57: OK | L57: ・多次元尺度法の設定 | M57: ・カウントデータの分布 | N57: から | R57: コード：
A58: 共分散追加 | B58: 測定項目がない因子があります。二つ以上の項目を指定してください。 | C58: ※ジャック・ベラ検定は歪度と尖度が0であるという帰無仮説に対する検定です。自由度2のχ2乗検定を用います。 | D58: HAD実行中．．．.NULLモデルの推定中 | E58: 因子増やす | G58: 度数分布表 | K58: キャンセル | L58: 次元まで抽出 | M58: ポアソン分布 | N58: 今までの値をコピー
A59: パス図消去 | B59: 使用変数に二つ以上の変数を指定してください。 | C59: セルごとの度数 | D59: HAD実行中．．．.モデルの推定中 | E59: 因子減らす | G59: 対応分析 | K59: ・ショートカットキーの指定 | L59: デフォルト設定 | M59: 負の二項分布 | N59: 欠損値
A60: パス図を反映 | B60: パス図描画中にエラーが起きました。 | C60: サンプルサイズ = | D60: HAD実行中．．．.パラメータの構造化中 | E60: パス図表示 | G60: 順位相関分析 | K60: モデリングシート表示 | L60: キャンセル | M60: ・割合回帰分析の分布 | N60: 値を指定
A61: パス図を再描画 | B61: 共分散データからでは分散分析は実行できません。 | C61: (リストワイズ削除されています) | D61: HAD実行中．．．.標準誤差の計算中 | E61: スライス | G61: 行列表示 | K61: 分析履歴表示 | L61: OK | M61: プロビット | N61: OK
A62: 目的変数→ | B62: 共分散データからで一般化線形モデルは実行できません。 | C62: 度数 | D62: HAD実行中．．．.構造方程式モデリング・・・ | E62: 共変量を中心化 | G62: 散布図 | K62: 変数を投入 | L62: ・データの種類 | M62: ロジット | N62: キャンセル
A63: スライス→ | B63: 共分散データからでは階層線形モデルは実行できません。 | C63: 比率(%) | D63: 基準 | E63: 名義有意水準を表示 | G63: 尺度平均値 | K63: デフォルト設定 | L63: 変数型：変数に、カテゴリが数値としてコードされている | M63: 補Log-Log | N63: 削除
A64: 重回帰分析 | B64: 共分散データからでは判別分析・多変量回帰分析は実行できません。 | C64: 総度数 | E64: 一般化効果量 | G64: 合計値 | K64: デフォルト設定 | L64: カテゴリ反応型：カテゴリへの反応が0と1でコードされている | M64: 負Log-Log | N64: 出力を上書きしない
A65: ロバスト回帰 | B65: セルB2にID変数を入力してください。 | C65: 対数線形モデル | E65: 不偏推定効果量 | G65: 中央値で分割 | K65: デフォルト設定 | L65: ・グラフの出力設定 | M65: ・打ち切りデータの方向 | N65: リストワイズ削除（再割あて
A66: 頑健なSE | B66: 使用変数が入力されていません。 | C66: 変数 | E66: 対数線形モデル | G66: 平均で分割 | K66: シート管理 | L66: クロス表型：データが2変数のクロス表の場合 | M66: 下側 | N66: ・使用変数から合成変数を作ります
A67: クラスタSE | B67: 回帰分析の目的変数が入力されていません。 | C67: 度数が0のセルが存在するため， | E67: 集団平均で中心化 | G67: 平行分析 | K67: 分析履歴を表示 | L67: ※クロス表型の場合は、行と列を同時にプロットします。 | M67: 上側 | N67: 平均値を0にします
A68: ブートストラップ | B68: 目的変数が使用変数にありません。 | C68: を加えています。加える値は「HADの設定」から変更できます。 | E68: 判別分析 | G68: 多変量乱数 | K68: 履歴保存数 | L68: 次元軸の目盛を表示する | M68: 両側 | N68: 集団平均で中心化します
A69: モデル→ | B69: 目的変数が共分散データにありません。 | C69: セル番号 | E69: 多変量回帰分析 | G69: 標準得点使用 | K69: セル幅 | L69: 次元軸を表示する | M69: なし | N69: 集団平均を算出します
A70: 強制投入→ | B70: 共分散データからでは交互作用は検討できません。 | C70: 変数間の関連性と検定 | E70: 各セルの平均値 | G70: 主成分得点 | K70: 新しい分析結果を前に表示する | L70: カイザーの基準化を行う | M70: 一般化ポアソン | N70: ・使用変数を基準値で2群に分割します（低群=0, 高群=1)
A71: 媒介分析 | B71: 媒介分析では交互作用は検討できません。 | C71: 階層ごとの推定 | E71: 媒介分析の設定 | G71: カテゴリカル相関 | K71: ・カテゴリカルデータの水準数 | L71: デンドログラムの要約基準 | M71: 判別分析 | N71: ・使用変数をダミー変数に変換します
A72: 線形回帰 | B72: 目的変数が入力されていません。 | C72: 次モデル | E72: Stepwiseの設定 | G72: 行列表示 | K72: 水準数が | L72: 分類対象が | M72: ・一般化線形モデルの反復計算の基準 | N72: ・使用変数と定数の四則演算
A73: 変量効果 | B73: 使用変数が多いため交互作用は5変数までのみ入力します。 | C73: 飽和モデルの推定結果 | E73: 履歴を非表示 | G73: カテゴリの水準 < | K73: 以内の変数をカテゴリデータと見做す | L73: 以上 | M73: 最大反復回数 | N73: ・使用変数の非線形変換
A74: 残差構造→ | B74: 使用変数より多い変数は指定できません | C74: 係数 | E74: 履歴を全消去 | G74: Full-ML | K74: ・HADのバージョン | L74: 平行分析を実行する | M74: 収束基準 | N74: ・現在のフィルタ設定を反映した変数を作成します（除外=1, 使用=0)
A75: 変量効果→ | B75: 共分散データからでは各セルの平均値は計算できません。 | C75: 下限 | E75: 起動 | G75: Two-Step | K75: hadversion | L75: ※重み=1でバリマックス回転 | M75: ・説明変数の設定 | N75: フィルタ変数を作成
A76: 分散分析 | B76: 判別分析はローデータ使用時しか実行できません。 | C76: 上限 | E76: シート 管理 | G76: 起動から | K76: ファイルを参照 | L76: k-means法 | M76: 2値のダミー変数をカテゴリカル変数として扱う（推奨） | N76: 平均得点を算出
A77: 共変量→ | B77: 順序データの回帰分析はローデータ使用時しか実行できません。 | C77: Z値 | E77: 閉じる | G77: クロス表として読み込む | K77: ・乱数のシード | L77: ランダマイズ | M77: 主効果を全体平均で中心化する | N77: 合計得点を算出
A78: 反復測定→ | B78: 名義データの回帰分析はローデータ使用時しか実行できません。 | C78: 度数分布表 | E78: 二値 | G78: ローデータとして読み込む | K78: システムタイマーを使う | L78: 改良k-means | M78: レベル1の変数を集団平均で中心化する（推奨） | N78: 主成分得点を算出
A79: 対数線形モデル | B79: 割合データの回帰分析はローデータ使用時しか実行できません。 | C79: ヒストグラム（正規性検定） | E79: 傾向スコア分析 | G79: 箱ひげ図 | K79: シードを固定 | L79: 階層法 | M79: ・階層線形モデルの反復計算の基準 | N79: 最初の変数から残りの変数を引く
A80: 判別分析 | B80: 混合分布回帰分析はローデータ使用時しか実行できません。 | C80: 出現値 | G80: 行列演算 | K80: 折れ線の太さ= | L80: 非階層法 | M80: 最大反復回数 | N80: ・各変数の平均と標準偏差を変換します
A81: 多変量回帰 | B81: カウントデータの回帰分析はローデータ使用時しか実行できません。 | C81: 確率(%) | G81: 変数の計算 | K81: 出力のフォントをTimes New Romanにする | L81: 初期値 | M81: 収束基準 | N81: ・各変数を集団平均で中心化します （マルチレベルデータ)
A82: 説明変数→ | B82: 打ち切りデータの回帰分析はローデータ使用時しか実行できません。 | C82: 有効度数 | G82: ダミーコード | K82: 目盛線を内側にする | L82: 主成分 | M82: デフォルト設定 | N82: （最大値+1の値を入力）
A83: HLM | B83: 分位点回帰分析はローデータ使用時しか実行できません。 | C83: 有効確率 | G83: 変数の差 | K83: ・箱ひげ図・棒グラフの表示 | L83: ランダム | M83: キャンセル | N83: ※共分散行列から主成分分析を行います。 因子分析の主成分解と同じ結果にするためには 標準化した得点を使用してください。
A84: 連続変量 | B84: マルチレベル分析では，欠損値データの分析はできません。 | C84: 累積確率 | G84: 順位の差の検定 (ノンパラ検定) | K84: ドットプロットを重ねて表示する | L84: 反復 | M84: OK | N84: 集団平均値＋中心化（変数名_mc）
A85: 正規分布 | B85: 欠損値推定では外生変数の分散を推定します。 | C85: 合計 | G85: 変数間の関連性 | K85: 日本語フォント | L85: 反復回数= | M85: ・標準誤差のタイプ | N85: 中心化した集団平均を算出
A86: 対数正規分布 | B86: 一般化最小二乗法では欠損データの推定はできません。 | C86: 正規性 | G86: 対応なし | K86: 正規曲線を表示 | L86: ・尺度得点の計算方法 | M86: モデルに基づいた標準誤差 | N86: 中心化して交互作用項を作成
A87: ガンマ分布 | B87: HAD起動中にエラーが起きました。HADを終了します。 | C87: 区間 | G87: 対応あり | K87: エラーバーを表示 | L87: 合計値 | M87: 頑健な標準誤差 | N87: 変数の逆正弦変換 （角変換）
A88: 順序回帰 | B88: 混合分布回帰分析では階層的投入法は利用できません。 | C88: 級代表値 | G88: 平均値の差の検定 | K88: グラフ設定詳細 | L88: 平均値 | M88: 交互作用項を含む場合、各変数を中心化する（推奨） | N88: ・交互作用項を作ります
A89: ロジスティック | B89: クラスタ数を入力してください。 | C89: 一様性の検定 | G89: 対応あり | K89: ・対数線形モデルの0度数に加える値 | L89: 収束基準 = | M89: ・出力の設定 | N89: フィルタをオフにする
A90: プロビット | B90: グループ識別変数を最初のセルに入力してください。 | C90: 自由度 | G90: 対応なし | K90: 表示言語(Language, 显示语言) | L90: 最大反復数 = | M90: 固定効果の共分散行列を出力する | N90: フィルタをオフにする
A91: 補Log-Log | B91: 「使用変数→」に、分析に使用する変数名を入力してください。 | C91: 出現数 | G91: グループ単位のデータ | K91: ・多重比較の方法 | L91: ・反復計算の基準 | M91: Nullモデルに切片の変量効果を含める | N91: フィルタをオフにする
A92: 負Log-Log | B92: 使用変数が最大数( | C92: 最頻値 | G92: 直線回帰 | K92: Bonferroni | L92: 確認的因子分析の結果をサイズで並び替える | M92: ・変量効果の設定 | N92: フィルタをオフにする
A93: 名義回帰 | B93: )を超えています。 | C93: 曲線当てはめ | G93: 値の再割り当て | K93: Holm | L93: 推定精度 = | M93: 切片の変量効果を推定する（推奨） | N93: フィルタをオフにする
A94: 参照 | B94: データ入力が正しくありません。確認してください。 | C94: 累積正規曲線のパラメータ | G94: フィルタ変数 | K94: Shaffer | L94: デフォルト設定 | M94: ・回帰係数の検定方法 | N94: 順位化得点（変数名_rs）
A95: 二項回帰 | B95: 変数名に空白のものが含まれています。Box変数を確認してください。 | C95: 平均 | G95: セル平均値 | K95: 修正Shaffer | L95: キャンセル | M95: クラスタ内相関 | N95: 今までの値 → 新しい値
A96: ベータ二項回帰 | B96: 変数名が同じものが含まれています。 | C96: 閾値の推定 | G96: 平均値の推定 | K96: 独立性の検定で連続性補正を行う | L96: OK | M96: 不均一分散 | N96: 追加
A97: 生起数 | B97: が見つかりません。再度変数名を読み込んで確認してください。 | C97: 25%閾値 | G97: 検定値 = | L97: ・標準誤差の推定 | M97: モデリングスペースに切り替え用チェックボックスを表示 | N97: 外れ値を削除
A98: 総数 | B98: 変数名に「*」は使えません。 | C98: 50%閾値 | G98: セルごとの度数 | L98: 微小値 = | M98: ・出力 | N98: SD以上外れた値を削除
A99: 混合分布回帰 | B99: 統制変数に変数名が同じものが含まれています。 | C99: 75%閾値 | G99: Mplusコード | L99: ・出力の設定 | M99: 回帰係数の共分散行列 | N99: 集団内通し番号
A100: クラス数 | B100: 統制変数に使用変数と同じものが含まれています。 | C100: 四分位数 | G100: ラベル付き | L100: パス図の結果を標準化解で出力する | M100: 交互作用項をステップに分けて投入(推奨) | N100: 文字列を数値に変換
A101: カウント回帰 | B101: 平均値の差の検定には2つ以上の変数を指定する必要があります。 | C101: 四分領域 | G101: グループ別 | L101: ・推定の設定 | M101: ・変数投入方法
A102: ポアソン分布 | B102: 相関係数の差の検定にはID変数を含めて4つ以上の変数を指定する必要があります。 | C102: 平均の区間推定 | G102: 信頼性係数 | L102: 外生変数の分散を推定する | M102: ・その他の設定
A103: 負の二項分布 | B103: 回帰モデルの目的変数が入力されていません。 | C103: 基準値 | G103: クロス表 | L103: 分散を非負に制約して推定する | M103: ・効果量のタイプ
A104: 一般化ポアソン | B104: 回帰モデルの目的変数が使用変数に含まれていません。 | C104: 信頼区間 | G104: 相関の差の検定 | L104: スクリープロットの設定 | M104: Cohenのd
A105: オフセット | B105: 参加者内要因の分析には目的変数が2つ以上必要です。 | C105: 差 | G105: 中央値 | L105: 因子間相関を反映 | M105: 相関係数 r
A106: トービット回帰 | B106: 反復測定の水準数の入力が正しくありません。 | C106: df | G106: グループ内平均＋中心化（変数名_mc） | L106: ・因子得点の計算方法 | M106: 効果量d (Hedgesのg)
A107: 打ち切り下側 | B107: 共変量の中に，目的変数と同じ変数があります。 | C107: t値 | G107: 級内相関係数 | L107: 回帰法 | M107: 水準ごとに標準誤差を計算
A108: 打ち切り上側 | B108: 共変量の中に，使用変数に含まれていない変数があります。 | C108: ※エラーバーは標準誤差を示しています。 | G108: 級数 = | L108: EAPの推定にモンテカルロ積分を使う（カテゴリカルの時） | M108: 母集団推定量
A109: 打ち切り両側 | B109: 測定要因の中に，目的変数と同じ変数があります。 | C109: ※エラーバーは95%信頼区間を示しています。 | G109: 正規性検定 | L109: カテゴリカル因子分析 | M109: 一般化効果量
A110: 打ち切りなし | B110: 測定要因の中に，使用変数に含まれていない変数があります。 | C110: グループ | G110: 交互作用項 | L110: EAP | M110: 差の効果
A111: 分位点回帰 | B111: 媒介分析には交互作用項は投入できません。 | C111: 共変動 | G111: 出力を上書きしない2 | L111: MAP | M111: 要因の効果
A112: 分位点 | B112: 媒介分析のモデルには，説明変数は2変数以外投入できません。 | C112: 相関係数 | G112: フィルタをオフにする | L112: 頑健標準誤差 | M112: 間はプール・内は水準別
A113: 因子分析 | B113: 目的変数が群分けにも含まれています。 | C113: 決定係数 | G113: バブルチャート | L113: 補正なし | M113: 検定をｔ分布で行う
A114: 因子数→ | B114: 目的変数が説明変数にも含まれています。 | C114: 共分散 | G114: ヒストグラム | L114: カテゴリカル因子分析の推定にソルバーを使う | M114: ・仮定の逸脱に対する補正方法
A115: 抽出法→ | B115: 共分散データ使用時では交互作用項は投入できません。 | C115: 推定値 | G115: 完全一致 | L115: 順序クラスタ | M115: 補正なし
A116: 回転法→ | B116: 使用変数で指定していない変数が含まれています。 | C116: 直線回帰 | G116: グループごとの回帰直線 | L116: 順序 | M116: 頑健標準誤差
A117: 得点→ | B117: 説明変数の中に同じ変数が複数含まれています。 | C117: モデル | G117: 等分散の検定 | L117: 連続 | M117: クラスタ標準誤差
A118: 最尤法 | B118: 共変量が分散分析のモデルに含まれていません。 | C118: 切片 | G118: APIモデル | L118: 混合分布 | M118: 検定をｔ分布で行う
A119: 最小二乗法 | B119: 参加者内要因の変数が分散分析のモデルに含まれていません。 | C119: 傾き | G119: 一様性検定 | L119: EII | M119: 補正なし
A120: 反復主因子法 | B120: 説明変数がモデルに含まれていません。 | C120: 回帰式 | G120: 順位化得点（変数名_rs） | L120: EEE | M120: ブートストラップ
A121: 主成分法 | B121: 媒介分析には独立変数が2つ以上必要です。 | C121: グループごとの回帰直線 | G121: 主成分分析 | L121: VII | M121: 反復数＝
A122: カテゴリカル | B122: 交互作用項の数が限界値を超えました。 | C122: ※すべての回帰直線を表示できませんでした。最初の255グループの結果を表示しています。 | G122: BM検定 | L122: VVV | M122: ランダマイズ
A123: 固有値1以上まで | B123: 説明変数の入力が適切ではありません。 | C123: ※すべての回帰直線を表示できませんでした。 | G123: 集団内通し番号 | L123: 分散モデル設定 | M123: ロバスト回帰分析
A124: 斜交回転 | B124: 次のStepには、前のStepの変数を含めて入力してください。 | C124: バブルチャート | G124: 文字列を数値に変換 | L124: 潜在クラス分析 | M124: 固定効果の共分散行列を出力する
A125: 回転なし | B125: 群分け変数（スライス変数）を2つ指定したときは3要因交互作用がモデルに含まれる必要があります。 | C125: 順位相関係数 | G125: 群ごとの統計量 | L125: 学習回数倍率 | M125: C-M
A126: 直交回転 | B126: 使用変数の中に群分けする変数（スライス変数）が見つかりません。 | C126: 対応分析 | G126: カーネル密度 | L126: 潜在ランク分析 | M126: ・混合分布回帰分析の設定
A127: サイズでソート | B127: 群分けする変数（スライス変数）に同じ変数があります。 | C127: クロス表 | G127: グラフ設定 | L127: 詳細設定 | M127: ランダマイズ
A128: 相関行列 | B128: 独立変数の中に群分けする変数(スライス変数）が見つかりません。 | C128: 連関係数と独立性の検定 | G128: 曲線当てはめ | L128: 頑健標準誤差 | M128: 反復回数=
A129: 最尤プロマックス | B129: 交互作用変数の中にスライス変数が見つかりません。 | C129: ※信頼区間が収束しませんでした | G129: 多重クロス表 | L129: ・非階層法・潜在変数分析の分析設定 | M129: HAD2GLIMMIXの設定
A130: 因子得点 | B130: スライス変数は交互作用項の中に含まれている必要があります。 | C130: クラメール V | G130: had2stan_sem | M130: ・連続変量の分布
A131: 尺度得点 | B131: クラスタ数の入力が正しくありません | C131: クロス表のプロット | M131: 正規分布
A132: スクリープロット | B132: 0より大きく、分類する対象の数以下の整数を入力してください | C132: Fisherの正確確率 | M132: 対数正規分布
A133: 項目反応理論 | B133: クラスター分析の方法の選択が正しくありません | C133: ※2×2のクロス表の時に表示します。総度数が40以下の場合、あるいは期待度数が5以下のセルがある場合はこちらを参照してください。 | M133: 単純効果分析の推定点
A134: クラスタ数→ | B134: 方法をどれか一つ選んでください | C134: 両側確率 | M134: SD
A135: 分類方法→ | B135: 最大反復数の入力が正しくありません | C135: 片側確率 | M135: ±
A136: 分析対象→ | B136: 1より大きい整数を入力してください | C136: 一致性係数 | M136: 二項回帰の過分散を推定
A137: 階層的 | B137: 収束基準の入力が正しくありません | C137: Cohenのκ | M137: ガンマ分布
A138: 非階層的 | B138: 0.00001より大きい値を入力してください | C138: クロス表(全体に対する比率%) | M138: プロビットリンク
A139: 混合分布 | B139: 構造方程式モデリングは使用変数が2つ以上である必要があります。 | C139: クロス表(行ごとの比率%) | M139: 二項分布
A140: 潜在クラス | B140: HADを終了します。 | C140: クロス表(列ごとの比率%) | M140: ベータ二項分布
A141: 潜在ランク | B141: 因子数の入力が正しくありません | C141: 残差分析 | M141: 推定をソルバーで行う
A142: 指定せずに分析 | B142: 0以上、項目数以下の整数を入力してください | C142: クロス表（△は有意に多い、▼は有意に少ない）
A143: 回答者 | B143: 1以上、項目数以下の整数を入力してください | C143: 調整された標準化残差
A144: 変数 | B144: オーソマックス基準（因子寄与の重み）の入力が正しくありません | C144: (ウィルコクソンの符号化順位検定・連続性補正)
A145: 距離行列 | B145: 以下の数値を入力してください。 | C145: ※負の順位に基づく
A146: デンドログラム | B146: バリマックス回転 = 1 | C146: ※正の順位に基づく
A147: クラスタの特徴 | B147: クォーティマックス回転 = 0 | C147: 検定統計量Z =
A148: 回答者を分類 | B148: バイクォーティマックス回転 = 0.5 | C148: (フリードマン検定)
A149: 変数を分類 | B149: エカマックス回転 = 因子数 / 2 | C149: 検定統計量χ2 =
A150: 所属クラスタ | B150: 因子パーシモニー = 変数の数 | C150: 効果量
A151: クラスタ平均値 | B151: プロマックス回転基準(Power)の入力が正しくありません | C151: 平均順位
A152: データを標準化 | B152: 1以上の数値を入力してください | C152: ※順位は高いほど高得点を意味してます。
A153: 多次元尺度法 | B153: 因子抽出法の選択が正しくありません | C153: 順位得点
A154: 数量化分析 | B154: 抽出法をどれか一つ選んでください | C154: 多重比較 (Holmの方法）
A155: (等質性分析) | B155: カテゴリ基準の入力が正しくありません | C155: 水準の組
A156: 次元数→ | B156: 0から180までの数値を入力してください。 | C156: 順位の差
A157: データ→ | B157: ヒストグラムの級数の入力が正しくありません | C157: 効果量 r
A158: 重み→ | B158: 2から100までの数値を入力してください。 | C158: 調整p値
A159: 変数型 | B159: 一標本検定の基準値の入力が正しくありません | C159: (マンホイットニー検定・連続性補正)
A160: カテゴリ反応型 | B160: 数値を入力してください。 | C160: (クラスカル-ウォリス検定)
A161: クロス表型 | B161: ブートストラップのサンプルサイズの入力が正しくありません | C161: 等分散を仮定しない検定（ブルンナー・ムンツェル検定）
A162: バリマックス回転 | B162: 200～50000の数値を入力してください。 | C162: 検定統計量t =
A163: 重みなし | B163: グループ内人数を入力してください。 | C163: (順位得点)
A164: 重みあり | B164: グループ内人数の入力が適切ではありません。 | C164: 重み係数
A165: 変数をプロット | B165: 対応分析の出力には,グループ識別変数を含めて3変数以上の入力が必要です | C165: 主成分
A166: 回答者をプロット | B166: グループ別の散布図の出力にはグループ識別変数を含めて4変数の入力が必要です | C166: 固有値
A167: 変数型データ | B167: 散布図の出力には,グループ識別変数を含めて3変数の入力が必要です | C167: 寄与率
A168: 反応型データ | B168: ノンパラメトリック検定には2つ以上の変数を指定する必要があります。 | C168: 累積寄与
A169: 回答者スコア | B169: 因子分析の出力には, グループ識別変数を含めて3変数以上の入力が必要です | C169: プロット
A170: カテゴリ反応型データ | B170: 目的変数の入力が正しくありません | C170: 標準化した主成分
A171: SEM | B171: 選択した変数の中から選んでください
A172: 分析法→ | B172: グループ数が1つだけになっています。 | C172: 標準化重み係数
A173: 推定法→ | B173: 分析を行う場合は「マルチレベルデータ」のチェックをはずしてください | C173: 等分散性の検定 (Levene検定)
A174: 推定設定→ | B174: データ入力中にエラーが起きました。HADを終了します。 | C174: 検定する変数
A175: CFA | B175: データに数式エラーが含まれています。 | C175: グループ変数
A176: EFA | B176: 数式エラーを欠損値に変換して分析を続けますか？ | C176: F値
A177: マルチレベル | B177: データに空白セルが含まれています。 | C177: df1
A178: GLS | B178: データの欠損値や変数の数を確認してください。 | C178: df2
A179: 潜在変数なし | B179: データに指定された欠損値以外の文字列が含まれています。 | C179: 検定統計量
A180: 完全クラスタ解 | B180: データを確認してください。 | C180: 各グループの分散
A181: 標準化残差 | B181: データにスペースだけのセルが含まれています。 | C181: 削除
A182: 確認的因子分析 | B182: 多母集団分析のためのグループ変数が見つかりません。 | C182: データ
A183: 標準誤差 | B183: 多母集団分析のためのグループ変数が使用変数に含まれています。 | C183: ポリコリック
A184: 平均構造を推定 | B184: 統制変数に文字列データは利用できません。 | C184: ラベル
A185: 欠損値データ | B185: グループ分け変数は一つだけ設定可能です。 | C185: 偏相関分析
A186: モデルスペース | B186: フィルタ設定を確認してください。 | C186: 相関分析
A187: 現在のモデル | B187: マルチレベル分析ではグループ分け分析ができません。 | C187: 検定統計量(t値)と有意確率
A188: リストワイズ削除 | B188: クラスタ標準誤差ではグループ分け分析ができません。 | C188: ※上段からt値，p値，自由度，95%信頼区間を表す
A189: 要約統計量 | B189: ペアワイズ分析はペアデータしか扱えません。 | C189: p値
A190: 箱ひげ図 | B190: このデータはペアデータではありません。 | C190: 自由度
A191: ヒストグラム | B191: すべてのグループ内人数が等しいデータしか, 識別可能なデータとして分析できません。 | C191: 95％CI
A192: 度数分布 | B192: すべてのグループ内人数が等しいデータしか並び替えができません。 | C192: 順位相関係数(スピアマン)
A193: 正規性検定 | B193: グループ数は最大15が限度です。HADを終了します。 | C193: カテゴリカル相関分析
A194: 散布図 | B194: 分散分析では統制変数で統制した分析ができません。 | C194: ポリコリック・ポリシリアル相関係数を計算中にエラーがありました。
A195: ラベル | B195: 回帰分析・一般化線形モデル・階層線形モデルでは統制変数で統制した分析ができません。 | C195: ※カテゴリ数が規定値( & categorimax & ")を超えた変数があったため、一部ピアソンの積率相関係数を算出しています。
A196: グループ別 | B196: 平均値の差の検定では統制変数で統制した分析ができません。 | C196: 検定統計量と有意確率
A197: 直線回帰 | B197: カテゴリカルデータを目的変数とした分析では統制変数で統制した分析ができません。 | C197: ※上段からZ値(あるいはt値)、p値、相関係数のタイプを表す
A198: クロス集計表 | B198: カウントデータの回帰分析では統制変数で統制した分析ができません。 | C198: 項目分析
A199: バブルチャート | B199: 順位の差の検定では統制変数で統制した分析ができません。 | C199: 項目
A200: 群ごとの平均値 | B200: 等分散の検定では統制変数で統制した分析ができません。 | C200: 内的一貫性係数
... 531 more rows

Sheet $English$ (hidden)
A1: 基本システム用語 | B1: メッセージボックス | C1: 出力 | D1: ステータスバー | E1: コントロール | G1: UserForm1 | H1: UserForm2 | I1: UserForm3 | J1: UserForm4 | K1: UserForm5 | L1: UserForm6 | M1: UserForm7 | N1: UserForm8 | O1: UserForm9 | P1: UserForm10 | Q1: UserForm11 | R1: UserForm12 | S1: UserForm13 | T1: UserForm14 | U1: UserForm15 | V1: UserForm16 | W1: UserForm17 | X1: UserForm18 | Y1: UserForm19 | Z1: UserForm20 | AA1: UserForm21 | AB1: UserForm22 | AC1: UserForm23 | AD1: UserForm24 | AE1: UserForm25 | AF1: UserForm26
A2: DATA | B2: statistics analysis software HAD | D2: During execution. . . . Data input | E2: DATA INPUT | G2: Statistical analysis macro HAD | H2: Adjustment of column width: HAD | I2: Sheet management: HAD | J2: Measure the mean value: HAD | K2: Setting: HAD | L2: Factor analysis settings: HAD | M2: Regression model settings: HAD | N2: Creating variables: HAD | O2: Numerical calculation: HAD | P2: Data set: HAD | Q2: HAD is calculating now… | R2: Variable information: HAD | S2: Use variables: HAD | T2: Model selection in regression analysis: HAD | U2: Statistical analysis macro HAD (Easy mode) | V2: Mediated analysis settings: HAD | W2: Model selection in factor analysis: HAD | X2: Stepwise method settings | Y2: Scree plot settings | Z2: TTM2HAD | AA2: Advanced settings of latent rank regression analysis | AB2: Settings of HAD2GLIMMIX | AC2: HAD2R | AD2: Settings of HAD2glmmstan | AE2: Graph Settings | AF2: HAD2Stan_SEM
A3: MODELING | B3: Activate the HAD file. | C3: Summary statistics | D3: During execution. . . . | E3: Modeling Sheet | G3: Include ID variables | H3: HAD Default | I3: Close | J3: OK | K3: Use created matrix. | L3: Estimation | M3: Cancel | N3: Cancel | O3: Calculation of inverse matrix | P3: Rearrange variables to groups (Horizontal data to vertical) | Q3: Now calculating. Please wait. If calculation does not finish after a while, press the "Suspend Calculation" button below. | R3: Filter | S3: Cancel | T3: Select a model to use in analysis. | U3: Cancel | V3: Link function of ordinal regression analysis | W3: Select a model to use in analysis. | X3: Stepwise method standard | Y3: Parallel analysis | Z3: Refer | AA3: Scale to the learning frequency | AB3: Estimation method | AC3: Refer | AD3: Pass of data file | AE3: By group | AF3: Cancel
A4: Solver Add-in | B4: Error content: | C4: Boxplot | D4: During execution. . . . Analysis in preparation | E4: Adjust Columns | G4: OK | H4: Fit to variable name | I4: Delete All | J4: Reverse (Multiplyed by -1) | K4: Output Settings | L4: Factor Rotation | M4: OK | N4: OK | O4: Eigenvalue of symmetric matrix (Jacobi method) | P4: Group size = | Q4: Suspend Calculation | R4: Value label | S4: OK | T4: Use variable | U4: OK | V4: Dispersion of count data | W4: Cancel | X4: Input standard | Y4: Sampling number = | Z4: Load ExcelTTM | AA4: Estimation setting of latent rank analysis (self-organization map) | AB4: Maximum likelihood method by Gauss-Hermite quadrature | AC4: Close | AD4: Refer | AE4: Label ID variable | AF4: OK
A5: Sheet manage | B5: Select a variable name. | C5: Histogram | D5: During execution. . . .Analysis | E5: Calculate | G5: Group mean centering (Name_g) | H5: Manual | I5: Delete All shets without mark below | J5: Reverse | K5: Output Lables | L5: Max iterations = | M5: Add Criteria | N5: Separate by mean | O5: Calculation of eigenvalue (QR method) | P5: Rearrange groups to variables (Vertical data to horizontal) | R5: Label | S5: Add -> | T5: Cancel | U5: Detail Mode | V5: Poission | W5: OK | X5: Delete standard | Y5: Randomize intial value | Z5: Minimum value of appearance frequency | AA5: Non-proportional odds model | AB5: Maximum likelihood method by Laplace approximation | AC5: Save data for R | AD5: Data file name | AE5: Show normal curve | AF5: HAD2Stan_SEM setting
A6: Boot HAD | B6: Use of variables larger than 255 variables cannot be analyzed. | C6: Frequency distribution | D6: During execution. . . . Factor analysis | E6: HAD2R | G6: Within-group mean (Name_m) | H6: OK | I6: Delete All Sheets | J6: No Reverse | K6: Missing value | L6: Convergence index = | M6: Delete Criteria | N6: Calculate the total score of use variable | O6: OK | P6: (Make vertical data horizontal) | R6: @variable | S6: <- Delete | T6: OK | U6: No overwrite | V6: Negative binominal distribution | W6: Use variable | X6: Cancel | Y6: Simple structure analysis | Z6: Setting of words to use | AA6: Proportional odds model | AB6: False maximum likelihood method with limits | AC6: Loading csv file | AD6: .csv | AE6: Series of histogram= | AF6: Working directory of R
A7: Input variables | B7: Select an analysis code. | C7: Normality Test | D7: During execution. . . . Cluster Analysis | E7: TTM2 HAD | G7: Cancel | H7: Cancel | I7: Delete All Sheets without "$" | J7: There are items have negative factor loading. Are you going to calculate scale score by reverse these items | K7: "." Period | L7: Orthogonal index = | M7: Centering all variables | N7: Calculate the mean score of use variable | O7: Cancel | P7: (Makehorizontal data vertical) | R7: Variable name | S7: Input all | T7: Add -> | U7: Significance Difference Test | V7: Logit | W7: Independent variable | X7: OK | Y7: Cancel | Z7: Verb | AA7: Regression coefficient of latent rank regression analysis | AB7: False maximum likelihood method | AC7: Pass of folder | AD7: Cancel | AE7: Don’t show markers | AF7: refer
A8: Create variables | B8: The analysis code is incorrect. | C8: Scatter plot | D8: During execution. . . . Homogeneity analysis | E8: Analysis | G8: Dataset Type | H8: Excel Default | I8: Rename | J8: Substract from max value + left value | K8: user-defined | M8: Adjust categorical variables | N8: Separate by median | O8: Calculation of matrix formula | P8: OK | R8: Value | S8: Delete all | T8: <- Delete | U8: Independent | V8: Probit | W8: Save model | X8: Default setting | Y8: OK | Z8: Noun | AA8: Estimation method in latenet rank analysis | AB8: Cancel | AC8: File name | AD8: OK | AE8: Draw linearzation curve | AF8: Data file name
A9: Run analysis code | B9: The analysis code is inappropriate. | C9: Statistics for each group | D9: During execution. . . . Structural equation model | E9: DATA Sheet | G9: Significance Difference Test | I9: Show | J9: Reverse | K9: Appearance | L9: Cancel | M9: Type 3 | N9: New Variables | O9: Don’t ovewrite output | P9: Cancel | R9: Exclude subject larger than the value | S9: Use variables | T9: Input main effect | U9: Paried | V9: Direction of censored data | W9: Delete selected model | Y9: Default setting | Z9: Adjective | AA9: Phase generation map | AB9: OK | AC9: Export | AD9: Data setting for R | AE9: Pile dot plot | AF9: .csv
A10: Apply analysis code to HAD | B10: The setting of the modeling sheet will be initialized. | C10: Kernel density estimation | D10: During execution. . . output | E10: UseVariable | G10: Multilevel Analysis | I10: Delete | J10: Substract from left value | K10: Save variable information | L10: OK | M10: Type 2 | N10: Transformation | O10: Create multivariate normal random number | P10: Multilevel data | R10: Exclude subject smaller than the value | S10: Data list | T10: Input interaction effect | U10: Equal Means Test | V10: Lower side | W10: List of saved models | Y10: Non-iterative estimator (maximum method) | Z10: Adverb | AA10: Self-organization map | AB10: Default setting | AC10: .csv | AD10: Setting of MCMC | AE10: 95% CI | AF10: Convert missing value to "NA"
A11: Descriptive statistics | B11: Initialize? | C11: Cross Table | D11: During execution. . . . Categorical correlation coefficient | E11: Input variable | G11: Multilevel Corr | I11: Sheet Name | K11: Appearance | L11: Default | M11: Covariate | N11: Calculation | O11: sample size= | P11: Ouput data set | R11: Use subjects only equal to the value | S11: Variables to use in analysis | T11: Dependent variable | U11: Corr Analysis | V11: Upper side | W11: Select from saved models | Y11: Main factor method | Z11: Keyword | AA11: Variance of neighborhood function | AB11: Structure of residual cov. | AC11: Refer | AD11: Sampling number | AE11: Standard error
A12: Histgram | B12: Select a cell. | C12: Test of the mean | D12: During execution. . . . Multiple cross table | E12: Control variable | G12: MUML Cov. Matrix | I12: Modeling Sheet | K12: Analysis | L12: (1 to 1000) | M12: Multiple Comparison | N12: Recoding | O12: Make cov. matrix congruent | P12: Select data set | R12: Data is | S12: Variables to exclude from HAD | T12: Independent variable | U12: Equal Corr Test | V12: Both sides | W12: Input from analysis code | Y12: Non-iterative estimator (average method) | Z12: Synonym | AA12: Default setting | AB12: Primary autoregression (AR(1)) | AC12: File name | AD12: Number of Malcov chain | AE12: Histogram
A13: Set as main data | B13: The data includes formula error. | C13: Multiple cross table | D13: During execution. . . . Log-linear model | E13: Move left | G13: Summary of Data | I13: Data Sheet | K13: Graph | L13: （0.00001 to 1） | M13: Mod. Shaffer | N13: Dummy Variables | O13: Simulation (for debug) | P13: Create random number data | R13: Exclude subjec equal to the value | S13: Variables to exclude | T13: Delete from list | U13: Item Analysis (αcoefficient) | V13: Generalized Poisson | Z13: Output | AA13: Cancel | AB13: Sphericality (HF) | AC13: Load | AD13: Adoption interval (thin) | AE13: Scatter plot
A14: Add as variables | B14: Convert the formula error to a missing value? | C14: Principal component analysis | D14: During execution. . . . Log-linear model | E14: Variables | G14: Summary | I14: Sheet Manager | K14: Shortcut | L14: (1 to 10) | M14: Shaffer | N14: OK | O14: Create random number | P14: Current data: | R14: OK | S14: Cancel | T14: Save model | U14: Reliability | V14: Cancel | W14: Use variables | Y14: Graph transition of sum of commonality | Z14: Appearance frequency of words | AA14: OK | AB14: Variance component (VC) | AC14: Convert missing value to "NA" | AD14: Number of warmup | AE14: Box plot
A15: Analysis code | B15: The data includes a blank value. | C15: Test of the difference between the unpaired average rank | D15: During the simulation run. . . . (Current | E15: Regression | G15: No overwrite | I15: Delete Sheet | K15: Right click | L15: (Weight: 0 to number of variables) | M15: Holm | N15: Cancel | O15: Sampling | P15: Cancel | R15: Cancel | S15: OK | T15: Delete selected model | U15: One Sample | V15: OK | W15: Show models below | Z15: Cross table of word and word | AA15: Number of repetition estimation | AB15: Aamorphous (UN) | AC15: OK | AD15: Parallelize | AE15: Don’t draw closing line on graph
A16: Variables | B16: Confirm the number of formula error and / or missing value in the data. | C16: Test of the difference between the paired average rank | D16: During execution. . . . Analysis of variance | E16: Factor Analysis | G16: Standarized (Name_s) | I16: Close | K16: System | L16: Paralle Analysis | M16: Alpha of Tes | N16: No overwrite | O16: Matrix operation | P16: OK | R16: Apply | S16: Exclude -> | T16: List of saved models | U16: Value = | V16: default setting | W16: Edit selected model | Z16: Cross table of respondent and word | AA16: Estimation setting of latent rank analysis (EM algorithm) | AC16: Convert "NA" to missing value | AD16: Core number | AE16: Show with monochrome
A17: Use variables | B17: Cell with only space (variable name | C17: Pearson's product moment correlation coefficient | D17: During execution. . . . Analysis of variance output | E17: Create variable | G17: Cov. for simple method | I17: Delete All | K17: Cancel | L17: Sampling = | M17: Bonferroni | N17: No overwrite | O17: OK | P17: Designating sheet | R17: Variable name | S17: <- Return | T17: Select from saved models | U17: Summary of Data | V17: None | W17: Apply setting | Y17: Run parallel analysis | Z17: Run analysis | AA17: Variance of neighborhood function | AC17: Object name of data on R | AD17: Default setting | AE17: Width of line=
A18: Variables | B18: line) is included in the data. | C18: Covariance matrix | D18: During execution. . . . Test of the difference between the means output | E18: Data set | G18: Pairwise Cov. | I18: Move | K18: OK | L18: Randomize | M18: Error Term | N18: Calculate the base score of use variable | O18: Cancel | P18: Using raw data | R18: Value | S18: Load all | T18: Input from analysis code | U18: Summary | V18: Negative Log-Log | W18: Current model | Y18: Sum of commonality | Z18: Cancel | AC18: R code | AD18: Output name | AE18: Put gridline within graph
A19: Code | B19: Confirm the data. | C19: Spearman's rank correlation coefficient | D19: During execution. . . . Analysis of variance simple effect test output | E19: Sheet manage | G19: Covariance | I19: Move sheets to another book | K19: Cancel | L19: Promax Power = | M19: Pooled Error Term | N19: Use standarized score for variable somposition | O19: Uniform distribution | P19: Using cov. data | R19: Label | S19: Variables to load | U19: Frequency | V19: Compensate Log-Log | W19: Analysis method: | Y19: VSS | Z19: No overwrite | AC19: Turn on HAD2R | AD19: Data name on R | AE19: Overall setting of graph
A20: SEM | B20: Variables larger than 1000 cannot be read. | C20: Porikorikku correlation coefficient | D20: During execution. . . . Cluster analysis | E20: Preferences | G20: As Matrix | I20: History | K20: OK | L20: Harris-Kaiser Power = | M20: Separate Error Term | N20: Include median to upper group | O20: Standard distribution | P20: Use polychoric correlation data | R20: OK | S20: Selec variables to exclude from HAD | T20: Use variable | U20: Scatter | V20: Estimation method of multilevel regression analysis | W20: Analysis code | Y20: Complexity of VSS = | Z20: Distance matrix of word and word | AC20: HAD2R is currently off | AD20: Output setting | AE20: Output kernel density score
B21: Enter the data set. | C21: Alpha coefficient | D21: During execution. . . . | E21: Filter | G21: Corr Analysis | I21: Protect | K21: Initialize HAD | L21: Oblique | M21: Regression | N21: Include median to lower group | O21: Sample size= | P21: Raw data | R21: Cancel | S21: Select variables to use in analysis | T21: Show models below | U21: Box Plot | V21: Minimum square method | W21: Show models below | Z21: Reponse data of words by repondent | AC21: Turn on HAD2R | AD21: Output stan result | AE21: Cancel
A22: Confirmatory | B22: Exclude the variable previously set as "variables to exclude from HAD"? | C22: Reliability Factor | D22: During execution. . . . Cluster analysis | E22: Value Labels | G22: Centered (Name_c) | K22: Analysis setting will be initialized to the default setting of HAD, and all saved valuable information will be deleted. | L22: Direct Oblimin | M22: ANOVA | N22: Make standard value to missing value | O22: Number of samples | P22: (mean by groups) | R22: Apply | S22: Exclude all | T22: Edit selected model | U22: Linear Reg. | V22: Maximum likelihood method | W22: Delete all models | Z22: Output data | AC22: R code for loading data | AD22: Output stan code | AE22: OK
A23: Factor Analysis | B23: Dollar sign, yen sign, comma, and space cannot be used in a variable name. | C23: Test of the difference between the unpaired average value | D23: During execution. . . . Cluster analysis: Drowing dendrogram | E23: Labels | G23: read me | K23: Cancel | L23: (0 to 1) | M23: GLM | N23: Standarized (Name_s) | O23: Minimum value= | P23: Data by group (group mean) | R23: Add | S23: Control variables | T23: Apply edit | U23: Freq. by Cell | V23: Type of robust standarderror | W23: Model name | Z23: Clustering words | AC23: below | AD23: Install glmmstan | AE23: N of Kernel intervals =
A24: Multilevel | B24: There is a variable with a same name. | C24: Test for the difference between the paired mean values | D24: During execution. . . . Multidimensional Scaling | E24: @variable | G24: Pairwise Del. | K24: Initialize setting | L24: Factor Analysis | M24: GLMM | N24: Group Mean (Name_m) | O24: Maximum value= | P24: Output selected data | R24: Delete | S24: Add -> | T24: Current model | U24: Lable | V24: Correct cluster | Z24: Quantifying data | AD24: Output code for installation | AE24: Show error bars
A25: SEM | B25: Variable value is larger than the maximum value ( | C25: Multiple regression analysis | D25: During execution. . . . Latent rank analysis EM algorithm | E25: Dependent | G25: Listwise Del. | K25: Fixing window | L25: Cluster Analysis | M25: Cancel | N25: Group Mean Centering (Name_g) | O25: Population mean= | P25: Output code of SAS | R25: Delete all filters | S25: <- Delete | T25: Analysis method | U25: Group | V25: Correct heteroskedasticity | Z25: Outputting cluster data | AE25: Default
A26: Constraint | B26: ) and therefore cannot be read. | C26: Poisson regression analysis | D26: Times eyes | E26: Main effects | G26: Missing Data | K26: Show all sheets | L26: HOMALS | M26: OK | N26: Centering (Name_c) | O26: Population variance= | P26: Create multivariate normal random number | R26: Input selected cells | S26: Register | T26: Analysis code | U26: Cross Table | V26: Bootstrap sample number | Z26: Numer of clusters = | AE26: Don’t put error bars on bottom
A27: Group | B27: An error occurred while loading the data. HAD will terminate. | C27: Negative binomial regression analysis | D27: During execution. . . . Latent rank analysis self-organizing map | E27: Interaction | G27: Output Data | K27: Load Pre-version HAD (HAD16 latter) | L27: SEM | M27: Cancel | N27: Multilevel Data | O27: Don’t ovewrite output | P27: Create from cov. matrix of selected variable | R27: Apply filter | S27: Delete | T27: Show models below | U27: Level of histogram = | V27: Make initial value of random number random | Z27: Multidimensional scale method | AE27: Parameter of bandwidth=
A28: Max | B28: Only regression analysis and factor analysis can be used, when using data from a separate sheet. | C28: Logistic regression analysis | D28: During execution. . . . In standard error calculation | E28: Settings | G28: Multilevel Data | K28: No Protection sheet | L28: Simple structure analysis | M28: OK | N28: No overwrite | O28: Noraml | P28: Designating a sheet | R28: Use all data for analysis | S28: List of registered variables | T28: Delete all models | U28: Normal test | V28: Bootstrap sample number= | Z28: Maximum distance method | AE28: Put error bars on line graphs
A29: Min | B29: Variables larger than the maximum value ( | C29: Gamma regression analysis | D29: During execution. . . . Factor analysis iterations = | E29: Run | G29: (ICC) | K29: InitializingSheets | L29: Cancel | M29: DF correction for sphericity assumption | N29: OK | O29: Poisson | P29: Cancel | R29: Input selected cells | S29: Show regsiterd variables below | T29: Selecting a model to use in analysis | U29: Rank Corr | V29: Parametric | Z29: Group average method | AE29: Back
A30: Solver on | B30: cannot be analyzed. | C30: Linear regression analysis | D30: During execution. . . . Factor analysis iterations = | E30: Filter Off | G30: Pairwise Corr | K30: "NA" | L30: OK | M30: H-F | N30: Cancel | O30: Cancel | P30: OK | R30: Delete | T30: Model name | U30: Covariance | V30: Nonparametric | Z30: Ward method | AE30: Pile violin plot
A31: Solver off | B31: Variables cannot be created when using data from a separate sheet. | C31: Discriminant analysis | D31: During execution. . . . Categorical factor analysis ... | E31: No overwrite | G31: Data Reconst. | K31: OK | L31: Default | M31: G-G | N31: List-wise del. (Composite) | O31: OK | P31: No overwrite | R31: Input selected cells | U31: Non-parametric Test | V31: Extraction method of bootstrap sample | Z31: Number of demensions = | AE31: Mark mean
A32: Polychoric Corr Data | B32: Categorical factor analysis cannot be run from covariance matrix data. | C32: Factor analysis | D32: Newton's method | E32: Contin. | G32: Rearrange variables to groups | K32: Cancel | L32: Non-iteration method (Max) | M32: Lower | N32: List-wise del. (Scale) | O32: Binominal | P32: Sample size= | R32: Variable name | U32: Paried | V32: Setting of random number | Z32: Appearance frequency of clusters | AE32: Bar graph
A33: Cov Data | B33: Cluster analysis cannot be run from covariance matrix data. | C33: Hierarchical cluster analysis | D33: Quasi-Newton method | E33: Order | G33: Pairwise Dataset | K33: Show | L33: Principle factor | M33: No correct | N33: List-wise del. (Dummy) | O33: Neg. binominal | P33: Create univariate standard normal random number | R33: OK | U33: Independent | V33: Estimation method of bootstrap confidence interval | Z33: Sheet name of data | AE33: Estimate Kernel density
A34: Procrustes Rot. | B34: HOMALS cannot be run from covariance matrix data. | C34: K-means method | D34: Secant method | E34: Ratio | G34: Number of people within group = | K34: Hide | L34: VSS | M34: Variable Settings (Regression and GLM) | N34: Mean = | O34: Mean | P34: Create random number data from standad normal distribution | R34: Cancel | U34: Relationships between Variables | V34: Percentile method | Z34: Correspondence analysis | AE34: Change by sample size
A35: Rotation | B35: SEM is not implemented in Mac version. | C35: Sample size | D35: During execution. . . . Factor scores calculating | E35: Count | G35: Factor Analysis | K35: Delete -> | L35: Complex of VSS | M35: Method | N35: SD = | O35: Variance | P35: Randomize | R35: Apply | U35: Correspondence Analysis | V35: Bias correction method | Z35: Number of demensions =
A36: Nearest neighbor method | B36: This HAD is a solver off version. Download a solver on version. | C36: ※Standard deviation is the square root of the unbiased variance has been output. | D36: During execution. . . . Factor scores calculating (EAP division quadrature) ... | E36: Censored | G36: Item Analysis | K36: <-Back | L36: Sum of Comunality | M36: Nominal Alpha | N36: Substraction | O36: Sample size | P36: Change sample size | R36: Create filter variable | U36: Multilevel Analysis | V36: Show standarized coefficient | Z36: Cluster analysis
A37: Furthest neighbor method | B37: Open and run the model space. | C37: Variable name | D37: During execution. . . . Factor scores calculating (EAP Monte Carlo integration) ... | E37: Nominal | G37: Rearrange groups to variables | K37: Show All | L37: Non-repeating esitimation method (average method) | M37: Default | N37: Addition | O37: Probability | P37: pairwise data set | R37: Make current filter setting a variable | U37: Multilevel Corr | V37: Show path diagram | Z37: Ouput of score data
A38: Median method | B38: Factor score cannot be calculated from the data in a specified sheet | C38: N | D38: During execution. . . . Factor scores calculating (MAP method) ... | E38: Mixture | G38: (Make vertical data horizontal) | K38: Delete All | L38: Precise, but takes time | M38: Default | N38: Multiplication | O38: Trials | P38: Listwise del. | R38: (Exclude=1, Use=0) | U38: MUML Cov. Matrix | Z38: Varimax rotation
A39: Centroid method | B39: Robust standard error cannot be used when using covariance matrix data. | C39: Mean | D39: During execution. . . . Factor analysis the number of times = | E39: Quantile | G39: (Makehorizontal data vertical) | K39: Reload | L39: Graph transition of sum of commonality | M39: Default | N39: Cancel | O39: Mean | P39: No overwrite | R39: Make this variable a grouping variable | U39: Pairwise Corr | Z39: With weight
A40: Group average method | B40: Clustered standard error cannot be used when using covariance matrix data. | C40: Median | D40: During execution. . . . Parallel analysis iterations = | E40: RobustSE. | G40: Response variable = | K40: Initialization All | L40: Search cut point of scree plot | M40: Satterthwait Correction | N40: OK | O40: Mean | P40: Rearranging data | R40: OK | U40: Pairwise cov. | Z40: Without weight
A41: Flexible method | B41: Variables cannot be categorized in a k-means analysis. | C41: SD | D41: During execution. . . . Item response theory graph output | E41: ClusterdSE. | G41: Regression analysis | K41: Default | L41: Search efficient model (recommended) | M41: Paired Error Term | N41: No overwrite | O41: Dispertion | P41: Rearranging data | R41: Cancel | U41: Distinguishable | Z41: Summarization criterion of the dendrogram=
A42: Ward method | B42: Distance matrix cannot be analyzed in a k-means analysis. | C42: Varinace | D42: During execution. . . .Regression analysis | E42: Save model | G42: Residual score | K42: Adjust Cell's Width | L42: Default | M42: Factor Error Term | O42: Don’t ovewrite output | P42: Rearranging multi-level data | R42: Add @variables | U42: Intra-Class Correlation | Z42: Summarize dendrogram
A43: Cluster Analysis | B43: Variables cannot be categorized in a mixture model. | C43: Skewness | D43: During execution. . . . Regression analysis step | E43: Regression | G43: Control by category | K43: Error bar | L43: Cancel | M43: MC in Within Factor | N43: - Variable | O43: Randomize | P43: Turn filter off | R43: Delete @variables | U43: Multilevel data | Z43: Cluster data
A44: k-means | B44: Distance matrix cannot be analyzed in distance matrix analysis. | C44: Kurtosis | D44: During execution. . . . Regression analysis test of the simple main effect | E44: ANOVA | G44: Load modeling sheet | K44: SE | L44: OK | M44: Other Settings | N44: Variable + | O44: Shape | P44: Create tomake cov. matrix congruent | R44: @variables | U44: Fiter Off | Z44: Main factor analysis
A45: Mahalanobis | B45: Variables cannot be categorized in a latent class analysis. | C45: Min | D45: During execution. . . . Mixture distribution regression analysis | E45: GLM | G45: Enter number of variables to use | K45: 95%CI | L45: Method | M45: Centering Covariates | N45: Power | O45: Gamma | P45: List-wise del. | R45: Variable name to assign | U45: Histgram | Z45: Main factor analysis
A46: Mixture | B46: Distance matrix cannot be analyzed in a latent class analysis | C46: Max | D46: During execution. . . . Latent Rank Regression analysis | E46: GLMM | G46: Interaction term | K46: Cancel | L46: Ward method | M46: Std Coeff. | N46: Power | O46: Scale | P46: Cov. matrix for multi-level model | R46: Apply | U46: APIM | Z46: Correspondence analysis
A47: Latent Class | B47: Variables cannot be categorized in a latent rank analysis. | C47: Sample size | D47: During execution. . . . Generalized linear mixed model preparing | E47: HRA | G47: Easy Mode | K47: OK | L47: Group mean | M47: Run logistic regression analysis when response variable is 2 value data | N47: Variable * | O47: Alpha | P47: Between level | R47: Delete all @variables | U47: Reg per Group | Z47: Rearrange by size
A48: Latent Rank | B48: Distance matrix cannot be analyzed in latent rank analysis. | C48: S.E. | D48: During execution. . . . Test of the generalized linear mixed model simple main effect | E48: Stepwise | G48: Distinguishable | K48: Histgram | L48: Centroid method | M48: Step-wise method | N48: Logarithm | O48: Beta | P48: Within level | R48: Cancel | U48: Bubble Chart | Z48: (Used in main factor analysis)
A49: Continuance | B49: Missing value estimation cannot be run in a generalized least square. | C49: 95% accuracy | D49: During the bootstrap execution. . . . (Current | E49: Mediation | G49: (Within group mixture) | K49: Scatter Plot | L49: Furthest | M49: Multivariate regression | N49: Dummy Variables | O49: Beta | P49: Serial number within group | R49: OK | U49: PCA | Z49: (Used in correspondence analysis
A50: Ordered | B50: Structure equation modeling cannot be run from covariance matrix data. | C50: score | D50: During execution. . . . Bootstrap process | E50: No step | G50: Multilevel regression analysis | K50: Draw line | L50: Nearest | M50: Multiple regression analysis | N50: Difference obtained by subtracting variables from the first variable | O50: From data set | P50: Create expotential family random number | R50: variable name | U50: Means per Group
A51: Exogenous | B51: Model space is not used in an exploratory factor analysis. | C51: Normality Test | D51: During execution. . . .GLMM (NULL Model) | E51: Residual score | G51: Correlation within series= | K51: No Error bar lower | L51: Dendrogram | M51: Difference of correlation coefficient | N51: Old Value | P51: Create univariate expotential family random number | R51: code explanation | U51: graph Option
A52: Path | B52: Enter a use variable. | C52: Chi-squared | D52: During execution. . . . GLMM | E52: HAD2GLIMMIX | G52: Remove: | K52: graph | L52: Distance to the | M52: Output standard coefficient of logistic count regression analysis | N52: New Value | R52: analysis method: | U52: Multi Cross Table
A53: Covariance | B53: Sum of use variables and number of factors exceed the prescribed value (95)." | C53: p-value | D53: During execution. . . . GLMM output | E53: HAD2glmmstan | G53: Bootstrapping analysis | K53: Monochrome | L53: Power | M53: Calculation may take a while | N53: Other Values | R53: use variable:
A54: Initialization | B54: Sum of use variables and number of factors exceed the prescribed value (50)." | C54: Jacques Vera test | D54: During execution. . . . Mediated analysis | E54: Factor | G54: bootn= | K54: No Frameborder | L54: Output clustering process | M54: Centering variables in interactions | N54: Missing Value | R54: use variable name
A55: Check | B55: All number of latent factors are 0. | C55: Statistics | D55: During execution. . . . Regression analysis step | E55: Cluster | G55: Randomize | K55: No Marker | L55: Ooutput Settings | N55: Specify Range | R55: run code
A56: HAD2Stan | B56: Select 2 or more variables. | C56: Correction p value | D56: During execution. . . . Multivariate regression analysis | E56: HOMALS | G56: Scree plot | K56: Error bar on Line graph | L56: Output Distance Matrix | N56: Specify Value | R56: New data can be scored the same way by running the new variable code again.
A57: Path | B57: The model cannot be discriminated. Decrease the number of parameters to estimate. | C57: Kolmogorov-Smirnov test | D57: During execution. . . . Mediated analysis output | E57: SEM | G57: Data cov. matrix | K57: OK | L57: MDS Settings | M57: Count Regression (Distribution) | N57: to | R57: code
A58: Covariance | B58: There is a factor without measurement items. | C58: ※ Jacques Bella test is a test for the null hypothesis that the kurtosis and skewness are zero. We used the Chi-squared test(df=2) | D58: During execution. . . . Structural equation modeling ... | E58: Plus F | G58: Frequency | K58: Cancel | L58: Dimension | M58: Poisson | N58: Copy Old Value
A59: Delete Diagram | B59: Designate 2 or more variables in a use variable. | C59: Frequency of each cell | D59: During execution. . . . Structural equation modeling ... | E59: Minus F | G59: Correspondence | K59: Shorcut Key | L59: Default | M59: NBinomial | N59: Missing Value
A60: Apply Diagram | B60: An error occurred while drawing path diagram. | C60: Sample size = | D60: During execution. . . . Structural equation modeling ... | E60: Diagram | G60: Rank Corr | K60: Show Modeling Sheet | L60: Cancel | M60: Ratio Regression (Link function) | N60: Specify Value
A61: Redraw | B61: ANOVA cannot be run from covariance matrix data. | C61: (List Wise removed) | D61: During execution. . . . Structural equation modeling ... | E61: Slice | G61: As Matrix | K61: Show History | L61: OK | M61: Probit | N61: OK
A62: DV -> | B62: Generalized linear model cannot be run from covariance matrix data. | C62: Frequency | D62: During execution. . . . Structural equation modeling ... | E62: Centering covariate | G62: Scatter | K62: Input Variables | L62: Type of Data | M62: Logit | N62: Cancel
A63: Slice -> | B63: Hierarchical linear model cannot be run from covariance matrix data. | C63: Ratio(%) | D63: Criterion | E63: Nominal α | G63: Scale mean | K63: Default | L63: Variable type: category is coded as numbers in a variable | M63: Compensate Log-Log | N63: Delete
A64: Regression | B64: Discriminant analysis and multivariate regression cannot be run from covariance matrix data. | C64: Total frequency | E64: Generalized ES | G64: Sum | K64: Default | L64: Category reacting model: reaction to category is coded in 0 or 1 | M64: Negative Log-Log | N64: No overwrite
A65: Robust Reg | B65: Enter ID variable in the B2 cell. | C65: Log-linear model | E65: Unbiased ES | G65: Split by median | K65: Default | L65: graph output settings | M65: Censored Regression | N65: List-wise del. (Reassignment)
A66: Robust SE | B66: Use variable is not entered. | C66: Variable | E66: Log Linear | G66: Split by mean | K66: Sheet manager | L66: Cross table type: when data is cross table of 2 variables | M66: Lower | N66: Composite variable will be made from use variable
A67: Clustered SE | B67: Response variable of the regression analysis is not entered | C67: Since the frequency is present cell of 0, We have added | E67: CWC on Level1 | G67: Parallel analysis | K67: Show History | L67: Both rows and colums will be plotted at the same time for cross table type | M67: Upper | N67: Mean will be 0
A68: Bootstrap | B68: Response variable is not in the use variables. | C68: . | E68: Discriminant Analysis | G68: Multivariate random number | K68: Number of save history | L68: Show Gridline | M68: Both | N68: Group mean will be centerized
A69: Model -> | B69: Response variable is not in the covariance matrix data. | C69: Cell number | E69: Multivariate Reg | G69: Use standarized score | K69: Cell Width | L69: Show Dimension Line | M69: None | N69: Group mean will be calculated
A70: Requiard -> | B70: Interaction effect cannot be examined from a covariance matrix data. | C70: Test and relevance between variables | E70: Means per cells | G70: Base score | K70: Show new sheet left | L70: Kaiser normalization | M70: GPoisson | N70: Use variable will be separated into 2 groups (lower=0, upper=1)
A71: Mediation | B71: Interaction effect cannot be examined in a mediation analysis. | C71: Estimation of each hierarchy | E71: Mediation settings | G71: Categorical Corr | K71: Number of the levels of categorical analysis | L71: Summary Dendrogram | M71: Discriminant Analysis | N71: Use variable will be converted to dumyy variable
A72: Linear model | B72: Response value is not entered. | C72: way model | E72: Stepwise settings | G72: As Matrix | K72: N of levels are | L72: More than | M72: Iteration Criteria (GLM) | N72: Aritumetic of use variable and constant
A73: Random | B73: 5 variables will be entered for the interaction term since there are many use variables. | C73: Estimation results of the saturation model | E73: Hide history | G73: Level of category | L73: objects | M73: Max iterations | N73: Nonlinear transformation of use variable
A74: Residuals -> | B74: Variables more than use variables cannot be designated | C74: Coefficient | E74: Delete all | G74: Full-ML | K74: HAD version | L74: Run Parallel Analysis | M74: Convergence | N74: Create variable with current filter setting reflected (Exclude=1, Use=0)
A75: Random -> | B75: Mean of each cell cannot be calculated from a covariance matrix data. | C75: Lower | E75: Analysis | G75: Two-Step | K75: hadversion | L75: Varimax rotate when depth = 1 | M75: Variable Settings (HLM) | N75: Create filter variable
A76: ANOVA | B76: Discrimination analysis can only be run when using raw data. | C76: Upper | E76: Sheet manage | G76: From startup | K76: File | L76: k-means | M76: Adjust categorical variables | N76: Mean Score
A77: Covariate -> | B77: Regression analysis of ordinal data can only be run when using raw data. | C77: Z value | E77: Close | G77: As Cross Table | K77: Seed | L77: Randomize | M77: Centering all variables | N77: Sum Score
A78: Repeated -> | B78: Regression analysis of nominal data can only be run when using raw data. | C78: Frequency distribution table | E78: binary | G78: As Row Data | K78: System Timer | L78: Mahalanobis | M78: Centerize level 1 variable by group mean (recommended) | N78: Principal Component Score
A79: Log Linear Model | B79: Regression analysis of ratio data can only be run when using raw data. | C79: Histogram (normality test) | E79: ipw estimate | G79: Box Plot | K79: Fix Seed | L79: Hierarchical | M79: Iteration Criteria (HLM) | N79: Subtracting variables from the first variable
A80: Discriminant Analysis | B80: Mixture regression analysis can only be run when using raw data. | C80: Appearance value | G80: Mtrx. Cul | K80: Thickness of Line graph | L80: k-means | M80: Max iterations | N80: Convert each variable's mean and standard deviation
A81: Multivariate Reg | B81: Regression analysis of count data can only be run when using raw data. | C81: Probability(%) | G81: Calculation or variables | K81: Times New Roman (output font) | L81: Initial Value | M81: Convergence | N81: Centerize each variable by group mean (multi-level data)
A82: IV | B82: Regression analysis of censored data can only be run when using raw data. | C82: Effective frequency | G82: Dummy code | K82: Graduation marks are inside | L82: PCA | M82: Default | N82: (Enter maximum value + 1)
A83: HLM | B83: Quantile regression analysis can only be run when using raw data. | C83: Effective probability | G83: Difference of variables | K83: BoxPlot BarChart | L83: Random | M83: Cancel
A84: Regression | B84: Missing value cannot be analyzed in a multilevel analysis. | C84: Cumulative probability | G84: Non-parametric Test | K84: DotPlot | L84: Iteration | M84: OK | N84: Group Mean Centering (Name_mc)
A85: Gaussian | B85: Missing value estimation estimates the variance of exogenous variable. | C85: Total | G85: Relationships between Variables | K85: Japanese font | L85: Iterations = | M85: Standard Error | N85: Calculate centerized group mean
A86: Log normal | B86: Missing data cannot be estimated in a generalized least square method. | C86: Normality | G86: Paried | K86: Gauss Curve | L86: Scale score calculation method | M86: Model SE | N86: Centerize and create interaction term
A87: Gamma | B87: An error occurred while starting HAD. HAD will terminate. | C87: Section | G87: Independent | K87: Show Error bar | L87: Sum | M87: Robust SE | N87: Arcsine transformation of variable (angular transformation)
A88: Ordered Reg | B88: Hierarchical input method cannot be used in a mixture regression analysis. | C88: Class value | G88: Equal Means Test | K88: graph Option | L88: Mean | M88: Centering interaction term | N88: Interaction term will be created
A89: Logistic | B89: Enter the number of clusters. | C89: Uniformity Test | G89: Independent | K89: Log Linear Model (zero freqency option) | L89: Convergence = | M89: Output Settings | N89: Filter Off
A90: Probit | B90: Enter the group ID in the first cell. | C90: Degree of freedom | G90: Paried | K90: Language | L90: Max iterations = | M90: Output cov. matrix of Fixed effect | N90: Filter Off
B91: Enter a variable name to use in the analysis in "use variable:" | C91: Number of occurrences | G91: Data by groups | K91: Multiple Comparison | L91: Iteration Settings | M91: Include Random intercept in Null model | N91: Filter Off
B92: Use variable exceeds the maximum value ( | C92: mode | G92: Linear Reg | K92: Bonferroni | L92: Sort output of CFA | M92: Random Effect | N92: Filter Off
A93: MultiNominal | B93: ). | C93: Curve fitting | G93: Reassignment of values | K93: Holm | L93: Estimation accuracy = | M93: Estimate Random intercept | N93: Filter Off
A94: Ref. | B94: Data entry is incorrect. Confirm. | C94: Parameters of the cumulative normal curve | G94: Filter variable | K94: Shaffer | L94: Default setting | M94: Other Settings | N94: Rank Score (Name_rs)
A95: Binomial | B95: A blank variable name is included. Confirm the Box variable. | C95: Mean | G95: Cell mean | K95: Mod. Shaffer | L95: Cancel | M95: Clustered SE | N95: Old Value -> New Value
A96: BetaBinom. | B96: Variables with an identical name are included. | C96: The estimation of the threshold | G96: One Sample Test | K96: Yate's continuity correction | L96: OK | M96: Heteroskedasticity | N96: Add
A97: Occor | B97: cannot be found. Reload and confirm the variable name. | C97: 25% threshold | G97: Value = | L97: Estimate SE | M97: Show check box to switch to modeling space | N97: More than
A98: Total | B98: "*" cannot be used in a variable name. | C98: 50% threshold | G98: Freq. by Cell | L98: Epsilon | M98: Output | N98: SD: Delete Outlier Criteria
A99: Mixture | B99: Variables with an identical name are included in the control variables. | C99: 75% threshold | G99: Mplus code | L99: Output Settings | M99: Cov. matrix of Coefficients | N99: Group ID Serial Number
A100: Class | B100: Variable(s) identical to the use variable are included in the control variables. | C100: Quartiles | G100: Lable | L100: Std. Solution | M100: Split cov. term by steps and input | N100: Transform String to Numeric
A101: Count Reg | B101: 2 or more variables needs to be designated for the equality of means test. | C101: Quadrant | G101: Group | L101: Estimation | M101: Variable input method
A102: Poisson | B102: Including the ID variables, designation of 4 or more variables is required for equality of correlation coefficient test. | C102: Interval estimation of the average | G102: Reliability | L102: Estimate variance of Exogenous | M102: Other Settings
A103: NBinomial | B103: Response variable of the regression model needs to be entered. | C103: Reference value | G103: Cross Table | L103: Non-negativity constraint for variances | M103: Effect size type
A104: GPoisson | B104: Response variable of the regression model is not included in the use variables. | C104: Confidence interval | G104: Equal Corr | L104: Scree Plot Settings
A105: Offset | B105: 2 or more response variables are required for within-participant analysis. | C105: Difference | G105: Median | L105: Apply factor correlation | M105: Pearson's r
A106: Tobit Reg | B106: Entered number of levels of repeated measure is incorrect. | C106: DF | G106: Within-group mean + centerize (Name_mc) | L106: Calculation method of factor score | M106: Hedges's g
A107: Lower | B107: There is a same variable as the response variable in the covariate. | C107: t value | G107: Intra-Class Correlation | L107: Regression method | M107: Calculate standard error by level
A108: Upper | B108: There is a variable not included as a use variable in the covariate. | C108: ※ Error bars show the standard error. | G108: Number of class = | L108: Use Monte Carlo integration for EAP estimation (when categorial) | M108: Population estimate amount
A109: Both | B109: There is a same variable as the response variable in the measurement factor. | C109: ※ Error bars show the 95% confidence interval. | G109: Normality Test | L109: Categorical FA | M109: Generalization effect amount
A110: None | B110: There is a variable not included as a use variable in the measurement factor. | C110: Group | G110: Interaction term | L110: EAP | M110: Differential effect
A111: Quantile Reg | B111: Interaction term cannot be inputted in a mediation analysis. | C111: Covariate | G111: No overwrite | L111: MAP | M111: Factorial effect
A112: Quant. | B112: Only 2 variables in an explanatory variable can be inputted for a model of mediation analysis. | C112: Correlation | G112: Filter Off | L112: Robust SE | M112: Pool for between, by levels for within
A113: Factor Analysis | B113: Response variable is included also in the grouping. | C113: The coefficient of determination | G113: Bubble Chart | L113: No correct. | M113: Test using student's t
A114: Factors | B114: Response variable is included also in the explanatory variable. | C114: Covariance | G114: Histogram | L114: Using Solver for Categorical FA | M114: Correction SE
A115: Method | B115: Interaction term cannot be inputted when using covariance matrix data. | C115: Estimation | G115: Congruent | L115: Ordered cluster | M115: No correction
A116: Rotation | B116: A variable not designated in the use variable is included. | C116: Linear Regression | G116: Reg per Group | L116: Ordered | M116: Robust SE
A117: Score | B117: There are several identical variables in the explanatory variables. | C117: Model | G117: Equal Variance | L117: Continu. | M117: Clustered SE
A118: ML | B118: Covariates are not included in the ANOVA model. | C118: Intercept | G118: APIM | L118: Mixture | M118: Test using student's t
A119: ULS | B119: Variables of within-participant factor are not included in the ANOVA model. | C119: Slope | G119: Unifom Test | L119: EII | M119: No correction
A120: Prin it | B120: Explanatory variable is not included in the model. | C120: Regression equation | G120: Ranking score (Name_rs) | L120: EEE | M120: Bootstrap
A121: Principal | B121: Mediation analysis requires 2 or more independent variables. | C121: The regression line of each group | G121: PCA | L121: VII | M121: Iterations =
A122: Categorical | B122: Number of interaction terms exceeds the value limit. | C122: ※ it was not able to display all of the regression line. You are viewing the results of the first 255 group. | G122: BM test | L122: VVV | M122: Randomize
A123: EV more than 1 | B123: Entered explanatory variable is inappropriate. | C123: ※ it was not able to display all of the regression line. | G123: Serial number within group | L123: Variance Model | M123: Robust Regression
A124: Oblique | B124: Enter the variables including those from the previous step for the next step. | C124: Bubble chart | G124: Convert text to values | L124: Latent Class Analysis | M124: Output cov. matrix of Fixed effect
A125: None | B125: When designating 2 grouping variables (slice variables), 3-factor interaction needs to be included in the model. | C125: Rank correlation coefficient | G125: Means per Group | L125: Learning frequency scale | M125: C-M
A126: Orthogonal | B126: Grouping variables (slice variables) cannot be found in the use variable. | C126: Correspondence analysis | G126: Kernel Density | L126: Latent Rank | M126: Mixture Regression
A127: Sort | B127: There are identical variables in the grouping variables (slice variables). | C127: Cross Table | G127: Graph Option | L127: Detail Settings | M127: Randomize
A128: Corr Matrix | B128: Grouping variables (slice variables) cannot be found in the independent variable. | C128: Coefficient of association and test of independence with Yates' continuity correction. | G128: Curve Fitting | L128: Robust SE | M128: Iterations =
A129: MLPromax | B129: Slice variables cannot be found in the interaction variables. | C129: ※ confidence interval did not converge | G129: Multi Cross Table | L129: Setting of k-means method and latent variable analysis | M129: HAD2GLIMMIX Settings
A130: Factor Score | B130: A slice variable needs to be included in the interaction terms. | C130: Cramer's V | G130: had2stan_sem | M130: Distributions for continuous data
A131: Scale Score | B131: Entered cluster number is incorrect | C131: Plot of the cross table | M131: Gaussian
A132: Scree plot | B132: Enter a whole number larger than 0, and smaller than the number of objects to categorize | C132: Fisher's Exact | M132: Log Normal
A133: IRT | B133: Selected method for the cluster analysis is incorrect | C133: ※ Please see this result when the total frequency of 40 or less, or the expected frequency is 5 or less of the cell. | M133: Simple Effect Analysis
A134: Clusters | B134: Select one of the methods | C134: Two-tailed probability | M134: SD
A135: Method | B135: Entered maximum number of iteration is incorrect | C135: One-tailed probability | M135: ±
A136: Data | B136: Enter a whole number larger than 1 | C136: Consistency coefficient | M136: Estimate the overdispertion of binominal regression
A137: Hierarchical | B137: Entered convergence criterion is incorrect | C137: Cohen's κ | M137: Gamma
A138: k-means | B138: Enter a value larger than 0.00001 | C138: Cross table (ratio% of the total) | M138: Probit Link
A139: Mixture | B139: Structure equation modeling requires 2 or more use variables | C139: Cross table (ratio% of each row) | M139: Binomial
A140: Latent Class | B140: HAD is shutting down | C140: Cross table (ratio% of each column) | M140: Beta Binomial
A141: Latent Rank | B141: Entered number of factors are incorrect | C141: Residual analysis | M141: Use solver to estimate
A142: Not specified | B142: Enter a whole number more than 0, and smaller than the number of items | C142: Cross table (△ is significantly greater, ▼ is significantly less)
A143: Observation | B143: Enter a whole number more than 1, and smaller than the number of items | C143: Adjusted standardized residuals
A144: Variable | B144: Entered orthmax criterion (depth of contributing factor) is incorrect | C144: (Wilcoxon's sined rank test with continuity correction)
A145: Distance Matrix | B145: Enter the values below. | C145: ※ Based on the negative order
A146: Dendrogram | B146: Varimax rotation = 1 | C146: ※ Based on the positive order
A147: Patterns | B147: Quartimax rotation = 0 | C147: Test statistic Z =
A148: Observation | B148: Biquatimax rotation = 0.5 | C148: (Friedman test)
A149: Variable | B149: Equamax rotation = factor / 2 | C149: Test statistic Chi-squared =
A150: Score | B150: Factor parsimony = number of variables | C150: Effect size
A151: Cluster Mean | B151: Entered promax rotation criterion (Power) is incorrect | C151: The average rank
A152: Standardize | B152: Enter a value larger than 1
A153: MDS | B153: Selected factor method is incorrect | C153: Place Points
A154: HOMALS | B154: Select one of the factor methods | C154: Multiple comparisons (method of Holm)
B155: Entered category criterion is incorrect | C155: Type of Test
A156: Dimensions | B156: Enter a value from 0 to 180. | C156: The difference of rank
A157: Data | B157: Entered class of the histogram is incorrect | C157: E.S. r
A158: Weight | B158: Enter a value from 2 to 100. | C158: Adjusted p
A159: Variable | B159: Entered criterion value of one sample test is incorrect | C159: (Mann-Whitney's U test with continuity correction) "
A160: Category | B160: Enter a value. | C160: (Kruskal - Wallis test) "
A161: Cross table | B161: Entered sample size of the bootstrap is incorrect | C161: Do not assume test the equal variance (Brunner-Muntsueru test)
A162: Varimax Rot. | B162: Enter a value from 200 to 50000. | C162: Test statistic t =
A163: Weighted | B163: Enter the number of people within a group. | C163: (Rank score)
A164: Unweighted | B164: The entered number of people within a group is inappropriate. | C164: Weighting factor
A165: Plot vari. | B165: Including the group ID, entering 3 or more variables are required to output a correspondence analysis | C165: Main ingredient
A166: Plot obs. | B166: Including the group ID, entering 4 or more variables are required to output a scatter plot per group | C166: Eigenvalue
A167: Variable Data | B167: Including the group ID, entering 3 or more variables are required to output a scatter plot | C167: Contribution rate
A168: Category Data | B168: 2 or more variables needs to be designated for non parametric test. | C168: Cumulative contribution
A169: Obs. Score | B169: Including the group ID, entering 3 or more variables are required to output factor analysis. | C169: Plot
A170: Category Data | B170: Entered response variable is incorrect | C170: Standarized pricipal component
A171: SEM | B171: Select from the selected variables
A172: Method | B172: The number of group is set as 1. | C172: Standardized weighting coefficient
A173: Estimator | B173: Remove the checkmark from "multi-level data" to analyze. | C173: Test of equal variance (Levene test)
A174: Setting | B174: An error occurred while entering data. HAD will terminate. | C174: Test variable
A175: CFA | B175: Data includes formula errors. | C175: Group variable
A176: EFA | B176: Continue analysis by converting formula errors to missing values? | C176: F value
A177: Multilevel | B177: Data includes blank cells. | C177: DF1
A178: GLS | B178: Confirm the number of missing values and variables in the data. | C178: DF2
A179: No Factor | B179: Data includes words apart from the designated missing values. | C179: Test statistic
A180: Cluster Solution | B180: Confirm the data. | C180: Variances of each group
A181: Std. Res. | B181: Data includes cells with only space. | C181: Delete
A182: CFA | B182: Group variables for the multiple group analysis cannot be found. | C182: Data
A183: SE | B183: Group variables for the multiple group analysis is included in the use variable. | C183: Polychoric
A184: Mean Structure | B184: A text data cannot be used in a control variable. | C184: Label
A185: Missing Data | B185: Only 1 variable can be set as a grouping variable. | C185: Partial correlation analysis
A186: Modeling Space | B186: Confirm the filter setting. | C186: Correlation analysis
A187: Corrent Model | B187: Grouping analysis cannot be done in a multilevel analysis. | C187: Test statistics(t value) and p-value
A188: Listwise Delete | B188: Grouping analysis cannot be done in a clustered standard error. | C188: ※ t value, p value, degree of freedom, and 95% confidence interval.
A189: Summary | B189: Only paired data can be operated in a pair-wise analysis | C189: p-value
A190: Boxplot | B190: This data is not a paired data. | C190: Degree of freedom
A191: Histgram | B191: Data with an equal number of within-group people can only be analyzed as a discriminable data. | C191: 95% CI
A192: Friquency distribution | B192: Data with an equal number of within-group people can only be sorted. | C192: Rank correlation coefficient (Spearman)
A193: Normal test | B193: The capacity for the number of groups is 15. HAD will terminate. | C193: Categorical correlation analysis
A194: Scatter Plot | B194: Analysis controlled by the controlled variable cannot be done in ANOVA. | C194: The Porikorikku poly serial correlation coefficient There was an error in the calculation.
A195: Lable | B195: An analysis controlled with a control variable cannot be done in regression analysis, generalized linear model, and / or hierarchical linear model. | C195: The number of categories specified value (& categorimax & ") ※ because there was variable beyond, you have to calculate the product-moment correlation coefficient of part of Pearson."
A196: Group | B196: An analysis controlled with a control variable cannot be done in equality of means test. | C196: Test statistic and the significance probability
A197: Linear Regression | B197: An analysis controlled with a control variable cannot be done in an analysis with categorical data as a response variable. | C197: ※ Z value(or t values), p value, and the type of correlation coefficient.
A198: Cross table | B198: An analysis controlled with a control variable cannot be done in regression analysis of a count data. | C198: Item analysis
A199: Bubble chart | B199: An analysis controlled with a control variable cannot be done in equality of mean rank test. | C199: Item
A200: Group mean | B200: An analysis controlled with a control variable cannot be done in equality of variances test. | C200: Internal consistency coefficient
... 522 more rows

Sheet $Chinese$ (hidden)
A1: 基本システム用語 | B1: メッセージボックス | C1: 出力 | D1: ステータスバー | E1: コントロール | G1: UserForm1 | H1: UserForm2 | I1: UserForm3 | J1: UserForm4 | K1: UserForm5 | L1: UserForm6 | M1: UserForm7 | N1: UserForm8 | O1: UserForm9 | P1: UserForm10 | Q1: UserForm11 | R1: UserForm12 | S1: UserForm13 | T1: UserForm14 | U1: UserForm15 | V1: UserForm16 | W1: UserForm17 | X1: UserForm18 | Y1: UserForm19 | Z1: UserForm20 | AA1: UserForm21 | AB1: UserForm22 | AC1: UserForm23 | AD1: UserForm24 | AE1: UserForm25 | AF1: UserForm26
A2: 数据 | B2: 统计分析软件 HAD | C2: ※输入Stan用的input矩阵使用csv格式文件保存到了被指定的目录里。 | D2: HAD正在运行．．．.数据录入 | E2: 数据 读取 | G2: 统计分析巨集命令 HAD | H2: 列宽度的调整： HAD | I2: 工作表管理： HAD | J2: 量表平均值： HAD | K2: 设置： HAD | L2: 因子分析选项： HAD | M2: 回归模型选项：HAD | N2: 变量合成： HAD | O2: 数值计算：HAD | P2: 数据文件：HAD | Q2: HAD计算中 | R2: 变量信息变更： HAD | S2: 用于分析的变量:HAD | T2: 模型的选择 回归分析：HAD | U2: 统计分析宏 HAD(简单模式) | V2: 中介效应分析：HAD | W2: 模型的选择 因子分析：HAD | X2: 设置步进法（stepwise） | Y2: 设置碎石图 | Z2: TTM2HAD | AA2: 潜在秩序回归分析的详细设置 | AB2: HAD2GLIMMIX的设置 | AC2: HAD2R | AD2: HAD2glmmstan的设置 | AE2: 图表设置 | AF2: HAD2Stan_SEM
A3: 模型 | B3: 请激活HAD文件 | C3: 描述性统计 | D3: HAD正在运行．．．. | E3: 模型 工作表 | G3: 包括ID变量 | H3: HAD的设置值 | I3: 关闭 | J3: OK | K3: 使用合成的矩阵数据 | L3: ・估计设置 | M3: 取消 | N3: 取消 | O3: 计算逆矩阵 | P3: 变量按组排列（横排数据变竖排） | Q3: 正在计算中。 请稍候。 如果分析过了一段时间还没有结束， 请按下面的“分析中断”按钮。 | R3: 筛选器 | S3: 取消 | T3: ・请选择分析中使用的模型 | U3: 取消 | V3: ・定序回归分析的链函数 | W3: ・请选择分析用的模型 | X3: ・步进法（stepwise）的标准 | Y3: ・平行分析 | Z3: 参照 | AA3: 学习频率的估计值的倍率 | AB3: ・估计方法 | AC3: 参照 | AD3: 数据文件路径 | AE3: 依据不同组 | AF3: 取消
A4: 求解器加载项 | B4: 错误内容: | C4: 箱形图 | D4: HAD正在运行．．．.准备分析 | E4: 列宽调整 | G4: OK | H4: 匹配各个变量名的长度 | I4: 全部删除 | J4: 乘以-1进行反向计分 | K4: ・输出设置 | L4: ・因子轴的旋转基准 | M4: OK | N4: OK | O4: 对称矩阵的特征值(Jacobi法) | P4: 组内人数＝ | Q4: 分析中断 | R4: 值标签 | S4: OK | T4: 使用变量 | U4: OK | V4: ・计数数据的分布 | W4: 取消 | X4: 投入标准 | Y4: 抽样次数= | Z4: ・读取ExcelTTM | AA4: ・潜在秩序回归分析（自组织映射）的估计设置 | AB4: 高斯-厄米特求积（Gauss–Hermite）的最大似然法 | AC4: 关闭 | AD4: 参照 | AE4: 为ID变量设置标签 | AF4: OK
A5: 工作表管理 | B5: 请选择变量名称。 | C5: 直方图 | D5: HAD正在运行．．．分析 | E5: 数值 计算 | G5: 组内均值中心化（变量名_g） | H5: 使用手册 | I5: 删除不带有以下记号的工作表 | J5: 最大值 + | K5: 使用标签输出结果 | L5: 最大迭代次数 = | M5: 投入基准 | N5: 按平均值分成两组 | O5: 计算特征值（QR法） | P5: 把组作为变量进行排序(竖排变横排) | R5: 标签 | S5: 添加→ | T5: 取消 | U5: 详细模式 | V5: 泊松 | W5: OK | X5: 删除标准 | Y5: 将初期値随机化 | Z5: 出现频率的最小值 | AA5: 非比例优势模型 | AB5: 拉普拉斯近似（Laplace approximation）的最大似然法 | AC5: 保存为R使用的数据 | AD5: 数据文件名 | AE5: 表示正态曲线 | AF5: ・HAD2Stan_SEM设置
A6: 起动HAD | B6: 不能运行使用变量超过…的分析。 | C6: 频率 | D6: HAD正在运行．．．.因子分析 | E6: HAD2R | G6: 组内平均（变量名_m） | H6: OK | I6: 删除所有工作表 | J6: 不做反向计分 | K6: ・缺失值设置 | L6: 收敛基准 = | M6: 删除基准 | N6: 计算使用变量的总分 | O6: OK | P6: （竖排数据变横排） | R6: ＠变量 | S6: ←删除 | T6: OK | U6: 不覆盖输出 | V6: 负二项分布 | W6: ・使用变量 | X6: 取消 | Y6: ・简单结构分析 | Z6: ・设置使用的单词 | AA6: 比例优势模型 | AB6: 带限制的伪（False maximum）最大似然法 | AC6: 读取 csv文件 | AD6: .csv | AE6: 直方图的级数= | AF6: R的操作规则
A7: 变量投入 | B7: 请选择分析代码。 | C7: 正态性检验 | D7: HAD正在运行．．．.聚类分析 | E7: TTM2 HAD | G7: 取消 | H7: 取消 | I7: 删除所有不带有"$"的工作表 | J7: 存在载荷为负值的项目。 需要反向计分后进行合成吗？ | K7: "." （英文句号） | L7: 直交旋转基准= | M7: 使用全体平均进行主效应中心化 | N7: 计算使用变量的平均值 | O7: 取消 | P7: （横排数据变竖排） | R7: 变量名 | S7: 全投入 | T7: 添加→ | U7: 差的检验 | V7: 逻辑 | W7: ・自变量 | X7: OK | Y7: 取消 | Z7: 动词 | AA7: ・潜在秩序回归分析的回归系数 | AB7: 伪最大似然法 | AC7: ・文件夹路径 | AD7: 取消 | AE7: 不显示标记 | AF7: 参照
A8: 变量合成 | B8: 分析代码不正确。 | C8: 散点图 | D8: HAD正在运行．．．.同质性分析 | E8: 分析 | G8: 数据输入方法 | H8: Excel默认(列宽度8.38) | I8: 名称变更 | J8: 减去后反向计分 | K8: 用户指定 | L8: ※Kappa数值越大因子间相关越大 | M8: 将二值虚拟变量当作分类变量（推荐） | N8: 使用中位数分成两组 | O8: 计算矩阵公式 | P8: OK | R8: 值 | S8: 全删除 | T8: ←删除 | U8: 独立 | V8: 概率 | W8: 保存模型 | X8: 默认设置 | Y8: OK | Z8: 名词 | AA8: ・连续量潜在秩序分析中的平均值的估计方法 | AB8: 取消 | AC8: ・文件名 | AD8: OK | AE8: 勾画拟合直线 | AF8: 数据文件名
A9: 运行分析代码 | B9: 分析代码不适当。 | C9: 组别的统计量 | D9: HAD正在运行．．．.结构方程模型 | E9: 数据 工作表 | G9: 差的检验 | I9: 显示 | J9: 特征值 | K9: ・HAD的显示设置 | L9: 取消 | M9: 类型Ⅲ | N9: 合成变量 | O9: 不覆盖输出 | P9: 取消 | R9: 排除比该值大的个案 | S9: 使用变量 | T9: 投入主效应 | U9: 配对 | V9: ・中止数据的方向 | W9: 删除选择模型 | Y9: 默认设置 | Z9: 形容词 | AA9: 相位生成图 | AB9: OK | AC9: 输出 | AD9: ・R用的数据设置 | AE9: 重叠散点 | AF9: .csv
A10: 将分析代码反映到HAD中 | B10: 模型表格页的设置将被初始化。 | C10: 核密度估计 | D10: HAD正在运行．．．输出 | E10: 使用变量 | G10: 多水平统计分析 | I10: 删除 | J10: 减去后反向计分 | K10: 保存变量信息（上限254变量） | L10: OK | M10: 类型Ⅱ | N10: 量表转换 | O10: 生成多变量正态随机数 | P10: 嵌套型数据 | R10: 排除比该值小的个案 | S10: 数据列表 | T10: 投入交互作用 | U10: 平均值的差的检验 | V10: 下侧 | W10: 保存的模型清单 | Y10: 非迭代估计（最大法） | Z10: 副词 | AA10: 自组织映射图 | AB10: 默认设置 | AC10: .csv | AD10: ・MCMC的设置 | AE10: 95%置信区间 | AF10: 将缺失值变成"NA"
A11: 描述性统计量 | B11: 确定初始化吗？ | C11: 列联表 | D11: HAD正在运行．．．.类别相关系数 | E11: 使用选择的单元格 | G11: 多水平相关分析 | I11: 工作表名 | K11: 显示设置 | L11: 初始设置 | M11: ・协变量 | N11: 数值转换 | O11: 样本大小= | P11: 数据问卷的输出 | R11: 使用和该值相等的个案 | S11: 用于分析的变量 | T11: ・因变量 | U11: 相关分析 | V11: 上侧 | W11: 从保存的模型中选择 | Y11: 主因子法 | Z11: 关键词 | AA11: 邻域函数的方差 | AB11: ・残差协方差的构造 | AC11: 参照 | AD11: 抽样数 | AE11: 标准误差
A12: 直方图 | B12: 请选择单元格。 | C12: 平均值的检验 | D12: HAD正在运行．．．.多重列联表 | E12: 投入控制变量 | G12: MUML用协方差矩阵 | I12: 模型 | K12: 分析设置 | L12: （从1到1000） | M12: ・多重比较方法 | N12: 重新分配数值 | O12: 与协方差矩阵完全一致 | P12: 选择数据文件 | R12: 数据 | S12: 从HAD中排除的变量 | T12: ・自变量 | U12: 相关的差异检验 | V12: 双侧 | W12: 从分析代码中输入 | Y12: 非迭代估计(平均法） | Z12: 同义词 | AA12: 默认设置 | AB12: 一次自回归（AR(1)） | AC12: 文件 | AD12: 马尔科夫链（Markov Chain)的数量 | AE12: 直方图
A13: 作为主数据组使用 | B13: 数据当中含有错误的计算公式。 | C13: 多重列联表 | D13: HAD正在运行．．．.对数线性模型 | E13: 变量居左显示 | G13: 数据的概要 | I13: 数据工作表 | K13: 图表设置 | L13: （从0.00001到1） | M13: 校正Shaffer | N13: 虚拟变量 | O13: 模拟（用于错误） | P13: 生成随机数据 | R13: 排除与该值相等的个案 | S13: 排除的变量 | T13: 从列表中删除 | U13: 项目分析（α系数） | V13: 广义泊松 | W13: ・分组变量 | Y13: 精度较高，但需要时间来计算 | Z13: ・输出 | AA13: 取消 | AB13: 球形度（HF） | AC13: 读取 | AD13: 采用间隔(thin) | AE13: 散点图
A14: 将此变量添加到数据组中 | B14: 确定将错误计算公式变成缺失值吗？ | C14: 主成分分析 | D14: HAD正在运行．．．.对数线性模型 | E14: 变量信息 | G14: 描述性统计 | I14: 工作表管理 | K14: 快捷键 | L14: （从1到10 ） | M14: Shaffer | N14: OK | O14: 随机数生成 | P14: ・现在的使用数据： | R14: OK | S14: 取消 | T14: 保存模型 | U14: 信度系数 | V14: 取消 | W14: 使用变量 | Y14: 将共同度的和的变化绘制成图 | Z14: 单词出现的频数 | AA14: OK | AB14: 方差成分（VC） | AC14: 将缺失值变换为"NA" | AD14: warm up数 | AE14: 箱型图
A15: 分析代码 | B15: 数据中含有空白单元格。 | C15: 独立样本的平均等秩检验 | D15: 模拟正在运行．．．．(现在 | E15: 回归分析 | G15: 不覆盖输出结果 | I15: 删除工作表 | K15: 右击 | L15: （加权：从0到变量个数为止） | M15: Holm | N15: 取消 | O15: 抽样 | P15: 取消 | R15: 取消 | S15: OK | T15: 清除选定的模型 | U15: 均值估计 | V15: OK | W15: 表示模型↓ | Y15: 探索碎石图的分界值 | Z15: 单词与单词的列联表 | AA15: 重复估计次数 | AB15: 无结构（UN） | AC15: OK | AD15: 并行化 | AE15: 删除图片的边框
A16: 变量信息 | B16: 请确认数据中的缺失值和变量的个数。 | C16: 配对样本的平均等秩检验 | D16: HAD正在运行．．．.方差分析 | E16: 因子分析 | G16: 标准化得分（变量名_s） | I16: 关闭 | K16: 系统 | L16: ・平行分析 | M16: 主效应和多重比较的显著性水平 | N16: 不覆盖输出 | O16: 矩阵演算 | P16: OK | R16: 适用 | S16: 排除→ | T16: 保存的模型列表 | U16: 标准值＝ | V16: 默认设置 | W16: 编辑被选择的部分的模型(半角空格分隔) | Y16: 探索效率较好的模型 ※推荐 | Z16: 回答者与单词的列联表 | AA16: ・潜在秩序分析（EM算法）的估计设置 | AC16: 将"NA"变换为缺失值 | AD16: 核心数 | AE16: 黑白表示
A17: 使用变量： | B17: 数据中只有空格的单元格（变量名 | C17: 皮尔逊积矩相关系数 | D17: HAD正在运行．．．.方差分析输出 | E17: 变量合成 | G17: 简捷法的协方差矩阵 | I17: 全部删除 | K17: 取消 | L17: 抽样次数= | M17: Bonferroni | N17: 不覆盖输出 | O17: OK | P17: 指定工作表 | R17: 变量名 | S17: ←返回 | T17: 从保存的模型中选择 | U17: 数据的描述 | V17: 无 | W17: 反映编辑内容 | Y17: 运行平行分析 | Z17: 运行分析 | AA17: 邻域函数的方差 | AC17: ・R中使用数据的对象名称 | AD17: 默认设置 | AE17: 折线的粗细
A18: 变量名 | B18: 行）包括在其中。 | C18: 协方差矩阵 | D18: HAD正在运行．．．.平均值的差的检验 输出 | E18: 数据文件 | G18: 成对协方差矩阵 | I18: 移动工作表 | K18: OK | L18: 初始值随机化 | M18: ・简单效应的误差项的计算方法 | N18: 计算使用变量的主成分得分 | O18: 取消 | P18: 使用原始数据 | R18: 值 | S18: 全读取 | T18: 从分析代码中输入 | U18: 描述性统计 | V18: 负Log-Log | W18: 现在的模型 | Y18: 共同度的和 | Z18: 取消 | AC18: R代码 | AD18: 输出名 | AE18: 刻度线改在内侧
A19: 代码 | B19: 请确认数据。 | C19: 斯皮尔曼等级相关系数 | D19: HAD正在运行．．．.方差分析简单效应检验输出 | E19: 工作表管理 | G19: 协方差矩阵 | I19: 将选择的工作表移动至新建文件 | K19: 取消 | L19: 最优斜交法旋转 Power = | M19: 合并误差项 | N19: 使用标准化得分合成变量 | O19: 均匀分布 | P19: 使用协方差数据 | R19: 标签 | S19: 读取变量 | T19: ・分组变量 | U19: 频率分布表 | V19: 补充Log-Log | W19: ・分析法 | Y19: VSS | Z19: 不覆盖输出 | AC19: 开启HAD2R | AD19: R上的数据名 | AE19: 图片整体设置
A20: 结构方程模型 | B20: 个变量以上不能够被读取。 | C20: 多分格（Polychoric）相关系数 | D20: HAD正在运行．．．.聚类分析 | E20: HAD的设置 | G20: 矩阵显示 | I20: 分析记录 | K20: OK | L20: 独立聚类旋转 Power = | M20: 各水平的误差项 | N20: 将中位数包括在高分组中 | O20: 正态分布 | P20: 使用多分格（Polychoric）相关的数据 | R20: OK | S20: ·请选择要从HAD中排除的变量。 | T20: 使用变量 | U20: 散点图 | V20: ・重回归分析的估计法 | W20: 分析代码 | Y20: VSS的复杂性 = | Z20: 单词与单词的距离矩阵 | AC20: HAD2R现在处于关闭状态 | AD20: 输出设置 | AE20: 计算核密度估计值
A21: 模型 | B21: 请在数据组中输入数据。 | C21: 阿尔法系数 | D21: HAD正在运行．．．. | E21: 筛选器 | G21: 相关分析 | I21: 保护 | K21: ・HAD的初始化 | L21: 斜交旋转法 | M21: 回归分析 | N21: 将中位数包括在低分组中 | O21: 样本大小= | P21: 原始数据 | R21: 取消 | S21: ·请选择要在分析中使用的变量。 | T21: 显示模型↓ | U21: 箱线图 | V21: 最小二乘法 | W21: 表示模型↓ | Z21: 每个回答者的单词的反应数据 | AC21: 开启HAD2R | AD21: 输出stan的计算结果 | AE21: 取消
A22: 验证性 | B22: 以前被指定的"从HAD中除外的变数"，本次也将其除外吗？ | C22: 信度系数 | D22: HAD正在运行．．．..聚类分析 正在计算聚类特征 | E22: 值的标签 | G22: 中心化得分（变量名_c） | K22: 所有的分析设置都返回HAD的默认设置， 保存的所有变量信息都将被删除。 | L22: 直接斜交法旋转 | M22: 方差分析 | N22: 把基准值当作缺失值 | O22: 样本数= | P22: 使用组变量计算平均 | R22: 适用 | S22: 全排除 | T22: 编辑选定部分的模型（半角空格分隔） | U22: 直线回归 | V22: 最大似然法 | W22: 删除所有模型 | Z22: 输出数据 | AC22: ・读取数据用的R代码 | AD22: 输出stan的代码 | AE22: OK
A23: 因子分析 | B23: 变数名称不能使用「$」、「\」、「,(英文逗号)」、「半角空格」 | C23: 独立样本的平均值的差的检验 | D23: HAD正在运行．．．.聚类分析 正在生成树形图 | E23: 标签 | G23: read me | K23: 取消 | L23: （从0到1） | M23: 广义线性模型 | N23: 标准化得分（变量名_s） | O23: 最小値 = | P23: 每个组的数据（组平均） | R23: 添加 | S23: 控制变量 | T23: 反映编辑 | U23: 按单元格计算频数 | V23: ・稳健标准误差的类型 | W23: ・模型名称 | Z23: 单词的聚类化 | AC23: ↓ | AD23: 安装glmmstan | AE23: Kernel intervals数=
A24: 多层统计 | B24: 存在同样名称的变量。 | C24: 配对样本的平均值的差的检验 | D24: HAD正在运行．．．.多维标度法 | E24: @变量 | G24: 成对删除 | K24: 设置的初始化 | L24: 因子分析 | M24: 广义线性混合模型 | N24: 组平均值（变量名_m） | O24: 最大値 = | P24: 输出选择的变量 | R24: 删除 | S24: 添加→ | T24: 当前的模型 | U24: 带标签 | V24: 聚类校正 | Z24: 数据的数量化 | AD24: 输出安装用的代码 | AE24: 误差条表示
A25: SEM | B25: 变量的数量的最大值( | C25: 重回归分析 | D25: HAD正在运行．．．.潜秩序分析 EM演算法 | E25: 投入因变量 | G25: 成列删除 | K25: 变量信息列保持固定 | L25: 聚类分析 | M25: 取消 | N25: 使用组平均值进行中心化（变量名_g） | O25: 总体平均= | P25: 输出SAS的代码 | R25: 删除全部的筛选设置 | S25: ←删除 | T25: ・分析法 | U25: 组别 | V25: 异方差的校正 | Z25: 输出聚类数据 | AE25: 默认值
A26: 限制→ | B26: )由于过多，不能读取所有的数据。 | C26: 泊松回归分析 | D26: 次 | E26: 投入所有主效应 | G26: 缺失值处理方法 | K26: 显示全部的工作表 | L26: 量化分析 | M26: OK | N26: 中心化得分（变量名_c） | O26: 总体方差= | P26: ・生成多变量正态随机数 | R26: 输入选择单元格 | S26: 登录 | T26: 分析代码 | U26: 列联表 | V26: ・自助法样本数 | Z26: 聚类类别数= | AE26: 不显示误差条的下侧
A27: 分组→ | B27: 数据读取中发生意外错误。HAD的运算终止。 | C27: 负二项式回归 | D27: HAD正在运行．．．.潜秩序分析 自组织映射图 | E27: 投入所有交互作用 | G27: 输出数据 | K27: ・读取以前的版本（HAD16以后）的数据 | L27: 结构方程模型 | M27: 取消 | N27: 嵌套型数据 | O27: 不覆盖输出 | P27: 从选定变量的协方差矩阵生成 | R27: 适用筛选设置 | S27: 清除 | T27: 显示模型↓ | U27: 直方图级数= | V27: 随机设置随机数的初始值 | Z27: 多维标度法 | AE27: 带宽参数=
A28: 最大值 | B28: 別的工作表使用该数据时，只能使用回归分析・因子分析。 | C28: Logistic回归分析 | D28: HAD正在运行．．．.正在计算标准误差 | E28: 选项 | G28: 嵌套型数据 | K28: 解除工作表的保护 | L28: ・单纯结构分析 | M28: OK | N28: 不覆盖输出 | O28: 正态分布 | P28: 指定工作表 | R28: 将所有数据用于分析 | S28: 登录变量列表 | T28: 清除所有的模型 | U28: 正态性的检验 | V28: 自助法样本大小＝ | Z28: 最远距离法 | AE28: 在折线图中添加误差条
A29: 最小值 | B29: 最大数( | C29: 伽玛回归分析 | D29: HAD正在运行．．．.因子分析 迭代次数 = | E29: 运行分析 | G29: （组内相关系数） | K29: 画面初始化 | L29: 取消 | M29: ・偏离球面性的自由度校正 | N29: OK | O29: 泊松分布 | P29: 取消 | R29: 输入选择的单元格 | S29: 显示登录变量↓ | T29: 选择用于分析的模型 | U29: 等级相关分析 | V29: 参数 | Z29: 组平均法 | AE29: 返回
A30: 求解器开启 | B30: )多于该数量的变量不能运行分析。 | C30: 线性回归分析 | D30: HAD正在运行．．．.因子分析 迭代次数 = | E30: 关闭筛选器 | G30: PW相关分析 | K30: "NA" | L30: OK | M30: H-F | N30: 取消 | O30: 取消 | P30: OK | R30: 清除 | T30: ・模型名称 | U30: 协方差 | V30: 非参数 | Z30: Ward法 | AE30: 覆盖提琴图
A31: 求解器关闭 | B31: 別的工作表使用数据时，变量的合成机能不能够运行。 | C31: 判别分析 | D31: HAD正在运行．．．.类别因子分析・・・ | E31: 不覆盖输出 | G31: 数据重构 | K31: OK | L31: 默认设置 | M31: G-G | N31: 成列删除（合成 | O31: OK | P31: 不覆盖输出 | R31: 输入选择的单元格 | U31: 等级差检验（非参数检验） | V31: ・自助法样本的抽取法 | Z31: 维度数= | AE31: 给平均值添加记号
A32: 多分格（Polychoric）相关数据 | B32: 协方差数据不能够运行类别因子分析。 | C32: 因子分析 | D32: 牛顿迭代法 | E32: 定距 | G32: 变量按组排序 | K32: 取消 | L32: 非迭代估计法(最大法） | M32: 下限 | N32: 成列删除（量表 | O32: 二项分布 | P32: 样本大小＝ | R32: 变量名 | U32: 独立 | V32: ・随机数的设置 | Z32: 聚类的出现频率 | AE32: 柱状图
A33: 协方差数据 | B33: 协方差数据不能够运行聚类分析。 | C33: 系统聚类分析 | D33: 拟牛顿迭代法 | E33: 定序 | G33: 成列数据文件 | K33: 显示 | L33: 主轴因子法 | M33: 无校正 | N33: 成列删除（虚拟 | O33: 负二项分布 | P33: ・生成单变量标准正态随机数 | R33: OK | U33: 配对 | V33: ・自助法可信区间的估计 | Z33: 数据的工作表名 | AE33: 估计核密度
A34: 普氏（Procrustes）分析 | B34: 协方差数据不能够运行量化分析。 | C34: K-means法 | D34: 外推法 | E34: 定比 | G34: 组内人数= | K34: 不显示 | L34: VSS | M34: ・自变量的设置（与广义线性模型共通） | N34: 平均值= | O34: 平均 | P34: 从标准正态分布生成随机数数据 | R34: 取消 | U34: 变量间的关连性 | V34: 百分位数法 | Z34: 对应分析 | AE34: 依据样本量变化
A35: 旋转 | B35: 苹果版电脑不装备有SEM功能。 | C35: 样本数量 | D35: HAD正在运行．．．.正在计算因子得分 | E35: 计数 | G35: 因子分析 | K35: 删除→ | L35: VSS的复杂性 = | M35: ・选择分析方法 | N35: 标准差= | O35: 方差 | P35: 随机化 | R35: 适用 | U35: 对应分析 | V35: 偏差校正法 | Z35: 维度数=
A36: 最近距离法 | B36: 此HAD版本为无求解器（solver)的版本。请下载有求解器（solver)的版本使用。 | C36: ※方差使用无偏方差显示，标注差使用无偏方差的平方根显示。 | D36: HAD正在运行．．．.正在计算因子得分(EAP 区分求积法)・・・ | E36: 中止 | G36: 项目分析 | K36: ←返回 | L36: 共同度的和 | M36: 表示定类显著水平 | N36: 变量的减法 | O36: 样本数= | P36: 变更样本大小 | R36: 创建筛选变量 | U36: 多水平统计分析 | V36: 显示标准化系数 | Z36: 聚类分析
A37: 最远距离法 | B37: 打开模型空间并运行。 | C37: 变量名 | D37: HAD正在运行．．．.正在计算因子得分(EAP 蒙特卡洛模拟( Monte Carlo simulation)积分)・・・ | E37: 定类 | G37: 组按变量排序 | K37: 显示全部 | L37: 非迭代估计法(平均法） | M37: 默认设置 | N37: 变量的加法 | O37: 概率 | P37: 成对数据文件 | R37: ・将当前的筛选设置成变量 | U37: 多水平相关分析 | V37: ・显示路径图 | Z37: 输出得分数据
A38: 中值法 | B38: 工作表中指定的数据计算不出因子得分。 | C38: 有効N | D38: HAD正在运行．．．.正在计算因子得分(MAP法)・・・ | E38: 混合分布 | G38: （纵列的数据转化为横向排列） | K38: 删除全部 | L38: 精度高，但是花时间 | M38: 默认设置 | N38: 变量的乘法 | O38: 运行次数 | P38: 成列删除 | R38: （排除=1, 使用=0） | U38: 用于MUML的协方差矩阵 | Z38: 最大方差法Varimax
A39: 重心法 | B39: 使用协方差数据时不能使用稳健标准误差。 | C39: 平均值 | D39: HAD正在运行．．．.因子分析 次数 = | E39: 四分位数 | G39: （横排的数据转化为纵向排列） | K39: 再度读取 | L39: 共同度的和的推移进行图表化 | M39: 默认设置 | N39: 取消 | O39: 平均 | P39: 不覆盖输出 | R39: 把这个变量作为分组变量 | U39: 配对相关分析 | Z39: 有加权
A40: 群平均法 | B40: 使用协方差数据时不能使用聚类的标准误差。 | C40: 中位数 | D40: HAD正在运行．．．.平行分析 迭代次数 = | E40: 稳健标准误差 | G40: 因变量= | K40: 全部初始化 | L40: 寻找碎石图的分割点 | M40: 进行Satterthwait的校正 | N40: OK | O40: 平均 | P40: ・数据的重新排序 | R40: OK | U40: 配对协方差矩阵 | Z40: 无加权
A41: 可变法 | B41: 非系统聚类分析中不能对变量进行分类。 | C41: 标准差 | D41: HAD正在运行．．．.项目反应理论图表输出中 | E41: 聚类标准误差 | G41: 回归分析 | K41: 默认设置 | L41: 寻找高效率的模型 ※推荐使用 | M41: 成对数据的误差项 | N41: 不覆盖输出 | O41: 过度离散 | P41: ・数据的重新排序 | R41: 取消 | U41: 识别可能 | Z41: 树状图的总结规则=
A42: Ward法 | B42: 非等级聚类分析不能运行来自距离矩阵的分析。 | C42: 方差 | D42: HAD正在运行．．．.回归分析 | E42: 模型保存 | G42: 残差得分 | K42: 改变工作表的单元格的宽度 | L42: 默认设置 | M42: 因素的误差项 | N42: 成列删除(数字 | O42: 不覆盖输出 | P42: ・嵌套型数据的重新排序 | R42: ＠添加変量 | U42: 组内相关系数 | Z42: 总结树状图
A43: 聚类分析 | B43: 混合分布模型不能运行变量的分类。 | C43: 偏度 | D43: HAD正在运行．．．.回归分析步骤 | E43: 回归分析 | G43: 使用分类进行控制 | K43: ・误差条 | L43: 取消 | M43: 组内要素的多重比较 | N43: - 变量 | O43: 随机化 | P43: 关闭筛选器 | R43: ＠删除変量 | U43: 嵌套型数据 | Z43: 聚类数据
A44: k-means算法 | B44: 混合分布模型不能运行来自距离矩阵的分析。 | C44: 峰度 | D44: HAD正在运行．．．.回归分析 简单效应的检验 | E44: 方差分析 | G44: 读取模型工作表 | K44: 标准误差 | L44: OK | M44: ・其他设置 | N44: 变量 + | O44: 形状 | P44: 与协方差矩阵完全一致后合成 | R44: ＠变量 | U44: 关闭筛选器 | Z44: 主成分分析
A45: 改进k-means | B45: 潜类别分析不能运行变量的分类。 | C45: 最小值 | D45: HAD正在运行．．．.混合分布回归分析 | E45: 广义线性模型 | G45: 输入使用变量的个数 | K45: 95%可信区间 | L45: ・聚类基准 | M45: 协变量中心化 | N45: 幂 | O45: 伽玛分布 | P45: 成列删除 | R45: 代入变量名 | U45: 直方图 | Z45: 主成分分析
A46: 混合正态分布 | B46: 潜类别分析不能运行来自距离矩阵的分析。 | C46: 最大值 | D46: HAD正在运行．．．.潜秩序回归分析 | E46: 广义线性混合模型 | G46: 交互作用项 | K46: 取消 | L46: Ward法 | M46: ・标准化系数 | N46: 变量的累乘 | O46: 量表 | P46: 用于多水平统计分析模型的协方差矩阵 | R46: 适用 | U46: API模型 | Z46: 对应分析
A47: 潜类别分析 | B47: 潜秩序分析不能运行变量的分类。 | C47: 人数 | D47: HAD正在运行．．．.正在进行广义线性混合模型的事前处理 | E47: 分层投入法 | G47: 简易模式 | K47: OK | L47: 群平均法 | M47: 因变量为二值数据时进行逻辑性回归分析 | N47: 变量 * | O47: α | P47: 组间水平 | R47: ＠删除所有变量 | U47: 组别的回归直线 | Z47: 依据大小排列
A48: 潜秩序分析 | B48: 潜秩序分析不能运行来自距离矩阵的分析。 | C48: 标准误差 | D48: HAD正在运行．．．.广义线性混合模型 简单效应的检验 | E48: 步进法 | G48: 识别可能 | K48: ・直方图的显示 | L48: 重心法 | M48: 步进法 | N48: 变量的对数转换 | O48: β | P48: 组内水平 | R48: 取消 | U48: 气泡图 | Z48: （在主成分分析中使用）
A49: 连续 | B49: 广义最小二乘法不能够运行缺失值估计。 | C49: 95%置信水平 | D49: 自助法正在运行．．．．(现在 | E49: 中介效应分析 | G49: （组内和组间混合） | K49: ・散点图的显示 | L49: 最远距离法 | M49: 多变量回归 | N49: 创建虚拟变量 | O49: 贝塔分布 | P49: 组内序列号 | R49: OK | U49: 主成分分析 | Z49: （在对应分析中使用）
A50: 定序 | B50: 协方差数据不能用来进行结构方程模型的分析。 | C50: 得分 | D50: HAD正在运行．．．.正在运行自助法 | E50: 不输出各个步骤 | G50: 多层统计回归分析 | K50: 勾画线性近似直线 | L50: 最近距离法 | M50: 重回归分析 | N50: 计算从第一个变量减去剩余变量的差分值 | O50: 从数据文件里 | P50: 指数分布族随机数的生成 | R50: 变量名 | U50: 组别统计量
A51: 外生变量 | B51: 探索性因子分析不使用模型空间。 | C51: 正态性检验 | D51: HAD正在运行．．．.广义线性混合模型正在运行(NULL模型) | E51: 输出残差的得分 | G51: 组内相关= | K51: 下侧不添加误差条 | L51: 树状图的显示法 | M51: 相关系数的差 | N51: 当前数值 | P51: ・生成单变量的指数分布族的随机数 | R51: 代码说明 | U51: 图表设置
A52: 估计路径 | B52: 请输入使用变量。 | C52: 卡方值 | D52: HAD正在运行．．．.广义线性混合模型正在运行 | E52: HAD2GLIMMIX | G52: 移除以下内容 | K52: ・图表显示设置 | L52: 距离的 | M52: 输出逻辑・计数回归分析的标准化系数 | N52: 新的数值 | R52: 分析法： | U52: 多重列联表分析
A53: 估计协方差 | B53: 使用变量和因子数的合计超过了规定值(95)。 | C53: p值 | D53: HAD正在运行．．．.正在进行广义线性混合模型的事后处理 | E53: HAD2glmmstan | G53: 中介效应分析 | K53: 黑白显示 | L53: 幂 | M53: ※计算可能需要一些时间 | N53: 其他的所有的值 | R53: 使用变量：
A54: 初始化 | B54: 使用变量和因子数的合计超过了规定值(50)。 | C54: Jarque-Bera检验 | D54: HAD正在运行．．．.正在运行中介效应分析 | E54: 因子分析 | G54: bootn= | K54: 不给图添加外框 | L54: 输出聚类处理结果 | M54: 包含交互效应的情况下，对各变量进行中心化(推荐） | N54: 缺失值 | R54: 使用变量名
A55: 检查模型 | B55: 潜在因子数已经为0。 | C55: 统计量 | D55: HAD正在运行．．．.回归分析步骤 | E55: 聚类分析 | G55: 随机化 | K55: 不显示标记 | L55: ・输出设置 | M55: 步进法的基准 | N55: 指定范围 | R55: 运行代码
A56: HAD2Stan | B56: 请选择2个以上的变量。 | C56: 校正p值 | D56: HAD正在运行．．．.多变量回归分析 | E56: 量化分析 | G56: 碎石图 | K56: 在折线图添加误差条 | L56: 输出距离矩阵 | M56: 输出球面性的检验结果 | N56: 指定数值 | R56: 通过重新运行新创建的变量的代码， 增加数据时，可以用同样的方法算出得分。
A57: 添加路径 | B57: 识别不了模型。请减少估计参数。 | C57: Kolmogorov-Smirnov检验 | D57: HAD正在运行．．．.中介效应分析输出 | E57: 结构方程模型 | G57: 数据的协方差矩阵 | K57: OK | L57: ・多维标度法的设置 | M57: ·计数数据的分布 | N57: 从 | R57: 代码：
A58: 添加协方差 | B58: 存在没有测量项目的因子。请指定2个及2个以上的项目。 | C58: ※Jarque-Bera检验是对偏度和峰度为0的原假设进行检验。使用自由度为2的卡方检验。 | D58: HAD正在运行．．．.正在估计NULL模型 | E58: 添加因子 | G58: 频率分布表 | K58: 取消 | L58: 提取到维度 | M58: 泊松分布 | N58: 复制当前数值
A59: 删除路径图 | B59: 使用变量请指定两个及两个以上的变量。 | C59: 按每个单元格内的频数 | D59: HAD正在运行．．．.正在估计模型 | E59: 减少因子 | G59: 对应分析 | K59: ・快捷键的指定 | L59: 默认设置 | M59: 负的二项分布 | N59: 缺失值
A60: 反映路径图 | B60: 路径图描画过程中发生意外错误。 | C60: 样本数量 = | D60: HAD正在运行．．．.正在建构参数 | E60: 显示路径图 | G60: 等级相关分析 | K60: 显示模型工作表 | L60: 取消 | M60: ・比率回归分析的分布 | N60: 指定数值
A61: 重画路径图 | B61: 协方差数据不能运行方差分析。 | C61: (正在删除文档列表) | D61: HAD正在运行．．．.正在计算标准误差 | E61: 分组 | G61: 显示矩阵 | K61: 显示分析记录 | L61: OK | M61: 概率 | N61: OK
A62: 因变量→ | B62: 协方差数据不能够运行广义线性模型。 | C62: 频数 | D62: HAD正在运行．．．结构方程模型・・・ | E62: 协变量中心化 | G62: 散点图 | K62: 投入变量 | L62: ・数据的种类 | M62: 逻辑 | N62: 取消
A63: 分组→ | B63: 协方差数据不能够运行等级线性模型。 | C63: 比率(%) | D63: 基准 | E63: 显示定类显著性水平 | G63: 量表平均值 | K63: 默认设置 | L63: 变量型：把变量里的分类数据作为数值进行编码 | M63: 补充Log-Log | N63: 删除
A64: 重回归分析 | B64: 协方差数据不能够运行判别分析(多变量回归分析)。 | C64: 总频数 | E64: 广义效果量 | G64: 合计值 | K64: 默认设置 | L64: 分类反应型：分类的反应编码为0和1 | M64: 负Log-Log | N64: 不覆盖输出
A65: 稳健回归 | B65: 请在B2格里输入ID变量。 | C65: 对数线性模型 | E65: 无偏估计效果量 | G65: 使用中位数分割 | K65: 默认设置 | L65: ・图表的输出设置 | M65: ・中止数据的方向 | N65: 成列删除(重新分配
A66: 稳健SE | B66: 没有输入使用变量。 | C66: 变量 | E66: 对数线性模型 | G66: 使用平均进行分割 | K66: 工作表管理 | L66: 交叉表型：数据为2变量的交叉表时 | M66: 下侧 | N66: ・从使用变量中创建合成变量
A67: 聚类SE | B67: 没有输入回归分析的因变量。 | C67: 存在频数为0的单元格 | E67: 组均值进行中心化 | G67: 平行分析 | K67: 显示分析记录 | L67: ※交叉表型的情况下，同时绘制行和列的图。 | M67: 上侧 | N67: 平均值设置为0
A68: 自助法 | B68: 使用变量中没有因变量。 | C68: 正在加载。加载的值可以使用「HAD的设置」进行变更。 | E68: 判别分析 | G68: 多变量随机数 | K68: 记录保存数 | L68: 显示维度轴的刻度 | M68: 双侧 | N68: 使用组平均值进行中心化
A69: 模型→ | B69: 协方差数据中没有因变量。 | C69: 单元格序列号 | E69: 多变量回归分析 | G69: 使用标准得分 | K69: 单元格的宽度 | L69: 显示维度軸 | M69: 无 | N69: 计算组平均值
A70: 强制投入→ | B70: 协方差数据不能检测交互作用。 | C70: 变量間的关联性与检验 | E70: 各个单元格的平均值 | G70: 主成分得分 | K70: 新的分析结果显示在最前面 | L70: Kaiser的标准化 | M70: 广义泊松 | N70: ・将使用变量分为两组（低分组=0，高分组=1）
A71: 中介效应分析 | B71: 中介效应分析不能检测交互作用。 | C71: 分水平进行的估计 | E71: 中介效应的设置 | G71: 类别相关 | K71: ・类别数据的水平个数 | L71: 树状图的要約标准 | M71: 判别分析 | N71: ・将使用变量转换为虚拟变量
A72: 线性回归 | B72: 没有输入因变量。 | C72: 阶模型 | E72: 步进法的设置 | G72: 显示矩阵 | K72: 水平个数 | L72: 分类对象 | M72: ・广义线性模型的迭代计算的基准 | N72: ・使用变量和常数的四则运算
A73: 随机效应 | B73: 使用变量过多。交互作用只支持到5个变量。 | C73: 饱和度模型的估计結果 | E73: 不显示记录 | G73: 分类的水平 < | K73: 以内的变量将被看作为类别数据 | L73: 以上 | M73: 最大迭代次数 | N73: ・使用变量的非线性变换
A74: 残差构造→ | B74: 指定的变量不能超过使用变量 | C74: 系数 | E74: 删除所有记录 | G74: Full-ML | K74: ・HAD的版本 | L74: 实行平行分析 | M74: 收敛基准 | N74: 创建反映当前筛选器设置的变量(排除=1，使用=0)
A75: 随机效应→ | B75: 协方差数据计算不出各格内的平均值。 | C75: 下限 | E75: 启动 | G75: Two-Step | K75: hadversion | L75: ※使用加权=1的最大方差法 | M75: ・自变量的设置 | N75: 创建筛选器变量
A76: 方差分析 | B76: 判别分析只有在使用原始数据时才能运行分析。 | C76: 上限 | E76: 工作表 管理 | G76: 从启动 | K76: 参照文件 | L76: k-means法 | M76: 将二值虚拟变量当作分类变量（推荐） | N76: 计算平均得分
A77: 协变量→ | B77: 定序数据的回归分析只有在使用原始数据时才能运行分析。 | C77: Z值 | E77: 关闭 | G77: 作为交叉表读取 | K77: ・随机数种子 | L77: 随机化 | M77: 使用全体平均进行主效应中心化 | N77: 计算总得分
A78: 反复测量→ | B78: 定类数据的回归分析只有在使用原始数据时才能运行分析。 | C78: 频率 | E78: 二进制 | G78: 作为原始数据读取 | K78: 使用系统时间 | L78: 改进k-means | M78: 使用组平均进行水平1的变量中心化 | N78: 计算主成分得分
A79: 对数线性模型 | B79: 比率数据的回归分析只有在使用原始数据时才能运行分析。 | C79: 直方图（正态性检验） | E79: 倾向得分分析 | G79: 箱形图 | K79: 固定工作表 | L79: 等级法 | M79: ・等级线性模型的迭代计算的基准 | N79: 从第一个变量中减去其余变量
A80: 判别分析 | B80: 混合分布回归分析只有在使用原始数据时才能运行分析。 | C80: 外观值 | G80: 矩阵演算 | K80: 折线的粗细= | L80: 非等级法 | M80: 最大迭代次数 | N80: ・变换各变量的平均值和标准偏差
A81: 多变量回归 | B81: 计数数据的回归分析只有在使用原始数据时才能运行分析。 | C81: 概率(%) | G81: 变量的计算 | K81: 文字使用Times New Roman书体 | L81: 初始值 | M81: 收敛基准 | N81: ・以组平均值进行各变量的中心化（嵌套型数据）
A82: 自变量→ | B82: 中止数据的回归分析只有在使用原始数据时才能运行分析。 | C82: 有効频数 | G82: 虚拟变量代码 | K82: 刻度线向内配置 | L82: 主成分 | M82: 默认设置 | N82: （输入最大値+1的数值）
A83: HLM | B83: 四分位数回归分析只有在使用原始数据时才能运行分析。 | C83: 有効概率 | G83: 变量的差 | K83: ・箱形图・柱状图的显示 | L83: 随机 | M83: 取消 | N83: ※从协方差矩阵进行主成分分析。 为了得到与因子分析的主成分解相同的结果，请使用标准化的得分。
A84: 连续変量 | B84: 多水平分析不能运行带有缺失值的分析。 | C84: 累积概率 | G84: 等秩检验 (非参数检验) | K84: 点状图重叠显示 | L84: 迭代 | M84: OK | N84: 组平均值+中心化（変数名_mc）
A85: 正态分布 | B85: 缺失值的估计中估计外生变量的方差。 | C85: 合计 | G85: 变量之间的关联性 | K85: 日文字体 | L85: 迭代次数= | M85: ・标准误差的类型 | N85: 算出中心化后的组平均值
A86: 对数正态分布 | B86: 广义最小二乘法不能进行缺失数据的估计。 | C86: 正态分布 | G86: 独立样本 | K86: 显示正态曲線 | L86: ・量表得分的计算方法 | M86: 基于模型的标准误差 | N86: 中心化后创建交互效应项
A87: 伽玛分布 | B87: HAD起動中发生意外错误。HAD的运算终止。 | C87: 区间 | G87: 配对样本 | K87: 显示误差条 | L87: 合计值 | M87: 稳健标准误差 | N87: 变量的反正弦变换（角变换）
A88: 定序回归 | B88: 混合分布回归分析不能使用分层投入法。 | C88: 组的代表值 | G88: 平均值的差的检验 | K88: 制图设置的详细 | L88: 平均值 | M88: 包含交互效应的情况下，对各变量进行中心化(推荐） | N88: ・创建交互效应项
A89: 逻格斯（Logistic）回归 | B89: 请输入聚类的数量。 | C89: 均匀性检验 | G89: 成对样本 | K89: ・加在对数线性模型的0频数上的值 | L89: 收敛基准 = | M89: ・输出设置 | N89: 关闭筛选器
A90: 概率单位 | B90: 请把组别变量输入到左侧的单元格内。 | C90: 自由度 | G90: 独立样本 | K90: 显示语言(Language, 表示言語) | L90: 最大迭代次数 = | M90: 输出固定效应的协方差矩阵 | N90: 关闭筛选器
A91: 补充Log-Log | B91: 请在「使用变量→」输入将用在分析当中的变量名。 | C91: 出现的次数 | G91: 按组列出的数据 | K91: ・多重比较的方法 | L91: ・迭代计算的基准 | M91: Null模型中包含截距的变量效应 | N91: 关闭筛选器
A92: 负Log-Log | B92: 使用变量的最大数( | C92: 众数 | G92: 直线回归 | K92: Bonferroni | L92: 验证性因子分析的結果按大小排序 | M92: ・变量效应的设置 | N92: 关闭筛选器
A93: 定类回归 | B93: )超过了。 | C93: 曲线拟合 | G93: 重新分配数值 | K93: Holm | L93: 估计精度 = | M93: 估计截距的变量效应（推荐） | N93: 关闭筛选器
A94: 参照 | B94: 数据输入不正确。请确认。 | C94: 累积正态曲線的参数 | G94: 筛选器变量 | K94: Shaffer | L94: 默认设置 | M94: ・回归系数的检验方法 | N94: 排序得分（变量名_rs）
A95: 二项回归 | B95: 变量名里包含有空白。请确认Box变量。 | C95: 平均 | G95: 单元格平均值 | K95: 修正Shaffer | L95: 取消 | M95: 聚类内相关 | N95: 当前的数值 → 新的数值
A96: β二项式回归 | B96: 有重复的变量名。 | C96: 阈值的估计 | G96: 平均值的估计 | L96: OK | M96: 异方差 | N96: 添加
A97: 发生次数 | B97: 没有找到。请再次读取变量名重新确认。 | C97: 25%阈值 | G97: 检验值 = | L97: ・标准误差的估计 | M97: 显示切换到建模空间的复选框 | N97: 删除离群值
A98: 总数 | B98: 变量名不可以使用「*」。 | C98: 50%阈值 | G98: 按单元格计算频数 | L98: 微小值 = | M98: ・输出 | N98: 删除超出标准差的值
A99: 混合分布回归 | B99: 控制变量里有重复的变量名。 | C99: 75%阈值 | G99: Mplus代码 | L99: ・输出的设置 | M99: 回归系数的协方差矩阵 | N99: 组内的序列号
A100: 分类的个数 | B100: 控制变量里包含有和使用变量相同的变量名。 | C100: 四分位数 | G100: 带标签 | L100: 路径図的結果使用标准化解输出 | M100: 分步投入交互效应项（推荐） | N100: 将字符串转换为数字
A101: 计数回归 | B101: 平均值的差的检验需要指定2个及2个以上的变量。 | C101: 象限 | G101: 组别 | L101: ・估计的设置 | M101: ・投入变量的方法
A102: 泊松分布 | B102: 相关系数的差的检验需要指定包括ID变量在内的4个及4个以上的变量。 | C102: 平均的区间估计 | G102: 信度系数 | L102: 估计外生变量的方差 | M102: ・其他设置
A103: 负二项式分布 | B103: 没有输入回归模型的因变量。 | C103: 标准值 | G103: 交叉表 | L103: 限制方差为非负值的估计 | M103: ・效果量的类型
A104: 广义泊松 | B104: 回归模型的因变量不包括在使用变量里。 | C104: 置信区间 | G104: 相关的差的检验 | L104: 设置碎石图 | M104: Cohen的d
A105: 偏移量 | B105: 组内要素分析的因变量必须在2以上。 | C105: 差 | G105: 中位数 | L105: 反映因子间相关 | M105: 相关系数 r
A106: Tobit回归 | B106: 反复测量的水平的个数的输入不正确。 | C106: df | G106: 组内平均＋中心化（变量名_mc） | L106: ・因子得分的计算方法 | M106: 效果量d（Hedges的g）
A107: 中止下侧 | B107: 协变量中有和因变量同样的变量。 | C107: t值 | G107: 组内相关系数 | L107: 回归法 | M107: 计算各水平的标准误差
A108: 中止上侧 | B108: 协变量中有不包含在使用变量中的变量。 | C108: ※误差条显示标准误差。 | G108: 组数 = | L108: EAP的估计使用蒙特卡罗积分(Monte Carlo Integration)（类别变量时） | M108: 总体估计量
A109: 中止两侧 | B109: 测量要素中存在和因变量相同的变量。 | C109: ※误差条显示95%置信区间。 | G109: 正态分布检验 | L109: 类别因子分析 | M109: 广义效果量
A110: 无中止 | B110: 测量要素中存在不包含在使用变量中的变量。 | C110: 组 | G110: 交互作用项 | L110: EAP | M110: 差的效应
A111: 四分位数回归 | B111: 交互作用项不能投入到中介效应分析中。 | C111: 共变 | G111: 不覆盖输出2 | L111: MAP | M111: 要素的效应
A112: 四分位数 | B112: 中介效应分析的模型中，自变量的投入数量不能超过2变量。 | C112: 相关系数 | G112: 关闭筛选器 | L112: 稳健标准误差 | M112: 群间为合并・群内为各水平
A113: 因子分析 | B113: 因变量也被包含在分组当中。 | C113: 可决系数 | G113: 气泡图 | L113: 无校正 | M113: 用t分布进行检验
A114: 因子数→ | B114: 因变量被包含在自变量里。 | C114: 协方差 | G114: 直方图 | L114: 类别因子分析的估计使用求解器 | M114: ・对假设的偏离的校正方法
A115: 抽取方法→ | B115: 使用协方差数据时不能投入交互作用项。 | C115: 估计值 | G115: 完全一致 | L115: 顺序聚类 | M115: 无校正
A116: 旋转方法→ | B116: 使用变量里包含未指定的变量。 | C116: 直线回归 | G116: 组别的回归直线 | L116: 顺序 | M116: 稳健标准误差
A117: 得分→ | B117: 自变量中含有复数个同一变量。 | C117: 模型 | G117: 等方差检验 | L117: 连续 | M117: 聚类标准误差
A118: 最大似然 | B118: 协变量不包含在方差分析的模型当中。 | C118: 截距 | G118: API模型 | L118: 混合分布 | M118: 用t分布进行检验
A119: 最小二乘法 | B119: 组内要素的变量不包括在方差分析的模型里。 | C119: 斜率 | G119: 均匀性检验 | L119: EII | M119: 无校正
A120: 反复主轴因子法 | B120: 自变量没有包括在模型里。 | C120: 回归式 | G120: 排序得分（变量名_rs） | L120: EEE | M120: 自助法（Bootstrap）
A121: 主成分法 | B121: 中介效应分析的自变量需要在2个以上。 | C121: 按组的回归直线 | G121: 主成分分析 | L121: VII | M121: 迭代数=
A122: 类别 | B122: 交互作用项的数量超过了界限值。 | C122: ※未能显示所有的回归直线。只显示最初的255组的結果。 | G122: BM检验 | L122: VVV | M122: 随机化
A123: 特征值为1以上 | B123: 自变量的输入不适当。 | C123: ※未能显示所有的回归直线。 | G123: 组内序列号 | L123: 方差模型设置 | M123: 稳健回归分析
A124: 斜交旋转 | B124: 在下一个Step里，请输入包括前一个Step的变量。 | C124: 气泡图 | G124: 把文字转换为数值 | L124: 潜类别分析 | M124: 输出固定效应的协方差矩阵
A125: 不做旋转 | B125: 指定2个分组变量（分割变量）时，3因素的交互作用必须包括在模型里。 | C125: 等级相关系数 | G125: 组别的统计量 | L125: 学习倍率 | M125: C-M
A126: 正交旋转 | B126: 使用变量中没有找到分组变量。 | C126: 对应分析 | G126: 核密度 | L126: 潜秩序分析 | M126: ・混合分布回归分析的设置
A127: 按大小排序 | B127: 分组变量中有相同的变量。 | C127: 列联表 | G127: 图的设置 | L127: 详细设置 | M127: 随机化
A128: 相关性矩阵 | B128: 自变量中没有找到分组变量变量。 | C128: 关联系数和独立性的检验 | G128: 曲线拟合 | L128: 稳健标准误差 | M128: 迭代次数=
A129: 最大似然斜交法 | B129: 交互作用变量中没有找到分组变量。 | C129: ※置信区间不收敛 | G129: 多重列联表 | L129: ・非等级法・潜在变量分析的分析设置 | M129: HAD2GLIMMIX的设置
A130: 因子得分 | B130: 分组变量必须被包含在交互作用项当中。 | C130: Cramer's V | G130: had2stan_sem | M130: ・连续变量的分布
A131: 量表分数 | B131: 聚类的类数指定不正确。 | C131: 列联表的绘图 | M131: 正态分布
A132: 碎石图 | B132: 请输入比0大，比分类的对象数小的整数 | C132: Fisher的正确概率 | M132: 对数正态分布
A133: 项目反应理论 | B133: 聚类分析方法的选择不正确。 | C133: ※2×2的交叉表的时候显示。总频数在40以下的情况，或者存在期望次数在5以下的单元格的情况下请参照这里。 | M133: 简单效应分析的点估计
A134: 聚类的类别数→ | B134: 请选择一个方法 | C134: 双尾概率 | M134: 标准差
A135: 分类方法→ | B135: 输入的最大迭代次数不正确 | C135: 单尾概率 | M135: ±
A136: 分析对象→ | B136: 请输入比1大的整数 | C136: 一致性系数(agreement coefficient) | M136: 二项回归的过度分散的估计
A137: 分层 | B137: 输入的收敛基准不正确 | C137: Cohen的κ | M137: 伽玛分布
A138: 不分层 | B138: 请输入比0.00001大的数值 | C138: 列联表(对总的比率%) | M138: 概率链
A139: 混合分布 | B139: 结构方程模型必须使用两个以上的使用变量。 | C139: 列联表(按行计算的比率%) | M139: 二项分布
A140: 潜类别 | B140: HAD终止运算。 | C140: 列联表(按列计算的比率%) | M140: 贝塔二项分布
A141: 潜秩 | B141: 输入的因子数不正确 | C141: 残差分析 | M141: 由求解器估计
A142: 不做指定的分析 | B142: 请输入0以上，项目数以下的整数 | C142: 列联表（△表示显著性的个数多，▼表示显著性的个数少）
A143: 回答者 | B143: 请输入1以上，项目数以下的整数 | C143: 调节后的标准化残差
A144: 变量 | B144: orthomax标准（因子贡献的加权）的输入不正确 | C144: (Wilcoxon的正负号等级检验)
A145: 距离矩阵 | B145: 请输入以下的数值。 | C145: ※基于负值顺序
A146: 树状图 | B146: 最大方差法 = 1 | C146: ※基于正值顺序
A147: 聚类的特征 | B147: 四次幂极大旋转 = 0 | C147: 检验统计量Z =
A148: 对回答者分类 | B148: Biquatimax旋转 = 0.5 | C148: (弗里德曼(Friedman)检验)
A149: 变量分类 | B149: 等方差极大旋转 = 因子数 / 2 | C149: 检验统计量χ2 =
A150: 所属类别 | B150: 因子简约 = 变量的个数 | C150: 效果量
A151: 聚类的平均值 | B151: 输入的最优斜交法旋转标准(Power)不正确 | C151: 平均级别
A152: 数据标准化 | B152: 请输入1以上的数值 | C152: ※级别越高意味着得分越高。
A153: 多维标度法 | B153: 因子提取法的选择不正确 | C153: 级别的分
A154: 量化分析 | B154: 请选择任意一个提取法 | C154: 多重比较 (Holm方法）
A155: (同质性分析) | B155: 分类标准的输入不正确 | C155: 水平的組对
A156: 维度个数→ | B156: 请输入0到180的数值。 | C156: 级别的差
A157: 数据→ | B157: 直方图的级别数的输入不正确 | C157: 效果量 r
A158: 加权→ | B158: 请输入2到100的数值。 | C158: 调节p值
A159: 变量型 | B159: 一标本检验的标准值的输入不正确 | C159: (曼-惠特尼（Mann–Whitney）检验)
A160: 分类反应型 | B160: 请输入数值。 | C160: (克鲁斯卡尔-沃利斯（Kruskal - Wallis）检验)
A161: 交叉表型 | B161: 自助法的样本数量的输入不正确 | C161: 假定不等方差的检验（Brunner-Munzel检验）
A162: 最大方差法 | B162: 请输入200～50000的数值。 | C162: 检验统计量t =
A163: 无加权 | B163: 请输入组内人数。 | C163: (按得分排序)
A164: 有加权 | B164: 组内人数的输入不适当。 | C164: 加权系数
A165: 变量图示 | B165: 对应分析的输出,包括识别分组变量在内有必要输入3个以上的变量 | C165: 主成分
A166: 回答者图示 | B166: 组别的散点图的输出，包括识别分组变量在内有必要输入4个变量 | C166: 特征值
A167: 变量型数据 | B167: 散点图的输出,包括识别分组变量在内有必要输入3个变量 | C167: 贡献率
A168: 反应型数据 | B168: 非参数检验需要指定2个以上的变量。 | C168: 累积贡献
A169: 回答者得分 | B169: 因子分析的输出，包括识别分组变量在内有必要输入3个以上的变量 | C169: 绘图
A170: 分类反应型数据 | B170: 因变量的输入不正确 | C170: 标准化主成分
A171: SEM | B171: 请从被选择的变量中选择
A172: 分析法→ | B172: 小组数只有1个。 | C172: 标准化加权系数
A173: 估计法→ | B173: 进行分析时，请去掉“嵌套型数据”的勾选 | C173: 等方差的检验 (Levene检验)
A174: 估计设置→ | B174: 数据输入中发生意外错误。HAD的运算终止。 | C174: 进行检验的变量
A175: CFA | B175: 数据里包含有数式错误。 | C175: 分组变量
A176: EFA | B176: 你要把数式错误变成缺失值继续分析吗？ | C176: F值
A177: 多水平统计模型 | B177: 数据里包含空白的单元格。 | C177: df1
A178: GLS | B178: 请确认数据的缺失值以及变量的个数。 | C178: df2
A179: 无潜在变量 | B179: 数据里包含有被指定的缺失值以外的文字。 | C179: 检验统计量
A180: 完全聚类解 | B180: 请确认数据。 | C180: 各组的方差
A181: 标准化残差 | B181: 数据里包含有只是空格的单元格。 | C181: 删除
A182: 验证性因子分析 | B182: 没有找到多重组群分析的分组变量。 | C182: 数据
A183: 标准误差 | B183: 多重组群分析的分组变量包含在使用变量中。 | C183: 多分格（Polychoric）
A184: 估计均值结构 | B184: 控制变量不能使用文字数据。 | C184: 标签
A185: 缺失值数据 | B185: 分组变量只可以设置一个。 | C185: 偏相关分析
A186: 模型空间 | B186: 请确认筛选器的设置。 | C186: 相关分析
A187: 现在的模型 | B187: 多水平分析不支持分组分析。 | C187: 检验统计量(t值)和显著性概率
A188: 成列删除 | B188: 聚类标准误差不支持分组分析。 | C188: ※从上到下依次表示t值，p值，自由度，95%可信区间
A189: 描述性统计 | B189: 文档对分析只支持成对数据。 | C189: p值
A190: 箱形图 | B190: 该数据不是成对数据。 | C190: 自由度
A191: 直方图 | B191: 只有所有的组内人数相等的数据才能被作为识别可能的数据运行分析。 | C191: 95％CI
A192: 频率 | B192: 只有所有的组内人数相等的数据才能被排序。 | C192: 等级相关系数(斯皮尔曼)
A193: 正态分布检验 | B193: 组数的最大限度值为15。HAD的运算终止。 | C193: 类别相关分析
A194: 散点图 | B194: 方差分析中不能使用控制变量进行带有控制的分析。 | C194: 多分格（Polychoric）・多系列（Polyserial）相关系数的计算过程中出现了错误。
A195: 标签 | B195: 回归分析・广义线性模型・等级线性模型不能使用控制变量进行带有控制的分析。 | C195: ※由于存在分类的个数超过了规定值( & categorimax & ")的变量、其中一部分计算了皮尔逊积矩相关系数。
A196: 组别 | B196: 平均值的差的检验不能使用控制变量进行带有控制的分析。 | C196: 检验统计量和显著性概率
A197: 直线回归 | B197: 以类别数据为因变量分析中，不能使用控制变量进行带有控制的分析。 | C197: ※从上到下依次表示Z值(或者t值)、p值、相关系数的种类
A198: 列联表 | B198: 计数数据的回归分析分析中，不能使用控制变量进行带有控制的分析。 | C198: 项目分析
A199: 气泡图 | B199: 等秩检验中，不能使用控制变量进行带有控制的分析。 | C199: 项目
A200: 组别平均值 | B200: 等方差的检验中，不能使用控制变量进行带有控制的分析。 | C200: 内部一致性系数
... 530 more rows
